Body Name,Body Ref,Service Area Categorisation,Expense Type,Payment Date,Transaction Ref,Total Amount,Capital/Revenue,Supplier ID,Supplier Name
Shropshire,00GG,Capital - HRA Dwellings Capital,Non Revenue - Non Revenue,01/12/2021,3287062,"787,331.18",Capital,1001536,Bevan Brittan Llp Client Account
Shropshire,00GG,Capital - HRA Dwellings Capital,Non Revenue - Non Revenue,01/12/2021,3291984,"480,000.00",Capital,1002044,Lanyon Bowdler Solicitors
Shropshire,00GG,Resources - Audit Services,Employees - Indirect Employee Expenses,03/12/2021,3285915,"3,150.00",Revenue,1000095,Cipfa
Shropshire,00GG,Capital - Primary School Capital,Non Revenue - Non Revenue,03/12/2021,3285433,995.00,Capital,1000167,Hollis Office Supply Co.Ltd.
Shropshire,00GG,Place - Highways (Streetworks),Supplies & Services - Services,03/12/2021,3286298,693.00,Revenue,1000228,Midland News Association Ltd
Shropshire,00GG,Place - Highways (Streetworks),Supplies & Services - Services,03/12/2021,3286305,887.04,Revenue,1000228,Midland News Association Ltd
Shropshire,00GG,Capital - Corporate Landlord Capital,Non Revenue - Non Revenue,03/12/2021,11330443,"1,266.00",Capital,1000306,Security Wise Ltd
Shropshire,00GG,Place - Highways (Operations),Supplies & Services - Services,03/12/2021,3285962,"2,256.50",Revenue,1000428,Compass Minerals Uk Limited
Shropshire,00GG,Place - Highways (Operations),Supplies & Services - Services,03/12/2021,3285983,"2,267.50",Revenue,1000428,Compass Minerals Uk Limited
Shropshire,00GG,People - Housing Options,Supplies & Services - Services,03/12/2021,3287140,520.00,Revenue,1000498,Glyn Upton Removals
Shropshire,00GG,People - Housing Options,Premises-Related Expenditure - Repairs alterations and maintenance of buildings,03/12/2021,11329658,586.40,Revenue,1000752,Window & Door Contract Services
Shropshire,00GG,Place - Property Services Group,Premises-Related Expenditure - Repairs alterations and maintenance of buildings,03/12/2021,11329666,446.22,Revenue,1000752,Window & Door Contract Services
Shropshire,00GG,Place - Corporate Landlord - Youth Centres & Community,Premises-Related Expenditure - Repairs alterations and maintenance of buildings,03/12/2021,11330835,477.60,Revenue,1000752,Window & Door Contract Services
Shropshire,00GG,Place - Property Services Group,Premises-Related Expenditure - Repairs alterations and maintenance of buildings,03/12/2021,11332560,872.56,Revenue,1000752,Window & Door Contract Services
Shropshire,00GG,Resources - ICT Services,Supplies & Services - Communications and Computing,03/12/2021,3285947,"4,932.00",Revenue,1000753,Stone Computers Ltd
Shropshire,00GG,Place - Shire Catering,Supplies & Services - Catering,03/12/2021,3291007,"1,197.60",Revenue,1000769,The Little Food Company Limited
Shropshire,00GG,Place - Shire Catering,Supplies & Services - Catering,03/12/2021,3291089,"1,262.04",Revenue,1000769,The Little Food Company Limited
Shropshire,00GG,Place - Shire Catering,Supplies & Services - Catering,03/12/2021,3290434,"1,794.88",Revenue,1000926,Options Management
Shropshire,00GG,Place - Shire Catering,Supplies & Services - Catering,03/12/2021,3290474,"1,605.00",Revenue,1000926,Options Management
Shropshire,00GG,Resources - ICT Services,Supplies & Services - Communications and Computing,03/12/2021,3285379,"15,247.30",Revenue,1000933,Xma Ltd
Shropshire,00GG,Resources - ICT Services,Supplies & Services - Communications and Computing,03/12/2021,3286283,"3,091.50",Revenue,1000933,Xma Ltd
Shropshire,00GG,People - Internal Providers - Nursing Services,Premises-Related Expenditure - Cleaning and domestic supplies,03/12/2021,3285624,17.92,Revenue,1000943,Berwick Care Equipment Limited
Shropshire,00GG,People - Internal Providers - Nursing Services,Supplies & Services - Equipment Furniture and Materials,03/12/2021,3285624,439.84,Revenue,1000943,Berwick Care Equipment Limited
Shropshire,00GG,People - Internal Providers - Nursing Services,Supplies & Services - Clothes Uniforms and Laundry,03/12/2021,3285624,52.84,Revenue,1000943,Berwick Care Equipment Limited
Shropshire,00GG,Place - Corporate Landlord - Leisure,Premises-Related Expenditure - Repairs alterations and maintenance of buildings,03/12/2021,11330450,629.60,Revenue,1000973,Ocean Swimming Pools Ltd
Shropshire,00GG,Place - Highways (Operations),Non Revenue - Non Revenue,03/12/2021,3292879,"8,497.53",Revenue,1000994,Dynniq Uk Limited
Shropshire,00GG,People - Social Care Community Purchasing,Third Party Payments - Private Contractors,03/12/2021,11329831,"12,800.00",Revenue,1001105,Prestige Nursing Ltd
Shropshire,00GG,People - Social Care Community Purchasing,Third Party Payments - Private Contractors,03/12/2021,11329832,"2,982.00",Revenue,1001105,Prestige Nursing Ltd
Shropshire,00GG,Place - Outdoor Partnerships,Premises-Related Expenditure - Repairs alterations and maintenance of buildings,03/12/2021,3286522,"2,758.98",Revenue,1001529,Hales Sawmills Ltd
Shropshire,00GG,People - Early Help General,Supplies & Services - Equipment Furniture and Materials,03/12/2021,3286059,"1,077.95",Revenue,1001656,Back Care Solutions Limited
Shropshire,00GG,People - Care Management - Assistive Equipment & Technology,Premises-Related Expenditure - Repairs alterations and maintenance of buildings,03/12/2021,11330886,"2,331.31",Revenue,1001663,Lift & Engineering Services Ltd
Shropshire,00GG,Place - Corporate Landlord - Adult Services,Premises-Related Expenditure - Repairs alterations and maintenance of buildings,03/12/2021,11330886,40.20,Revenue,1001663,Lift & Engineering Services Ltd
Shropshire,00GG,Place - Environment and Transport (Parking),Supplies & Services - Equipment Furniture and Materials,03/12/2021,3286564,"10,524.20",Revenue,1001797,Flowbird
Shropshire,00GG,People - Placements: Residential Placements,Third Party Payments - Other Establishments,03/12/2021,11332181,"23,485.71",Revenue,1002017,Bryn Melyn Care Ltd
Shropshire,00GG,Resources - Print & Post Services,Supplies & Services - Printing Stationery and General Office Expenses,03/12/2021,3287419,754.48,Revenue,1002095,Ricoh Uk Ltd
Shropshire,00GG,Resources - Print & Post Services,Supplies & Services - Printing Stationery and General Office Expenses,03/12/2021,3287437,"2,908.67",Revenue,1002095,Ricoh Uk Ltd
Shropshire,00GG,Resources - Print & Post Services,Supplies & Services - Printing Stationery and General Office Expenses,03/12/2021,3287445,529.50,Revenue,1002095,Ricoh Uk Ltd
Shropshire,00GG,Resources - Print & Post Services,Supplies & Services - Printing Stationery and General Office Expenses,03/12/2021,3287456,487.95,Revenue,1002095,Ricoh Uk Ltd
Shropshire,00GG,People - Social Care Community Purchasing,Third Party Payments - Private Contractors,03/12/2021,11330816,"2,747.25",Revenue,1002214,Condover College Ltd
Shropshire,00GG,People - Social Care Community Purchasing,Third Party Payments - Private Contractors,03/12/2021,11330817,"3,574.50",Revenue,1002214,Condover College Ltd
Shropshire,00GG,People - Social Care Community Purchasing,Third Party Payments - Private Contractors,03/12/2021,11331732,971.25,Revenue,1002214,Condover College Ltd
Shropshire,00GG,People - Social Care Community Purchasing,Third Party Payments - Private Contractors,03/12/2021,11331733,"2,250.00",Revenue,1002214,Condover College Ltd
Shropshire,00GG,People - Social Care Community Purchasing,Third Party Payments - Private Contractors,03/12/2021,11331735,"3,000.00",Revenue,1002214,Condover College Ltd
Shropshire,00GG,Place - Theatre Services,Supplies & Services - Catering,03/12/2021,3286618,"3,319.37",Revenue,1002559,Matthew Clark Wholesale Ltd
Shropshire,00GG,Place - Highways and Transport,Expenditure - Below the Line - Levies,03/12/2021,3292567,"7,719.68",Revenue,1002704,Melverley Internal Drainage Board
Shropshire,00GG,Place - Planning Services,Employees - Indirect Employee Expenses,03/12/2021,3292533,750.00,Revenue,1002738,District Surveyors Association Limited t/a LABC
Shropshire,00GG,Place - Planning Services,Employees - Indirect Employee Expenses,03/12/2021,3292537,750.00,Revenue,1002738,District Surveyors Association Limited t/a LABC
Shropshire,00GG,Place - Planning Services,Employees - Indirect Employee Expenses,03/12/2021,3292552,975.00,Revenue,1002738,District Surveyors Association Limited t/a LABC
Shropshire,00GG,People - Special Educational Needs & Disability,Third Party Payments - Other Establishments,03/12/2021,3292626,"9,366.67",Revenue,1002739,Bettws Lifehouse Ltd
Shropshire,00GG,Children's Services - Special Educational Needs & Disability,Third Party Payments - Other Establishments,03/12/2021,3293003,"6,966.67",Revenue,1002739,Bettws Lifehouse Ltd
Shropshire,00GG,People - Special Educational Needs & Disability,Third Party Payments - Other Establishments,03/12/2021,3293014,"6,966.67",Revenue,1002739,Bettws Lifehouse Ltd
Shropshire,00GG,People - Special Educational Needs & Disability,Third Party Payments - Other Establishments,03/12/2021,3293017,"6,966.67",Revenue,1002739,Bettws Lifehouse Ltd
Shropshire,00GG,Corporate Budgets - Corporate & Democratic Core,Supplies & Services - Services,03/12/2021,3293001,"7,568.00",Revenue,1002870,Grant Thornton Uk Llp
Shropshire,00GG,People - Housing Options,Supplies & Services - Services,03/12/2021,3286969,"3,150.00",Revenue,1002921,The Wrekin Housing Group Ltd
Shropshire,00GG,People - Housing Options,Supplies & Services - Services,03/12/2021,3286977,"2,400.00",Revenue,1002921,The Wrekin Housing Group Ltd
Shropshire,00GG,People - Housing Options,Supplies & Services - Services,03/12/2021,3286988,"2,370.00",Revenue,1002921,The Wrekin Housing Group Ltd
Shropshire,00GG,People - Housing Options,Supplies & Services - Services,03/12/2021,3286999,"2,400.00",Revenue,1002921,The Wrekin Housing Group Ltd
Shropshire,00GG,People - Housing Options,Supplies & Services - Services,03/12/2021,3287003,"3,000.00",Revenue,1002921,The Wrekin Housing Group Ltd
Shropshire,00GG,People - Housing Options,Supplies & Services - Services,03/12/2021,3287005,"2,400.00",Revenue,1002921,The Wrekin Housing Group Ltd
Shropshire,00GG,People - Housing Options,Supplies & Services - Services,03/12/2021,3287020,"2,370.00",Revenue,1002921,The Wrekin Housing Group Ltd
Shropshire,00GG,People - Housing Options,Supplies & Services - Services,03/12/2021,3287022,"3,000.00",Revenue,1002921,The Wrekin Housing Group Ltd
Shropshire,00GG,Place - Planning Services,Supplies & Services - Services,03/12/2021,3290791,"1,275.00",Revenue,1002961,Sc Land Registry Imp A/C
Shropshire,00GG,People - Early Help General,Third Party Payments - Private Contractors,03/12/2021,3287707,"16,633.10",Revenue,1003078,Midlands Partnership Nhs Foundation Trust
Shropshire,00GG,Adult Services - Professional Development Unit,Supplies & Services - Services,03/12/2021,3291572,555.00,Revenue,1003145,University Of Chester
Shropshire,00GG,People - Non-Delegated Primary DSG,Premises-Related Expenditure - Repairs alterations and maintenance of buildings,03/12/2021,11331560,580.50,Revenue,1003602,HSL Compliance Limited
Shropshire,00GG,Place - Corporate Landlord - Adult Services,Premises-Related Expenditure - Energy Costs,03/12/2021,3292211,"3,271.62",Revenue,1003705,West Mercia Energy
Shropshire,00GG,Place - Shire Catering,Supplies & Services - Services,03/12/2021,3286596,"2,000.00",Revenue,1003802,Four Stones Mat King Charles I School
Shropshire,00GG,Place - Highways (Bridges and Structures),Expenditure - Below the Line - Levies,03/12/2021,3293000,588.92,Revenue,1003975,Rea Internal Drainage Board
Shropshire,00GG,Place - Highways and Transport,Expenditure - Below the Line - Levies,03/12/2021,3293016,559.02,Revenue,1003975,Rea Internal Drainage Board
Shropshire,00GG,Place - Theatre Services,Third Party Payments - Private Contractors,03/12/2021,3286807,541.33,Revenue,1004058,Cinemalive Limited
Shropshire,00GG,Place - Corporate Landlord - Children's Services,Premises-Related Expenditure - Repairs alterations and maintenance of buildings,03/12/2021,11330877,"1,052.22",Revenue,1004103,Walker Fire (Uk) Ltd
Shropshire,00GG,People - Home to School Transport,Transport-Related Expenditure - Contract Hire and Operating Leases,03/12/2021,3286376,600.00,Revenue,1004382,ABC Cars Group Ltd T/A ABC Cars
Shropshire,00GG,People - Care Management - Transport,Transport-Related Expenditure - Contract Hire and Operating Leases,03/12/2021,3286542,864.00,Revenue,1004382,ABC Cars Group Ltd T/A ABC Cars
Shropshire,00GG,People - Home to School Transport,Transport-Related Expenditure - Contract Hire and Operating Leases,03/12/2021,3286555,900.00,Revenue,1004382,ABC Cars Group Ltd T/A ABC Cars
Shropshire,00GG,People - Special Educational Needs & Disability,Supplies & Services - Services,03/12/2021,3289156,"2,464.54",Revenue,1004644,Amica Coleman
Shropshire,00GG,People - Care Management - Transport,Transport-Related Expenditure - Contract Hire and Operating Leases,03/12/2021,3292176,792.00,Revenue,1004724,Swan Cabs Limited
Shropshire,00GG,People - Care Management - Transport,Transport-Related Expenditure - Contract Hire and Operating Leases,03/12/2021,3292198,504.00,Revenue,1004724,Swan Cabs Limited
Shropshire,00GG,People - Internal Providers - Nursing Services,Employees - Direct Employee Expenses,03/12/2021,3287563,"3,312.72",Revenue,1004799,Newcross Healthcare Solutions
Shropshire,00GG,Place - Shire Catering,Supplies & Services - Equipment Furniture and Materials,03/12/2021,3291546,950.10,Revenue,1005013,Nobisco Limited
Shropshire,00GG,Place - Corporate Landlord - Mardol House & Tannery,Premises-Related Expenditure - Repairs alterations and maintenance of buildings,03/12/2021,11332594,496.00,Revenue,1005068,Tuke And Bell Ltd
Shropshire,00GG,Place - Highways (Bridges and Structures),Third Party Payments - Private Contractors,03/12/2021,3287596,470.00,Revenue,1005095,Hydro-Logic Services (International) Ltd
Shropshire,00GG,Resources - Legal Services � Child Care,Employees - Direct Employee Expenses,03/12/2021,3287033,737.50,Revenue,1005215,The Oyster Partnership Ltd
Shropshire,00GG,Place - Planning Services,Employees - Direct Employee Expenses,03/12/2021,3287043,645.00,Revenue,1005215,The Oyster Partnership Ltd
Shropshire,00GG,Resources - Legal Services � Child Care,Employees - Direct Employee Expenses,03/12/2021,3287050,740.00,Revenue,1005215,The Oyster Partnership Ltd
Shropshire,00GG,Resources - Legal Services � Child Care,Employees - Direct Employee Expenses,03/12/2021,3287061,"2,156.88",Revenue,1005215,The Oyster Partnership Ltd
Shropshire,00GG,People - Social Care Hospital Interface Purchasing,Third Party Payments - Private Contractors,03/12/2021,11331731,883.20,Revenue,1005253,Outcome Care And Support Ltd
Shropshire,00GG,People - Social Care Hospital Interface Purchasing,Third Party Payments - Private Contractors,03/12/2021,11329829,789.72,Revenue,1005586,Care Cover 24/7 Ltd
Shropshire,00GG,People - Social Care Hospital Interface Purchasing,Third Party Payments - Private Contractors,03/12/2021,11329830,"2,400.00",Revenue,1005586,Care Cover 24/7 Ltd
Shropshire,00GG,People - Placements: Placement Staffing,Employees - Direct Employee Expenses,03/12/2021,3286165,"2,518.96",Revenue,1005988,NonStop Consulting Ltd
Shropshire,00GG,Resources - Legal Services � Child Care,Supplies & Services - Services,03/12/2021,3285235,950.00,Revenue,1007429,Julia Bond
Shropshire,00GG,People - Independent Living,Third Party Payments - Private Contractors,03/12/2021,3284829,"2,666.67",Revenue,1007813,Bromford Carinthia Housing Association L
Shropshire,00GG,People - Independent Living,Third Party Payments - Private Contractors,03/12/2021,3284833,"2,968.92",Revenue,1007813,Bromford Carinthia Housing Association L
Shropshire,00GG,People - Early Years,Third Party Payments - Other Establishments,03/12/2021,3292601,"7,500.00",Revenue,1008333,Church Preen Pre-School
Shropshire,00GG,People - Early Years,Third Party Payments - Other Establishments,03/12/2021,3292103,714.36,Revenue,1008446,Burford Preschool C.I.C.
Shropshire,00GG,People - Early Years,Third Party Payments - Other Establishments,03/12/2021,3292355,611.05,Revenue,1008518,Poppets (Bridgnorth) Limited
Shropshire,00GG,Capital - Adult Social Care Operations Capital,Non Revenue - Non Revenue,03/12/2021,11333482,679.55,Capital,1008604,Pp Electrical Services (Shropshire) Ltd
Shropshire,00GG,Place - Corporate Landlord -  Highways,Premises-Related Expenditure - Repairs alterations and maintenance of buildings,03/12/2021,11333492,483.60,Revenue,1008604,Pp Electrical Services (Shropshire) Ltd
Shropshire,00GG,Capital - Corporate Landlord Capital,Non Revenue - Non Revenue,03/12/2021,3288020,"25,877.40",Capital,1008613,Dr E Contractors Ltd
Shropshire,00GG,People - Independent Living,Third Party Payments - Private Contractors,03/12/2021,3283150,"4,094.86",Revenue,1008670,Shrewsbury Homes For All
Shropshire,00GG,Capital - Housing Services Capital,Non Revenue - Non Revenue,03/12/2021,3292195,"1,150.00",Capital,1009035,W S Building Services (Shropshire) Ltd
Shropshire,00GG,Capital - Housing Services Capital,Non Revenue - Non Revenue,03/12/2021,3292593,"3,800.00",Capital,1009278,Candor Care Limited
Shropshire,00GG,Place - Highways (Operations),Third Party Payments - Private Contractors,03/12/2021,3286493,"2,275.00",Revenue,1009686,Metdesk Limited
Shropshire,00GG,Health and Wellbeing - Regulatory Services,Supplies & Services - Services,03/12/2021,3287747,"1,600.00",Revenue,1009709,St Ives Chambers Fees Account
Shropshire,00GG,Resources - Legal Services � Child Care,Supplies & Services - Services,03/12/2021,3286633,700.00,Revenue,1010036,Nicola Mcintosh
Shropshire,00GG,People - Social Care Hospital Interface Purchasing,Third Party Payments - Private Contractors,03/12/2021,11330520,"5,400.00",Revenue,1010117,Invest In Care (T/A Brialyn Ltd (I.C.S)
Shropshire,00GG,People - Social Care Hospital Interface Purchasing,Third Party Payments - Private Contractors,03/12/2021,11330521,"6,557.14",Revenue,1010117,Invest In Care (T/A Brialyn Ltd (I.C.S)
Shropshire,00GG,People - Social Care Hospital Interface Purchasing,Third Party Payments - Private Contractors,03/12/2021,11330522,"10,402.28",Revenue,1010117,Invest In Care (T/A Brialyn Ltd (I.C.S)
Shropshire,00GG,Place - Theatre Services,Third Party Payments - Private Contractors,03/12/2021,3292510,"4,358.55",Revenue,1010879,A Way With Media Productions Ltd
Shropshire,00GG,People - Placements: Residential Placements,Third Party Payments - Other Establishments,03/12/2021,11332180,"26,490.86",Revenue,1011151,Hopedale House
Shropshire,00GG,Place - Museums & Archives,Supplies & Services - Equipment Furniture and Materials,03/12/2021,3288402,513.73,Revenue,1011841,Bookspeed
Shropshire,00GG,People - Social Care Mental Health Purchasing,Transfer Payments - Adult Social Services Clients,03/12/2021,11333804,"1,410.56",Revenue,1012058,Sophie Noel
Shropshire,00GG,Resources - Finance,Non Revenue - Non Revenue,03/12/2021,3286407,550.00,Revenue,1013121,Hampshire County Council
Shropshire,00GG,Place - Corporate Landlord - Leisure,Premises-Related Expenditure - Repairs alterations and maintenance of buildings,03/12/2021,11330467,724.56,Revenue,1013165,PTSG Electrical Services Ltd
Shropshire,00GG,Place - Corporate Landlord - Leisure,Premises-Related Expenditure - Repairs alterations and maintenance of buildings,03/12/2021,3291780,"9,123.00",Revenue,1014012,Henry Williams And Son (Roads) Ltd
Shropshire,00GG,Resources - Legal Services � Child Care,Supplies & Services - Services,03/12/2021,3288710,800.00,Revenue,1014187,Daniel Dodd
Shropshire,00GG,Resources - Legal Services � Child Care,Supplies & Services - Services,03/12/2021,3290126,"1,600.00",Revenue,1014187,Daniel Dodd
Shropshire,00GG,Place - Economic Growth,Supplies & Services - Services,03/12/2021,3286497,469.00,Revenue,1014806,Shrewsbury Town Football Club Ltd
Shropshire,00GG,Resources - Legal Services,Supplies & Services - Services,03/12/2021,3288687,850.00,Revenue,1015524,Avril Rushe
Shropshire,00GG,People - Social Care Community Purchasing,Third Party Payments - Private Contractors,03/12/2021,11329834,520.05,Revenue,1017410,Allied Health Services Limited
Shropshire,00GG,People - Social Care Community Purchasing,Third Party Payments - Private Contractors,03/12/2021,11329835,615.60,Revenue,1017410,Allied Health Services Limited
Shropshire,00GG,People - Social Care Community Purchasing,Third Party Payments - Private Contractors,03/12/2021,11329836,"2,611.20",Revenue,1017410,Allied Health Services Limited
Shropshire,00GG,Capital - Primary School Capital,Non Revenue - Non Revenue,06/12/2021,3293170,674.00,Capital,1000173,Ian Gibbons Building Maintenance Special
Shropshire,00GG,Capital - Highways Capital,Non Revenue - Non Revenue,06/12/2021,3293363,"21,689.00",Capital,1000347,Staffordshire County Council
Shropshire,00GG,People - Social Care Community Purchasing,Third Party Payments - Private Contractors,06/12/2021,11334061,"6,286.33",Revenue,1000701,The Strettons Mayfair Trust
Shropshire,00GG,Resources - ICT Services,Supplies & Services - Communications and Computing,06/12/2021,3287329,"3,142.90",Revenue,1000726,Stoneleigh Consultancy Ltd
Shropshire,00GG,Children's Services - Home to School Transport,Transport-Related Expenditure - Contract Hire and Operating Leases,06/12/2021,3275864,"3,642.00",Revenue,1001309,Whittle Coach & Bus Ltd
Shropshire,00GG,Children's Services - Home to School Transport,Transport-Related Expenditure - Contract Hire and Operating Leases,06/12/2021,3275906,"3,150.00",Revenue,1001309,Whittle Coach & Bus Ltd
Shropshire,00GG,People - Home to School Transport,Transport-Related Expenditure - Contract Hire and Operating Leases,06/12/2021,3284293,"2,625.00",Revenue,1001309,Whittle Coach & Bus Ltd
Shropshire,00GG,People - Home to School Transport,Transport-Related Expenditure - Contract Hire and Operating Leases,06/12/2021,3284358,"2,731.50",Revenue,1001309,Whittle Coach & Bus Ltd
Shropshire,00GG,Resources - ICT Services,Supplies & Services - Communications and Computing,06/12/2021,3286193,870.68,Revenue,1001651,Ccs Media
Shropshire,00GG,Place - Shire Catering,Supplies & Services - Services,06/12/2021,3290567,984.68,Revenue,1001678,Security Plus + Limited
Shropshire,00GG,Workforce and Transformation - ICT Services,Supplies & Services - Communications and Computing,06/12/2021,3293319,625.00,Revenue,1001696,Microvideo-Shrewsbury Ltd
Shropshire,00GG,Adult Services - Registrars and Coroners,Supplies & Services - Communications and Computing,06/12/2021,3278990,"6,781.44",Revenue,1001748,Zipporah Ltd
Shropshire,00GG,Adult Services - Registrars and Coroners,Supplies & Services - Communications and Computing,06/12/2021,3290334,"5,100.00",Revenue,1001748,Zipporah Ltd
Shropshire,00GG,People - Housing Options,Supplies & Services - Services,06/12/2021,3293154,"1,890.00",Revenue,1002000,The Raven Hotel
Shropshire,00GG,Resources - Print & Post Services,Supplies & Services - Printing Stationery and General Office Expenses,06/12/2021,3287443,960.03,Revenue,1002095,Ricoh Uk Ltd
Shropshire,00GG,People - Special Educational Needs & Disability,Third Party Payments - Other Establishments,06/12/2021,3293074,"6,966.67",Revenue,1002739,Bettws Lifehouse Ltd
Shropshire,00GG,People - Special Educational Needs & Disability,Third Party Payments - Other Establishments,06/12/2021,3293093,"6,966.67",Revenue,1002739,Bettws Lifehouse Ltd
Shropshire,00GG,Children's Services - Home to School Transport,Transport-Related Expenditure - Contract Hire and Operating Leases,06/12/2021,3278785,"3,038.00",Revenue,1003978,Shrewsbury Taxi Service
Shropshire,00GG,People - Care Management - Transport,Transport-Related Expenditure - Contract Hire and Operating Leases,06/12/2021,3292270,672.00,Revenue,1004724,Swan Cabs Limited
Shropshire,00GG,Place - Trading Standards & Licensing,Supplies & Services - Services,06/12/2021,3293229,936.93,Revenue,1005559,Medivet Shrewsbury
Shropshire,00GG,Place - Theatre Services,Third Party Payments - Private Contractors,06/12/2021,3293392,"6,492.39",Revenue,1006425,Darkside Floyd Show Ltd
Shropshire,00GG,People - Special Educational Needs & Disability,Third Party Payments - Other Establishments,06/12/2021,3293133,800.00,Revenue,1008463,Katies Kids Limited
Shropshire,00GG,People - Early Years,Third Party Payments - Other Establishments,06/12/2021,3293098,"3,900.00",Revenue,1008509,Ellesmere Primary School
Shropshire,00GG,Place - Corporate Landlord - Libraries,Premises-Related Expenditure - Repairs alterations and maintenance of buildings,06/12/2021,11334125,"4,773.61",Revenue,1008557,Advanced Wastewater & Drainage Limited
Shropshire,00GG,Place - Corporate Landlord - Admin Buildings,Premises-Related Expenditure - Repairs alterations and maintenance of buildings,06/12/2021,11334096,708.36,Revenue,1008574,Taylors Mechanical Ltd
Shropshire,00GG,People - Housing Options,Premises-Related Expenditure - Repairs alterations and maintenance of buildings,06/12/2021,11334092,524.01,Revenue,1008604,Pp Electrical Services (Shropshire) Ltd
Shropshire,00GG,Place - Shire Catering,Income - Customer and Client Receipts,06/12/2021,3292971,"3,646.14",Revenue,1008887,Barrow 1618 Free School
Shropshire,00GG,People - Housing Options,Premises-Related Expenditure - Repairs alterations and maintenance of buildings,06/12/2021,11334089,857.90,Revenue,1009380,MEB Total Limited
Shropshire,00GG,People - Special Educational Needs & Disability,Supplies & Services - Services,06/12/2021,3293367,"2,361.30",Revenue,1010386,Embrace Physical Education Ltd
Shropshire,00GG,Adult Services - Housing Options,Premises-Related Expenditure - Repairs alterations and maintenance of buildings,06/12/2021,11334095,671.40,Revenue,1012439,TRJL Contracts
Shropshire,00GG,People - Housing Options,Supplies & Services - Services,06/12/2021,3293125,"2,035.00",Revenue,1012682,Little Pub Company (Oswestry) Ltd  TA Railway Inn
Shropshire,00GG,Children's Services - Special Educational Needs & Disability,Third Party Payments - Other Establishments,06/12/2021,3293235,588.00,Revenue,1014622,The Royal National College For The Blind
Shropshire,00GG,Resources - ICT Services,Supplies & Services - Communications and Computing,06/12/2021,3293013,"10,881.62",Revenue,1014784,Ee Limited
Shropshire,00GG,People - Social Care Hospital Interface Purchasing,Third Party Payments - Private Contractors,06/12/2021,11330523,528.00,Revenue,1017407,Snowdrop Home Care Ltd
Shropshire,00GG,People - Social Care Hospital Interface Purchasing,Third Party Payments - Private Contractors,06/12/2021,11332922,"2,203.20",Revenue,1017407,Snowdrop Home Care Ltd
Shropshire,00GG,Capital - Unallocated School Capital,Non Revenue - Non Revenue,07/12/2021,11334528,"20,471.56",Capital,1000128,R G Edwards & Co Ltd
Shropshire,00GG,People - Projects,Supplies & Services - Grants and Subscriptions,07/12/2021,11334587,"5,585.73",Revenue,1000163,Have A Care
Shropshire,00GG,People - Projects,Supplies & Services - Grants and Subscriptions,07/12/2021,11334595,"2,907.64",Revenue,1000404,Care At Home
Shropshire,00GG,People - Projects,Supplies & Services - Grants and Subscriptions,07/12/2021,11334619,"3,366.74",Revenue,1000484,Radis Community Care
Shropshire,00GG,People - Projects,Supplies & Services - Grants and Subscriptions,07/12/2021,11334657,"6,618.25",Revenue,1000537,Trident Reach The People Charity
Shropshire,00GG,People - Projects,Supplies & Services - Grants and Subscriptions,07/12/2021,11334704,"2,877.50",Revenue,1000537,Trident Reach The People Charity
Shropshire,00GG,Place - Corporate Landlord - Admin Buildings,Premises-Related Expenditure - Repairs alterations and maintenance of buildings,07/12/2021,11334509,470.24,Revenue,1000752,Window & Door Contract Services
Shropshire,00GG,Place - Shire Catering,Supplies & Services - Equipment Furniture and Materials,07/12/2021,3293929,45.00,Revenue,1000769,The Little Food Company Limited
Shropshire,00GG,Place - Shire Catering,Supplies & Services - Catering,07/12/2021,3293929,"1,687.40",Revenue,1000769,The Little Food Company Limited
Shropshire,00GG,Place - Corporate Landlord - Museums & Culture,Premises-Related Expenditure - Cleaning and domestic supplies,07/12/2021,3290148,434.79,Revenue,1000791,Veolia Es (Uk) Ltd
Shropshire,00GG,Place - Shire Catering,Supplies & Services - Catering,07/12/2021,3290437,"1,159.62",Revenue,1000926,Options Management
Shropshire,00GG,Place - Shire Catering,Supplies & Services - Catering,07/12/2021,3290442,963.00,Revenue,1000926,Options Management
Shropshire,00GG,Place - Shire Catering,Supplies & Services - Catering,07/12/2021,3292341,878.12,Revenue,1000926,Options Management
Shropshire,00GG,Adult Services - Social Care Community Purchasing,Third Party Payments - Private Contractors,07/12/2021,11334436,"32,557.34",Revenue,1001408,Derwen College
Shropshire,00GG,Children's Services - Home to School Transport,Transport-Related Expenditure - Contract Hire and Operating Leases,07/12/2021,3293725,"2,180.00",Revenue,1001830,Roddy Doran
Shropshire,00GG,People - Children�s Case Management,Third Party Payments - Transport Operators,07/12/2021,3281093,34.20,Revenue,1002727,Rsp Rail Travel Account
Shropshire,00GG,People - Disabled Children's Team,Transport-Related Expenditure - Public Transport,07/12/2021,3281093,108.50,Revenue,1002727,Rsp Rail Travel Account
Shropshire,00GG,People - Compass & Assesment,Transport-Related Expenditure - Public Transport,07/12/2021,3281093,7.60,Revenue,1002727,Rsp Rail Travel Account
Shropshire,00GG,People - Placements: Foster Care,Transport-Related Expenditure - Public Transport,07/12/2021,3281093,610.20,Revenue,1002727,Rsp Rail Travel Account
Shropshire,00GG,People - Special Educational Needs & Disability,Third Party Payments - Other Establishments,07/12/2021,3293070,"6,966.67",Revenue,1002739,Bettws Lifehouse Ltd
Shropshire,00GG,Place - Corporate Landlord - Museums & Culture,Premises-Related Expenditure - Repairs alterations and maintenance of buildings,07/12/2021,11334525,"6,440.00",Revenue,1002914,Aib Solutions Ltd
Shropshire,00GG,Place - Shire Catering,Supplies & Services - Catering,07/12/2021,3293866,701.00,Revenue,1002955,Theos Food Service Ltd
Shropshire,00GG,Place - Highways (Operations),Third Party Payments - Private Contractors,07/12/2021,3287467,"1,160.00",Revenue,1003236,A Clayton Contracting Ltd
Shropshire,00GG,Place - Highways (Operations),Third Party Payments - Private Contractors,07/12/2021,3287475,"1,160.00",Revenue,1003236,A Clayton Contracting Ltd
Shropshire,00GG,Place - Corporate Landlord - Libraries,Premises-Related Expenditure - Repairs alterations and maintenance of buildings,07/12/2021,11334505,876.00,Revenue,1003602,HSL Compliance Limited
Shropshire,00GG,Resources - Print & Post Services,Supplies & Services - Communications and Computing,07/12/2021,3287468,"5,856.37",Revenue,1003729,Whistl North Limited
Shropshire,00GG,People - Care Management - Transport,Transport-Related Expenditure - Contract Hire and Operating Leases,07/12/2021,3293528,594.72,Revenue,1004685,Personal redaction
Shropshire,00GG,People - People Directorate Management,Employees - Direct Employee Expenses,07/12/2021,3287142,"3,928.56",Revenue,1005052,Hampton'S Resourcing
Shropshire,00GG,Adult Services - Social Care Hospital Interface Purchasing,Third Party Payments - Private Contractors,07/12/2021,11334437,"1,098.72",Revenue,1005098,Veraty Care Solutions Ltd
Shropshire,00GG,Place - Environment and Transport (Public Transport),Transport-Related Expenditure - Direct Transport Costs,07/12/2021,3288521,"7,441.86",Revenue,1006053,Uk Fuels Limited
Shropshire,00GG,Place - Environment and Transport (Strategic),Supplies & Services - Services,07/12/2021,3293562,"20,671.25",Revenue,1006124,Learncycling
Shropshire,00GG,People - Projects,Supplies & Services - Grants and Subscriptions,07/12/2021,11334632,"6,330.50",Revenue,1007823,Alexandra House
Shropshire,00GG,People - Projects,Supplies & Services - Grants and Subscriptions,07/12/2021,11334699,"23,307.75",Revenue,1007826,The Uplands At Oxon
Shropshire,00GG,People - Projects,Supplies & Services - Grants and Subscriptions,07/12/2021,11334693,"16,689.50",Revenue,1007827,Mount House Residential Home
Shropshire,00GG,People - Projects,Supplies & Services - Grants and Subscriptions,07/12/2021,11334676,"8,632.49",Revenue,1007828,Llysfield Nursing Home Ltd
Shropshire,00GG,People - Projects,Supplies & Services - Grants and Subscriptions,07/12/2021,11334672,"12,373.25",Revenue,1007829,English Care Ltd - Lady Forester Nursing Home
Shropshire,00GG,People - Projects,Supplies & Services - Grants and Subscriptions,07/12/2021,11334666,"16,401.75",Revenue,1007830,Holy Cross Care Homes Ltd
Shropshire,00GG,People - Projects,Supplies & Services - Grants and Subscriptions,07/12/2021,11334647,"29,062.74",Revenue,1007832,Holy Cross Care Home Ltd
Shropshire,00GG,People - Projects,Supplies & Services - Grants and Subscriptions,07/12/2021,11334692,"20,718.00",Revenue,1007834,Ferns Residential Home
Shropshire,00GG,People - Projects,Supplies & Services - Grants and Subscriptions,07/12/2021,11334702,"10,934.50",Revenue,1007837,Springcare T/A Weston House
Shropshire,00GG,People - Projects,Supplies & Services - Grants and Subscriptions,07/12/2021,11334652,"7,769.25",Revenue,1007838,Cliffdale Ltd
Shropshire,00GG,People - Projects,Supplies & Services - Grants and Subscriptions,07/12/2021,11334677,"10,071.25",Revenue,1007839,Lymehurst Residential Home
Shropshire,00GG,People - Projects,Supplies & Services - Grants and Subscriptions,07/12/2021,11334633,"12,948.75",Revenue,1007840,Arden Grange Residential Care Home
Shropshire,00GG,People - Projects,Supplies & Services - Grants and Subscriptions,07/12/2021,11334710,"18,991.50",Revenue,1007841,St Philips Care Caledonia Ltd
Shropshire,00GG,People - Projects,Supplies & Services - Grants and Subscriptions,07/12/2021,11334665,"14,675.25",Revenue,1007843,Hinstock Manor Residential Home Ltd
Shropshire,00GG,People - Projects,Supplies & Services - Grants and Subscriptions,07/12/2021,11334653,"10,934.50",Revenue,1007844,Danesford Grange Care Home
Shropshire,00GG,People - Projects,Supplies & Services - Grants and Subscriptions,07/12/2021,11334683,"14,387.50",Revenue,1007845,Sure Care (Uk) Ltd
Shropshire,00GG,People - Projects,Supplies & Services - Grants and Subscriptions,07/12/2021,11334674,"12,948.75",Revenue,1007846,Landona House Ltd
Shropshire,00GG,People - Projects,Supplies & Services - Grants and Subscriptions,07/12/2021,11334649,"9,208.00",Revenue,1007847,Brook House
Shropshire,00GG,People - Projects,Supplies & Services - Grants and Subscriptions,07/12/2021,11334678,"12,948.75",Revenue,1007850,Maesbrook Care Home Ltd
Shropshire,00GG,People - Projects,Supplies & Services - Grants and Subscriptions,07/12/2021,11334707,"8,632.49",Revenue,1007851,Springcare (Yockleton) Limited
Shropshire,00GG,People - Projects,Supplies & Services - Grants and Subscriptions,07/12/2021,11334687,"24,746.50",Revenue,1007852,Radbrook Nursing Home
Shropshire,00GG,People - Projects,Supplies & Services - Grants and Subscriptions,07/12/2021,11334705,"10,934.50",Revenue,1007853,Woodland Residential Care Home Ltd
Shropshire,00GG,People - Projects,Supplies & Services - Grants and Subscriptions,07/12/2021,11334706,"4,316.25",Revenue,1007856,Fidelity Care Services T/A Woofferton
Shropshire,00GG,People - Projects,Supplies & Services - Grants and Subscriptions,07/12/2021,11334661,"6,042.75",Revenue,1007859,D Roche Ltd T/A Hartlands Rest Home
Shropshire,00GG,People - Projects,Supplies & Services - Grants and Subscriptions,07/12/2021,11334684,"39,709.50",Revenue,1007861,Oldbury Grange Nursing Home
Shropshire,00GG,People - Projects,Supplies & Services - Grants and Subscriptions,07/12/2021,11334654,"35,393.24",Revenue,1007863,Derwen Enterprise
Shropshire,00GG,People - Projects,Supplies & Services - Grants and Subscriptions,07/12/2021,11334668,"4,891.75",Revenue,1007865,Jubliee Villa
Shropshire,00GG,People - Projects,Supplies & Services - Grants and Subscriptions,07/12/2021,11334651,"13,812.00",Revenue,1007867,Cheswardine Hall
Shropshire,00GG,People - Projects,Supplies & Services - Grants and Subscriptions,07/12/2021,11334686,"20,718.00",Revenue,1007869,Barchester Healthcare
Shropshire,00GG,People - Projects,Supplies & Services - Grants and Subscriptions,07/12/2021,11334712,"6,618.25",Revenue,1007871,St Philips Care Trinity Ltd
Shropshire,00GG,People - Projects,Supplies & Services - Grants and Subscriptions,07/12/2021,11334682,"11,222.25",Revenue,1007872,Netherwood Care Home Ltd
Shropshire,00GG,People - Projects,Supplies & Services - Grants and Subscriptions,07/12/2021,11334688,"12,661.00",Revenue,1007874,Springcare (River Meadows) Ltd
Shropshire,00GG,People - Projects,Supplies & Services - Grants and Subscriptions,07/12/2021,11334662,"8,344.74",Revenue,1007875,High Lea House
Shropshire,00GG,People - Projects,Supplies & Services - Grants and Subscriptions,07/12/2021,11334658,"5,755.00",Revenue,1007880,Field House Residential Home
Shropshire,00GG,People - Projects,Supplies & Services - Grants and Subscriptions,07/12/2021,11334610,"1,377.30",Revenue,1007881,Pontesbury Project
Shropshire,00GG,People - Projects,Supplies & Services - Grants and Subscriptions,07/12/2021,11334703,"15,250.74",Revenue,1007884,The Wheatlands Residential Home
Shropshire,00GG,People - Projects,Supplies & Services - Grants and Subscriptions,07/12/2021,11334635,"12,373.25",Revenue,1007891,Coverage Care Ltd
Shropshire,00GG,People - Projects,Supplies & Services - Grants and Subscriptions,07/12/2021,11334639,"25,321.99",Revenue,1007892,Coverage Care Ltd
Shropshire,00GG,People - Projects,Supplies & Services - Grants and Subscriptions,07/12/2021,11334637,"23,883.25",Revenue,1007893,Coverage Care Ltd
Shropshire,00GG,People - Projects,Supplies & Services - Grants and Subscriptions,07/12/2021,11334640,"11,510.00",Revenue,1007894,Coverage Care Ltd
Shropshire,00GG,People - Projects,Supplies & Services - Grants and Subscriptions,07/12/2021,11334641,"14,387.50",Revenue,1007895,Coverage Care Ltd
Shropshire,00GG,People - Projects,Supplies & Services - Grants and Subscriptions,07/12/2021,11334650,"3,165.25",Revenue,1007897,Caradoc House
Shropshire,00GG,People - Projects,Supplies & Services - Grants and Subscriptions,07/12/2021,11334673,"4,028.50",Revenue,1007900,Lady Forester Respite Centre
Shropshire,00GG,People - Projects,Supplies & Services - Grants and Subscriptions,07/12/2021,11334629,"9,550.69",Revenue,1007901,English Care Ltd Ta Bowbrook House
Shropshire,00GG,People - Projects,Supplies & Services - Grants and Subscriptions,07/12/2021,11334696,"2,877.50",Revenue,1007905,The Old Vicarage
Shropshire,00GG,People - Projects,Supplies & Services - Grants and Subscriptions,07/12/2021,11334700,"14,962.99",Revenue,1007908,Vicarage Care Nursing Home
Shropshire,00GG,People - Projects,Supplies & Services - Grants and Subscriptions,07/12/2021,11334663,"4,604.00",Revenue,1007912,Castlehaven Care Ltd
Shropshire,00GG,People - Projects,Supplies & Services - Grants and Subscriptions,07/12/2021,11334605,"1,377.30",Revenue,1007915,Vision Homes Association
Shropshire,00GG,People - Projects,Supplies & Services - Grants and Subscriptions,07/12/2021,11334701,"8,632.50",Revenue,1007915,Vision Homes Association
Shropshire,00GG,People - Projects,Supplies & Services - Grants and Subscriptions,07/12/2021,11334642,"2,877.50",Revenue,1007922,Macintyre Care
Shropshire,00GG,People - Projects,Supplies & Services - Grants and Subscriptions,07/12/2021,11334659,"3,452.98",Revenue,1007922,Macintyre Care
Shropshire,00GG,People - Projects,Supplies & Services - Grants and Subscriptions,07/12/2021,11334644,"10,646.75",Revenue,1007925,Bower Grange
Shropshire,00GG,People - Projects,Supplies & Services - Grants and Subscriptions,07/12/2021,11334675,"1,726.49",Revenue,1007927,Prospects
Shropshire,00GG,People - Projects,Supplies & Services - Grants and Subscriptions,07/12/2021,11334600,"1,147.75",Revenue,1007929,Cerrig Camu Ltd
Shropshire,00GG,People - Projects,Supplies & Services - Grants and Subscriptions,07/12/2021,11334630,"25,435.29",Revenue,1007943,Condover College Ltd
Shropshire,00GG,People - Projects,Supplies & Services - Grants and Subscriptions,07/12/2021,11334681,"1,726.49",Revenue,1007950,Adelphi Care Services Ltd
Shropshire,00GG,People - Projects,Supplies & Services - Grants and Subscriptions,07/12/2021,11334645,"1,151.00",Revenue,1007955,Bethphage
Shropshire,00GG,People - Projects,Supplies & Services - Grants and Subscriptions,07/12/2021,11334646,"1,726.49",Revenue,1007955,Bethphage
Shropshire,00GG,People - Projects,Supplies & Services - Grants and Subscriptions,07/12/2021,11334664,"3,165.25",Revenue,1007964,Adelphi Care Services Ltd
Shropshire,00GG,People - Projects,Supplies & Services - Grants and Subscriptions,07/12/2021,11334680,"2,877.50",Revenue,1007964,Adelphi Care Services Ltd
Shropshire,00GG,People - Projects,Supplies & Services - Grants and Subscriptions,07/12/2021,11334697,"3,740.75",Revenue,1007967,Castlehaven Care Ltd
Shropshire,00GG,People - Projects,Supplies & Services - Grants and Subscriptions,07/12/2021,11334634,"1,438.75",Revenue,1007981,Coverage Care Services Ltd
Shropshire,00GG,People - Projects,Supplies & Services - Grants and Subscriptions,07/12/2021,11334667,"46,040.00",Revenue,1007985,Isle Court Nursing Home
Shropshire,00GG,People - Projects,Supplies & Services - Grants and Subscriptions,07/12/2021,11334691,"2,589.75",Revenue,1007994,The Coach House
Shropshire,00GG,People - Projects,Supplies & Services - Grants and Subscriptions,07/12/2021,11334689,"28,775.00",Revenue,1007996,Stretton Hall Nursing Home
Shropshire,00GG,People - Projects,Supplies & Services - Grants and Subscriptions,07/12/2021,11334636,"21,581.24",Revenue,1008005,Coverage Care Greenfields Care Home
Shropshire,00GG,People - Projects,Supplies & Services - Grants and Subscriptions,07/12/2021,11334583,"2,525.06",Revenue,1008009,Abbey Care Direct Ltd
Shropshire,00GG,People - Projects,Supplies & Services - Grants and Subscriptions,07/12/2021,11334631,"4,028.50",Revenue,1008009,Abbey Care Direct Ltd
Shropshire,00GG,People - Projects,Supplies & Services - Grants and Subscriptions,07/12/2021,11334604,"1,300.79",Revenue,1008011,Headway Shropshire (A.B.I.C.S)
Shropshire,00GG,People - Projects,Supplies & Services - Grants and Subscriptions,07/12/2021,11334618,"4,208.43",Revenue,1008012,Radfield Home Care
Shropshire,00GG,People - Projects,Supplies & Services - Grants and Subscriptions,07/12/2021,11334625,"9,641.13",Revenue,1008016,Surecare
Shropshire,00GG,People - Projects,Supplies & Services - Grants and Subscriptions,07/12/2021,11334591,"6,886.52",Revenue,1008018,Bethphage
Shropshire,00GG,People - Projects,Supplies & Services - Grants and Subscriptions,07/12/2021,11334620,"3,213.71",Revenue,1008019,Salopian Care Ltd
Shropshire,00GG,People - Projects,Supplies & Services - Grants and Subscriptions,07/12/2021,11334585,"4,208.43",Revenue,1008020,Allcare
Shropshire,00GG,People - Projects,Supplies & Services - Grants and Subscriptions,07/12/2021,11334586,"3,825.84",Revenue,1008026,Allenby Douglas Ltd
Shropshire,00GG,People - Projects,Supplies & Services - Grants and Subscriptions,07/12/2021,11334613,"4,361.46",Revenue,1008029,Oswestry Care
Shropshire,00GG,People - Projects,Supplies & Services - Grants and Subscriptions,07/12/2021,11334590,"4,208.43",Revenue,1008037,Battlefield Healthcare Ltd
Shropshire,00GG,People - Projects,Supplies & Services - Grants and Subscriptions,07/12/2021,11334592,"12,089.67",Revenue,1008038,Bluebird Care (Shropshire Care Ltd)
Shropshire,00GG,People - Projects,Supplies & Services - Grants and Subscriptions,07/12/2021,11334622,"4,591.01",Revenue,1008041,Perthyn
Shropshire,00GG,People - Projects,Supplies & Services - Grants and Subscriptions,07/12/2021,11334609,"2,831.12",Revenue,1008045,Macintyre Care
Shropshire,00GG,People - Projects,Supplies & Services - Grants and Subscriptions,07/12/2021,11334617,"3,978.88",Revenue,1008067,Quality Home Care Ltd
Shropshire,00GG,People - Projects,Supplies & Services - Grants and Subscriptions,07/12/2021,11334660,"17,265.00",Revenue,1008080,Hagley Place Care Home
Shropshire,00GG,People - Projects,Supplies & Services - Grants and Subscriptions,07/12/2021,11334584,"3,596.29",Revenue,1008083,Diamond Life Healthcare Ltd
Shropshire,00GG,People - Projects,Supplies & Services - Grants and Subscriptions,07/12/2021,11334690,"14,675.25",Revenue,1008090,The Cedars (Springcare Albrighton Ltd)
Shropshire,00GG,People - Projects,Supplies & Services - Grants and Subscriptions,07/12/2021,11334601,"1,147.75",Revenue,1008093,Drayton Home Care Services Ltd
Shropshire,00GG,People - Projects,Supplies & Services - Grants and Subscriptions,07/12/2021,11334596,"6,044.83",Revenue,1008096,Care Of Excellence Ltd
Shropshire,00GG,People - Projects,Supplies & Services - Grants and Subscriptions,07/12/2021,11334612,"2,065.96",Revenue,1008102,North Shropshire Home Care Ltd
Shropshire,00GG,People - Projects,Supplies & Services - Grants and Subscriptions,07/12/2021,11334695,"8,920.25",Revenue,1008119,The Old Rectory Care Home
Shropshire,00GG,People - Projects,Supplies & Services - Grants and Subscriptions,07/12/2021,11334648,"2,014.25",Revenue,1008122,Briery Lodge
Shropshire,00GG,People - Projects,Supplies & Services - Grants and Subscriptions,07/12/2021,11334614,"3,519.78",Revenue,1008135,Positive Steps Shropshire Ltd
Shropshire,00GG,People - Projects,Supplies & Services - Grants and Subscriptions,07/12/2021,11334608,612.13,Revenue,1008139,Leabrook Lodge
Shropshire,00GG,People - Projects,Supplies & Services - Grants and Subscriptions,07/12/2021,11334670,"4,028.50",Revenue,1008141,Kevindale Residential Home
Shropshire,00GG,People - Projects,Supplies & Services - Grants and Subscriptions,07/12/2021,11334626,"3,519.78",Revenue,1008170,Veraty Care Solutions Ltd
Shropshire,00GG,People - Projects,Supplies & Services - Grants and Subscriptions,07/12/2021,11334615,"6,733.48",Revenue,1008178,Priority Care (Shropshire) Ltd
Shropshire,00GG,People - Projects,Supplies & Services - Grants and Subscriptions,07/12/2021,11334597,535.62,Revenue,1008179,Care Kind
Shropshire,00GG,People - Projects,Supplies & Services - Grants and Subscriptions,07/12/2021,11334593,"2,678.09",Revenue,1008181,Brown Clee Care (Heywood Carers)
Shropshire,00GG,People - Projects,Supplies & Services - Grants and Subscriptions,07/12/2021,11334671,"11,510.00",Revenue,1008185,Sanctuarycare Kempsfield
Shropshire,00GG,People - Projects,Supplies & Services - Grants and Subscriptions,07/12/2021,11334623,688.65,Revenue,1008187,Slrc Trading Ltd
Shropshire,00GG,People - Projects,Supplies & Services - Grants and Subscriptions,07/12/2021,11334708,"1,683.38",Revenue,1008190,Optua Uk (Avenues Group)
Shropshire,00GG,People - Projects,Supplies & Services - Grants and Subscriptions,07/12/2021,11334599,"4,514.50",Revenue,1008215,C M Bespoke Care
Shropshire,00GG,People - Projects,Supplies & Services - Grants and Subscriptions,07/12/2021,11334627,"13,237.42",Revenue,1008218,Willow Home Care Ltd
Shropshire,00GG,People - Projects,Supplies & Services - Grants and Subscriptions,07/12/2021,11334603,"2,525.06",Revenue,1008224,Goodwood Homecare
Shropshire,00GG,People - Projects,Supplies & Services - Grants and Subscriptions,07/12/2021,11334638,"25,897.49",Revenue,1008232,Montgomery House
Shropshire,00GG,People - Projects,Supplies & Services - Grants and Subscriptions,07/12/2021,11334616,"4,437.98",Revenue,1008234,Quality Community Care Ltd
Shropshire,00GG,People - Projects,Supplies & Services - Grants and Subscriptions,07/12/2021,11334694,"6,906.00",Revenue,1008241,The New Barn (Care & Resolve Ltd)
Shropshire,00GG,People - Projects,Supplies & Services - Grants and Subscriptions,07/12/2021,11334698,"10,071.25",Revenue,1008275,Care Plus Staffordshire Ltd
Shropshire,00GG,People - Projects,Supplies & Services - Grants and Subscriptions,07/12/2021,11334656,"9,495.75",Revenue,1008284,Elmhurst Shropshire Ltd
Shropshire,00GG,Place - Property Services Group,Premises-Related Expenditure - Repairs alterations and maintenance of buildings,07/12/2021,11334548,"1,216.21",Revenue,1008557,Advanced Wastewater & Drainage Limited
Shropshire,00GG,Place - Corporate Landlord - Adult Services,Premises-Related Expenditure - Repairs alterations and maintenance of buildings,07/12/2021,11334551,"1,066.93",Revenue,1008557,Advanced Wastewater & Drainage Limited
Shropshire,00GG,Place - Corporate Landlord - Adult Services,Premises-Related Expenditure - Repairs alterations and maintenance of buildings,07/12/2021,11334576,290.50,Revenue,1008557,Advanced Wastewater & Drainage Limited
Shropshire,00GG,Place - Corporate Landlord -  Economic Development,Premises-Related Expenditure - Repairs alterations and maintenance of buildings,07/12/2021,11334576,832.50,Revenue,1008557,Advanced Wastewater & Drainage Limited
Shropshire,00GG,Place - Corporate Landlord - Admin Buildings,Premises-Related Expenditure - Repairs alterations and maintenance of buildings,07/12/2021,3293592,655.75,Revenue,1008560,M W D Services
Shropshire,00GG,People - Projects,Supplies & Services - Grants and Subscriptions,07/12/2021,11334607,"6,350.90",Revenue,1009726,La Petite Concierge Ltd
Shropshire,00GG,People - Projects,Supplies & Services - Grants and Subscriptions,07/12/2021,11334588,"6,733.48",Revenue,1009835,Approved Care And Support
Shropshire,00GG,People - Projects,Supplies & Services - Grants and Subscriptions,07/12/2021,11334669,"5,467.25",Revenue,1009845,Keegan'S Court Care Service Ltd
Shropshire,00GG,People - Projects,Supplies & Services - Grants and Subscriptions,07/12/2021,11334602,"3,290.23",Revenue,1011084,Forever Loving Care Limited
Shropshire,00GG,People - Projects,Supplies & Services - Grants and Subscriptions,07/12/2021,11334606,"8,799.44",Revenue,1011333,Willow Care North Shropshire Ltd
Shropshire,00GG,People - Projects,Supplies & Services - Grants and Subscriptions,07/12/2021,11334628,"3,290.23",Revenue,1011411,Wishing Well Home Care Services
Shropshire,00GG,People - Projects,Supplies & Services - Grants and Subscriptions,07/12/2021,11334589,"2,754.61",Revenue,1011485,Astar Homecare Services Ltd
Shropshire,00GG,People - Projects,Supplies & Services - Grants and Subscriptions,07/12/2021,11334624,"1,989.44",Revenue,1012527,Snowdrop Home Care Ltd
Shropshire,00GG,People - Projects,Supplies & Services - Grants and Subscriptions,07/12/2021,11334621,"3,978.88",Revenue,1012802,Sapphire Community Care Ltd
Shropshire,00GG,Place - Planning Services,Employees - Direct Employee Expenses,07/12/2021,3287041,"1,520.00",Revenue,1013010,Michael Davies - MPD Built Environment Consultants Limited
Shropshire,00GG,People - Projects,Supplies & Services - Grants and Subscriptions,07/12/2021,11334643,"1,726.50",Revenue,1014644,Voyage Care Rudgeley Road
Shropshire,00GG,Place - Climate Change,Supplies & Services - Grants and Subscriptions,07/12/2021,3286463,555.00,Revenue,1014806,Shrewsbury Town Football Club Ltd
Shropshire,00GG,People - Social Care Hospital Interface Purchasing,Third Party Payments - Private Contractors,07/12/2021,11330527,504.00,Revenue,1017407,Snowdrop Home Care Ltd
Shropshire,00GG,People - Social Care Hospital Interface Purchasing,Third Party Payments - Private Contractors,07/12/2021,11330535,"1,339.20",Revenue,1017407,Snowdrop Home Care Ltd
Shropshire,00GG,People - Social Care Hospital Interface Purchasing,Third Party Payments - Private Contractors,07/12/2021,11332924,"1,075.20",Revenue,1017407,Snowdrop Home Care Ltd
Shropshire,00GG,People - Children�s Case Management,Third Party Payments - Other Establishments,08/12/2021,3289852,535.00,Revenue,1000220,Arriva Midlands Ltd
Shropshire,00GG,Place - Highways (Operations),Supplies & Services - Services,08/12/2021,3286769,"11,265.28",Revenue,1000428,Compass Minerals Uk Limited
Shropshire,00GG,Place - Highways (Operations),Supplies & Services - Services,08/12/2021,3286785,"6,771.10",Revenue,1000428,Compass Minerals Uk Limited
Shropshire,00GG,People - Professional Development Unit,Supplies & Services - Services,08/12/2021,3286402,"1,992.00",Revenue,1000438,University Of Wolverhampton
Shropshire,00GG,People - Professional Development Unit,Supplies & Services - Services,08/12/2021,3286424,"1,992.00",Revenue,1000438,University Of Wolverhampton
Shropshire,00GG,People - Quality & Assurance: Learning & Development,Third Party Payments - Other Establishments,08/12/2021,3289424,"1,992.00",Revenue,1000438,University Of Wolverhampton
Shropshire,00GG,People - Quality & Assurance: Learning & Development,Third Party Payments - Other Establishments,08/12/2021,3289451,"1,992.00",Revenue,1000438,University Of Wolverhampton
Shropshire,00GG,People - Quality & Assurance: Learning & Development,Third Party Payments - Other Establishments,08/12/2021,3289492,"1,992.00",Revenue,1000438,University Of Wolverhampton
Shropshire,00GG,People - Quality & Assurance: Learning & Development,Third Party Payments - Other Establishments,08/12/2021,3289516,"1,992.00",Revenue,1000438,University Of Wolverhampton
Shropshire,00GG,Capital - Adult Social Care Operations Capital,Non Revenue - Non Revenue,08/12/2021,3288973,945.00,Capital,1000494,Edward Marcus Ltd
Shropshire,00GG,People - External Providers,Third Party Payments - Private Contractors,08/12/2021,3294571,"64,808.33",Revenue,1000946,Age UK (WIPS)
Shropshire,00GG,Children's Services - Placements: Residential Placements,Premises-Related Expenditure - Cleaning and domestic supplies,08/12/2021,3277018,-19.99,Revenue,1001027,SC Ifton House Imprest Account
Shropshire,00GG,Children's Services - Placements: Residential Placements,Supplies & Services - Equipment Furniture and Materials,08/12/2021,3277018,-486.62,Revenue,1001027,SC Ifton House Imprest Account
Shropshire,00GG,Children's Services - Placements: Residential Placements,Supplies & Services - Catering,08/12/2021,3277018,-435.68,Revenue,1001027,SC Ifton House Imprest Account
Shropshire,00GG,Children's Services - Placements: Residential Placements,Supplies & Services - Printing Stationery and General Office Expenses,08/12/2021,3277018,-9.74,Revenue,1001027,SC Ifton House Imprest Account
Shropshire,00GG,Children's Services - Placements: Residential Placements,Third Party Payments - Other Establishments,08/12/2021,3277018,-307.27,Revenue,1001027,SC Ifton House Imprest Account
Shropshire,00GG,Children's Services - Placements: Residential Placements,Premises-Related Expenditure - Cleaning and domestic supplies,08/12/2021,3277819,26.12,Revenue,1001027,SC Ifton House Imprest Account
Shropshire,00GG,Children's Services - Placements: Residential Placements,Transport-Related Expenditure - Public Transport,08/12/2021,3277819,26.67,Revenue,1001027,SC Ifton House Imprest Account
Shropshire,00GG,Children's Services - Placements: Residential Placements,Supplies & Services - Equipment Furniture and Materials,08/12/2021,3277819,36.25,Revenue,1001027,SC Ifton House Imprest Account
Shropshire,00GG,Children's Services - Placements: Residential Placements,Supplies & Services - Catering,08/12/2021,3277819,460.43,Revenue,1001027,SC Ifton House Imprest Account
Shropshire,00GG,Children's Services - Placements: Residential Placements,Supplies & Services - Printing Stationery and General Office Expenses,08/12/2021,3277819,29.99,Revenue,1001027,SC Ifton House Imprest Account
Shropshire,00GG,Children's Services - Placements: Residential Placements,Supplies & Services - Services,08/12/2021,3277819,48.74,Revenue,1001027,SC Ifton House Imprest Account
Shropshire,00GG,Children's Services - Placements: Residential Placements,Third Party Payments - Other Establishments,08/12/2021,3277819,236.90,Revenue,1001027,SC Ifton House Imprest Account
Shropshire,00GG,People - Placements: Residential Placements,Premises-Related Expenditure - Cleaning and domestic supplies,08/12/2021,3294438,4.16,Revenue,1001027,SC Ifton House Imprest Account
Shropshire,00GG,People - Placements: Residential Placements,Transport-Related Expenditure - Public Transport,08/12/2021,3294438,49.98,Revenue,1001027,SC Ifton House Imprest Account
Shropshire,00GG,People - Placements: Residential Placements,Supplies & Services - Equipment Furniture and Materials,08/12/2021,3294438,65.54,Revenue,1001027,SC Ifton House Imprest Account
Shropshire,00GG,People - Placements: Residential Placements,Supplies & Services - Catering,08/12/2021,3294438,502.17,Revenue,1001027,SC Ifton House Imprest Account
Shropshire,00GG,People - Placements: Residential Placements,Supplies & Services - Services,08/12/2021,3294438,106.99,Revenue,1001027,SC Ifton House Imprest Account
Shropshire,00GG,People - Placements: Residential Placements,Third Party Payments - Other Establishments,08/12/2021,3294438,153.69,Revenue,1001027,SC Ifton House Imprest Account
Shropshire,00GG,Resources - Commissioning Development & Procurement,Supplies & Services - PFI and PPP Schemes,08/12/2021,3293481,"296,867.39",Revenue,1001513,Integrated Care Solutions (Shropshire)Lt
Shropshire,00GG,Place - Shire Catering,Supplies & Services - Catering,08/12/2021,11334716,"1,096.37",Revenue,1001530,Bidfood
Shropshire,00GG,Place - Shire Catering,Supplies & Services - Catering,08/12/2021,11334717,827.85,Revenue,1001530,Bidfood
Shropshire,00GG,Place - Shire Catering,Supplies & Services - Catering,08/12/2021,11334723,538.20,Revenue,1001530,Bidfood
Shropshire,00GG,Place - Shire Catering,Supplies & Services - Catering,08/12/2021,11334725,"1,115.67",Revenue,1001530,Bidfood
Shropshire,00GG,Place - Shire Catering,Supplies & Services - Catering,08/12/2021,11334726,523.19,Revenue,1001530,Bidfood
Shropshire,00GG,Place - Shire Catering,Supplies & Services - Catering,08/12/2021,11334732,531.55,Revenue,1001530,Bidfood
Shropshire,00GG,Place - Shire Catering,Supplies & Services - Catering,08/12/2021,11334741,675.07,Revenue,1001530,Bidfood
Shropshire,00GG,Place - Shire Catering,Supplies & Services - Catering,08/12/2021,11334744,532.82,Revenue,1001530,Bidfood
Shropshire,00GG,Place - Shire Catering,Supplies & Services - Catering,08/12/2021,11334747,660.35,Revenue,1001530,Bidfood
Shropshire,00GG,Place - Shire Catering,Supplies & Services - Catering,08/12/2021,11334751,920.65,Revenue,1001530,Bidfood
Shropshire,00GG,Place - Shire Catering,Supplies & Services - Catering,08/12/2021,11334753,711.20,Revenue,1001530,Bidfood
Shropshire,00GG,Place - Shire Catering,Supplies & Services - Catering,08/12/2021,11334757,616.43,Revenue,1001530,Bidfood
Shropshire,00GG,Place - Shire Catering,Supplies & Services - Catering,08/12/2021,11334759,605.01,Revenue,1001530,Bidfood
Shropshire,00GG,Place - Shire Catering,Supplies & Services - Catering,08/12/2021,11334760,542.80,Revenue,1001530,Bidfood
Shropshire,00GG,Place - Shire Catering,Supplies & Services - Catering,08/12/2021,11334762,"1,125.63",Revenue,1001530,Bidfood
Shropshire,00GG,Place - Shire Catering,Supplies & Services - Catering,08/12/2021,11334763,649.04,Revenue,1001530,Bidfood
Shropshire,00GG,Place - Shire Catering,Supplies & Services - Catering,08/12/2021,11334765,585.51,Revenue,1001530,Bidfood
Shropshire,00GG,Place - Shire Catering,Supplies & Services - Catering,08/12/2021,11334766,745.58,Revenue,1001530,Bidfood
Shropshire,00GG,Place - Shire Catering,Supplies & Services - Catering,08/12/2021,11334767,860.97,Revenue,1001530,Bidfood
Shropshire,00GG,Place - Shire Catering,Supplies & Services - Catering,08/12/2021,11334769,578.28,Revenue,1001530,Bidfood
Shropshire,00GG,Place - Shire Catering,Supplies & Services - Catering,08/12/2021,11334772,782.77,Revenue,1001530,Bidfood
Shropshire,00GG,Place - Shire Catering,Supplies & Services - Catering,08/12/2021,11334773,596.86,Revenue,1001530,Bidfood
Shropshire,00GG,Place - Shire Catering,Supplies & Services - Catering,08/12/2021,11334776,614.54,Revenue,1001530,Bidfood
Shropshire,00GG,Place - Shire Catering,Supplies & Services - Catering,08/12/2021,11334781,849.40,Revenue,1001530,Bidfood
Shropshire,00GG,Place - Shire Catering,Supplies & Services - Catering,08/12/2021,11334783,597.06,Revenue,1001530,Bidfood
Shropshire,00GG,Place - Shire Catering,Supplies & Services - Catering,08/12/2021,11334789,501.96,Revenue,1001530,Bidfood
Shropshire,00GG,Place - Shire Catering,Supplies & Services - Catering,08/12/2021,11334799,725.01,Revenue,1001530,Bidfood
Shropshire,00GG,Place - Shire Catering,Supplies & Services - Catering,08/12/2021,11334803,"1,313.81",Revenue,1001530,Bidfood
Shropshire,00GG,Place - Shire Catering,Supplies & Services - Catering,08/12/2021,11334805,"1,036.98",Revenue,1001530,Bidfood
Shropshire,00GG,Place - Shire Catering,Supplies & Services - Catering,08/12/2021,11334812,"1,220.27",Revenue,1001530,Bidfood
Shropshire,00GG,Place - Shire Catering,Supplies & Services - Catering,08/12/2021,11334816,526.23,Revenue,1001530,Bidfood
Shropshire,00GG,Place - Shire Catering,Supplies & Services - Catering,08/12/2021,11334818,825.48,Revenue,1001530,Bidfood
Shropshire,00GG,Place - Shire Catering,Supplies & Services - Catering,08/12/2021,11334820,516.64,Revenue,1001530,Bidfood
Shropshire,00GG,Place - Shire Catering,Supplies & Services - Catering,08/12/2021,11334828,599.19,Revenue,1001530,Bidfood
Shropshire,00GG,Place - Shire Catering,Supplies & Services - Catering,08/12/2021,11334832,726.25,Revenue,1001530,Bidfood
Shropshire,00GG,Place - Shire Catering,Supplies & Services - Catering,08/12/2021,11334836,694.60,Revenue,1001530,Bidfood
Shropshire,00GG,Place - Shire Catering,Supplies & Services - Catering,08/12/2021,11334837,741.43,Revenue,1001530,Bidfood
Shropshire,00GG,Place - Shire Catering,Supplies & Services - Catering,08/12/2021,11334847,619.26,Revenue,1001530,Bidfood
Shropshire,00GG,Place - Shire Catering,Supplies & Services - Catering,08/12/2021,11334848,853.02,Revenue,1001530,Bidfood
Shropshire,00GG,Place - Shire Catering,Supplies & Services - Catering,08/12/2021,11334849,828.23,Revenue,1001530,Bidfood
Shropshire,00GG,Place - Shire Catering,Supplies & Services - Catering,08/12/2021,11334852,629.70,Revenue,1001530,Bidfood
Shropshire,00GG,Place - Shire Catering,Supplies & Services - Catering,08/12/2021,11334862,565.04,Revenue,1001530,Bidfood
Shropshire,00GG,Place - Shire Catering,Supplies & Services - Catering,08/12/2021,11334863,"1,208.02",Revenue,1001530,Bidfood
Shropshire,00GG,Place - Shire Catering,Supplies & Services - Catering,08/12/2021,11334866,848.77,Revenue,1001530,Bidfood
Shropshire,00GG,Place - Shire Catering,Supplies & Services - Catering,08/12/2021,11334869,602.35,Revenue,1001530,Bidfood
Shropshire,00GG,Place - Shire Catering,Supplies & Services - Catering,08/12/2021,11334870,556.39,Revenue,1001530,Bidfood
Shropshire,00GG,Place - Shire Catering,Supplies & Services - Catering,08/12/2021,11334876,721.60,Revenue,1001530,Bidfood
Shropshire,00GG,Place - Shire Catering,Supplies & Services - Catering,08/12/2021,11334886,632.30,Revenue,1001530,Bidfood
Shropshire,00GG,Place - Shire Catering,Supplies & Services - Catering,08/12/2021,11334887,825.03,Revenue,1001530,Bidfood
Shropshire,00GG,Place - Shire Catering,Supplies & Services - Catering,08/12/2021,11334897,545.57,Revenue,1001530,Bidfood
Shropshire,00GG,Place - Shire Catering,Supplies & Services - Catering,08/12/2021,11334899,664.74,Revenue,1001530,Bidfood
Shropshire,00GG,Place - Shire Catering,Supplies & Services - Catering,08/12/2021,11334901,529.01,Revenue,1001530,Bidfood
Shropshire,00GG,Place - Shire Catering,Supplies & Services - Catering,08/12/2021,11334903,"1,389.77",Revenue,1001530,Bidfood
Shropshire,00GG,Place - Shire Catering,Supplies & Services - Catering,08/12/2021,11334906,"1,252.35",Revenue,1001530,Bidfood
Shropshire,00GG,Place - Shire Catering,Supplies & Services - Catering,08/12/2021,11334907,468.37,Revenue,1001530,Bidfood
Shropshire,00GG,Place - Shire Catering,Supplies & Services - Catering,08/12/2021,11334908,569.88,Revenue,1001530,Bidfood
Shropshire,00GG,Place - Shire Catering,Supplies & Services - Catering,08/12/2021,11334909,685.90,Revenue,1001530,Bidfood
Shropshire,00GG,Place - Shire Catering,Supplies & Services - Catering,08/12/2021,11334910,533.96,Revenue,1001530,Bidfood
Shropshire,00GG,Place - Shire Catering,Supplies & Services - Catering,08/12/2021,11334912,532.88,Revenue,1001530,Bidfood
Shropshire,00GG,Place - Shire Catering,Supplies & Services - Catering,08/12/2021,11334914,764.53,Revenue,1001530,Bidfood
Shropshire,00GG,Place - Shire Catering,Supplies & Services - Catering,08/12/2021,11334918,840.93,Revenue,1001530,Bidfood
Shropshire,00GG,Place - Shire Catering,Supplies & Services - Catering,08/12/2021,11334919,695.41,Revenue,1001530,Bidfood
Shropshire,00GG,Place - Shire Catering,Supplies & Services - Catering,08/12/2021,11334921,561.20,Revenue,1001530,Bidfood
Shropshire,00GG,Place - Shire Catering,Supplies & Services - Catering,08/12/2021,11334922,"1,168.17",Revenue,1001530,Bidfood
Shropshire,00GG,Place - Shire Catering,Supplies & Services - Catering,08/12/2021,11334924,946.73,Revenue,1001530,Bidfood
Shropshire,00GG,Place - Shire Catering,Supplies & Services - Catering,08/12/2021,11334931,882.76,Revenue,1001530,Bidfood
Shropshire,00GG,Place - Shire Catering,Supplies & Services - Catering,08/12/2021,11334933,616.58,Revenue,1001530,Bidfood
Shropshire,00GG,Place - Shire Catering,Supplies & Services - Catering,08/12/2021,11334937,534.30,Revenue,1001530,Bidfood
Shropshire,00GG,Place - Shire Catering,Supplies & Services - Catering,08/12/2021,11334939,606.30,Revenue,1001530,Bidfood
Shropshire,00GG,Place - Shire Catering,Supplies & Services - Catering,08/12/2021,11334945,"1,076.83",Revenue,1001530,Bidfood
Shropshire,00GG,Place - Shire Catering,Supplies & Services - Catering,08/12/2021,11334949,771.63,Revenue,1001530,Bidfood
Shropshire,00GG,Place - Shire Catering,Supplies & Services - Catering,08/12/2021,11334953,"1,206.12",Revenue,1001530,Bidfood
Shropshire,00GG,Place - Shire Catering,Supplies & Services - Catering,08/12/2021,11334958,923.75,Revenue,1001530,Bidfood
Shropshire,00GG,Place - Shire Catering,Supplies & Services - Catering,08/12/2021,11334988,-516.64,Revenue,1001530,Bidfood
Shropshire,00GG,Children's Services - Home to School Transport,Transport-Related Expenditure - Contract Hire and Operating Leases,08/12/2021,3297184,"4,950.00",Revenue,1001625,A B & C A Humphries
Shropshire,00GG,Place - Environment and Transport (Street Scene),Premises-Related Expenditure - Grounds maintenance costs,08/12/2021,3288281,"1,120.00",Revenue,1001931,Mark Whitehead
Shropshire,00GG,Place - Outdoor Partnerships,Premises-Related Expenditure - Repairs alterations and maintenance of buildings,08/12/2021,3289855,753.00,Revenue,1002255,Wyvern Garden Machinery Ltd
Shropshire,00GG,People - Special Educational Needs & Disability,Third Party Payments - Other Establishments,08/12/2021,3294191,"6,966.67",Revenue,1002739,Bettws Lifehouse Ltd
Shropshire,00GG,Health and Wellbeing - Substance Misuse (Ringfenced),Supplies & Services - Grants and Subscriptions,08/12/2021,3286366,"1,500.00",Revenue,1003030,Linxs Consultancy Ltd
Shropshire,00GG,Place - Theatre Services,Third Party Payments - Private Contractors,08/12/2021,3294331,"42,337.57",Revenue,1003139,Get Your 'Wigle' On
Shropshire,00GG,Capital - Economic Growth Capital,Non Revenue - Non Revenue,08/12/2021,3294214,"1,800.00",Capital,1003464,Eversheds Sutherland (International) Llp
Shropshire,00GG,People - Home to School Transport,Transport-Related Expenditure - Contract Hire and Operating Leases,08/12/2021,3297174,960.00,Revenue,1003978,Shrewsbury Taxi Service
Shropshire,00GG,Resources - Commissioning Development & Procurement,Employees - Direct Employee Expenses,08/12/2021,3291764,"339,578.56",Revenue,1004129,Matrix Scm Ltd
Shropshire,00GG,Resources - Legal Services � Child Care,Supplies & Services - Services,08/12/2021,3287529,500.00,Revenue,1004298,Miss Kathryn Anslow
Shropshire,00GG,Capital - Housing Services Capital,Non Revenue - Non Revenue,08/12/2021,3293612,"1,852.94",Capital,1004765,M W Knight & Sons Ltd
Shropshire,00GG,Capital - Housing Services Capital,Non Revenue - Non Revenue,08/12/2021,3293615,"7,529.74",Capital,1004765,M W Knight & Sons Ltd
Shropshire,00GG,People - Social Care Hospital Interface Purchasing,Third Party Payments - Private Contractors,08/12/2021,11331736,"2,197.44",Revenue,1005567,Quality Community Care Ltd
Shropshire,00GG,Capital - Housing Services Capital,Non Revenue - Non Revenue,08/12/2021,3293619,"23,230.00",Capital,1006198,Gainsborough Baths Limited
Shropshire,00GG,People - Social Care Hospital Interface Purchasing,Third Party Payments - Private Contractors,08/12/2021,11332925,"7,848.00",Revenue,1006202,Sinai Care Solutions Ltd
Shropshire,00GG,People - Social Care Hospital Interface Purchasing,Third Party Payments - Private Contractors,08/12/2021,11332926,"2,400.02",Revenue,1006202,Sinai Care Solutions Ltd
Shropshire,00GG,People - Placements: Residential Placements,Employees - Direct Employee Expenses,08/12/2021,3293055,456.74,Revenue,1006553,Randstad Public Services Ltd
Shropshire,00GG,People - Social Care Community Purchasing,Third Party Payments - Private Contractors,08/12/2021,11330541,"1,622.85",Revenue,1008010,Haveacare
Shropshire,00GG,People - Social Care Hospital Interface Purchasing,Third Party Payments - Private Contractors,08/12/2021,11330542,699.08,Revenue,1008010,Haveacare
Shropshire,00GG,People - External Providers,Third Party Payments - Private Contractors,08/12/2021,3293700,750.00,Revenue,1008200,Crowsmill Craft Centre
Shropshire,00GG,People - Special Educational Needs & Disability,Third Party Payments - Other Establishments,08/12/2021,3294002,600.00,Revenue,1008317,Earlyworld Nursery
Shropshire,00GG,People - Early Years,Third Party Payments - Other Establishments,08/12/2021,3294445,"7,500.00",Revenue,1008446,Burford Preschool C.I.C.
Shropshire,00GG,"Finance, Governance & Assurance - Audit Services",Employees - Indirect Employee Expenses,08/12/2021,3290073,785.00,Revenue,1010192,Redactive Publishing
Shropshire,00GG,People - Placements: Adoption Service,Supplies & Services - Services,08/12/2021,11332185,625.00,Revenue,1011374,G M Parry
Shropshire,00GG,People - Placements: Adoption Service,Supplies & Services - Services,08/12/2021,11332187,750.00,Revenue,1011374,G M Parry
Shropshire,00GG,Place - Environment and Transport (Public Transport),Transport-Related Expenditure - Direct Transport Costs,08/12/2021,3291724,"122,099.98",Revenue,1013245,Econ Engineering Ltd
Shropshire,00GG,Place - Environment and Transport (Public Transport),Transport-Related Expenditure - Direct Transport Costs,08/12/2021,3291733,"110,783.30",Revenue,1013245,Econ Engineering Ltd
Shropshire,00GG,Place - Environment and Transport (Public Transport),Transport-Related Expenditure - Direct Transport Costs,08/12/2021,3293394,"110,783.30",Revenue,1013245,Econ Engineering Ltd
Shropshire,00GG,Place - Environment and Transport (Public Transport),Transport-Related Expenditure - Direct Transport Costs,08/12/2021,3293403,"110,783.30",Revenue,1013245,Econ Engineering Ltd
Shropshire,00GG,Place - Environment and Transport (Public Transport),Transport-Related Expenditure - Direct Transport Costs,08/12/2021,3293406,"122,099.98",Revenue,1013245,Econ Engineering Ltd
Shropshire,00GG,Place - Theatre Services,Supplies & Services - Equipment Furniture and Materials,08/12/2021,3288958,506.25,Revenue,1013325,ESP Security Solutions Limited
Shropshire,00GG,Place - Theatre Services,Supplies & Services - Services,08/12/2021,3292154,898.00,Revenue,1013683,Sutton Media Ltd
Shropshire,00GG,Place - Environment and Transport (Public Transport),Transport-Related Expenditure - Contract Hire and Operating Leases,08/12/2021,3294290,"10,204.96",Revenue,1013739,Absolute Personnel
Shropshire,00GG,Place - Theatre Services,Supplies & Services - Communications and Computing,08/12/2021,3290388,789.34,Revenue,1014774,Royal Mail Group Ltd
Shropshire,00GG,Place - Planning Services,Supplies & Services - Services,09/12/2021,3289167,554.40,Revenue,1000228,Midland News Association Ltd
Shropshire,00GG,Resources - Democratic Services,Supplies & Services - Expenses,09/12/2021,3297278,37.00,Revenue,1000255,Legal & Democratic Servs Imp Ac
Shropshire,00GG,Resources - Legal Services,Supplies & Services - Services,09/12/2021,3297278,572.20,Revenue,1000255,Legal & Democratic Servs Imp Ac
Shropshire,00GG,Resources - Legal Services � Child Care,Supplies & Services - Services,09/12/2021,3297278,"9,127.00",Revenue,1000255,Legal & Democratic Servs Imp Ac
Shropshire,00GG,Health and Wellbeing - Sexual Health,Third Party Payments - Joint Authorities,09/12/2021,3289862,"2,786.00",Revenue,1000401,Telford & Wrekin Council
Shropshire,00GG,Place - Corporate Landlord - Libraries,Premises-Related Expenditure - Repairs alterations and maintenance of buildings,09/12/2021,11332054,"1,078.01",Revenue,1000411,Cool Services Ltd
Shropshire,00GG,Resources - ICT Digital Transformation Project,Supplies & Services - Grants and Subscriptions,09/12/2021,3293588,"9,000.00",Revenue,1000663,Roy Fletcher Centre
Shropshire,00GG,Resources - ICT Digital Transformation Project,Supplies & Services - Grants and Subscriptions,09/12/2021,3293559,"7,100.00",Revenue,1000701,The Strettons Mayfair Trust
Shropshire,00GG,Place - Environment and Transport (Street Scene),Premises-Related Expenditure - Repairs alterations and maintenance of buildings,09/12/2021,3286934,897.00,Revenue,1000736,Ray Parry Playground Services Ltd
Shropshire,00GG,Resources - ICT Services,Supplies & Services - Communications and Computing,09/12/2021,3287164,994.66,Revenue,1000753,Stone Computers Ltd
Shropshire,00GG,Resources - ICT Services,Supplies & Services - Communications and Computing,09/12/2021,3287168,"10,892.70",Revenue,1000753,Stone Computers Ltd
Shropshire,00GG,Place - Shire Catering,Supplies & Services - Catering,09/12/2021,3297545,"1,147.70",Revenue,1000769,The Little Food Company Limited
Shropshire,00GG,People - Social Care Hospital Interface Purchasing,Third Party Payments - Private Contractors,09/12/2021,11331743,686.70,Revenue,1000882,Surecare Shropshire Ltd
Shropshire,00GG,People - Social Care Hospital Interface Purchasing,Third Party Payments - Private Contractors,09/12/2021,11331744,676.89,Revenue,1000882,Surecare Shropshire Ltd
Shropshire,00GG,People - Social Care Community Purchasing,Third Party Payments - Private Contractors,09/12/2021,11331745,"12,600.00",Revenue,1001105,Prestige Nursing Ltd
Shropshire,00GG,People - Social Care Community Purchasing,Third Party Payments - Private Contractors,09/12/2021,11331746,"2,940.00",Revenue,1001105,Prestige Nursing Ltd
Shropshire,00GG,"Place - Head of Culture, Leisure & Tourism",Supplies & Services - Services,09/12/2021,3286699,"39,566.00",Revenue,1001872,Atkins Limited
Shropshire,00GG,"Place - Head of Culture, Leisure & Tourism",Supplies & Services - Services,09/12/2021,3286752,"62,742.00",Revenue,1001872,Atkins Limited
Shropshire,00GG,Health and Wellbeing - Regulatory Services,Supplies & Services - Services,09/12/2021,3286887,"1,349.00",Revenue,1001913,Frank Painter & Sons Ltd
Shropshire,00GG,Capital - HRA Dwellings Capital,Non Revenue - Non Revenue,09/12/2021,3286904,"2,100.00",Capital,1002203,H M Revenue & Customs
Shropshire,00GG,People - Social Care Hospital Interface Purchasing,Third Party Payments - Private Contractors,09/12/2021,11334064,"2,329.88",Revenue,1002725,Bluebird Care (Shropshire Care Ltd)
Shropshire,00GG,People - Social Care Hospital Interface Purchasing,Third Party Payments - Private Contractors,09/12/2021,11334065,832.10,Revenue,1002725,Bluebird Care (Shropshire Care Ltd)
Shropshire,00GG,People - Social Care Hospital Interface Purchasing,Third Party Payments - Private Contractors,09/12/2021,11334066,"2,329.88",Revenue,1002725,Bluebird Care (Shropshire Care Ltd)
Shropshire,00GG,Place - Economic Growth,Supplies & Services - Services,09/12/2021,3290019,"7,645.00",Revenue,1002874,Yarrington Limited
Shropshire,00GG,Place - Shire Catering,Supplies & Services - Catering,09/12/2021,3293902,628.30,Revenue,1002955,Theos Food Service Ltd
Shropshire,00GG,Place - Corporate Landlord - Museums & Culture,Premises-Related Expenditure - Repairs alterations and maintenance of buildings,09/12/2021,3294459,"1,161.00",Revenue,1003602,HSL Compliance Limited
Shropshire,00GG,People - Social Care Hospital Interface Purchasing,Third Party Payments - Private Contractors,09/12/2021,11331738,549.36,Revenue,1004997,Suncare Home Care Ltd
Shropshire,00GG,Place - Shire Catering,Supplies & Services - Equipment Furniture and Materials,09/12/2021,3293554,"1,363.42",Revenue,1005013,Nobisco Limited
Shropshire,00GG,People - Social Care Hospital Interface Purchasing,Third Party Payments - Private Contractors,09/12/2021,11330820,814.23,Revenue,1005424,Willow Home Care Ltd
Shropshire,00GG,People - Social Care Hospital Interface Purchasing,Third Party Payments - Private Contractors,09/12/2021,11330821,566.53,Revenue,1005424,Willow Home Care Ltd
Shropshire,00GG,People - Social Care Hospital Interface Purchasing,Third Party Payments - Private Contractors,09/12/2021,11330822,919.69,Revenue,1005424,Willow Home Care Ltd
Shropshire,00GG,People - Social Care Hospital Interface Purchasing,Third Party Payments - Private Contractors,09/12/2021,11331750,"1,630.10",Revenue,1005424,Willow Home Care Ltd
Shropshire,00GG,People - Social Care Hospital Interface Purchasing,Third Party Payments - Private Contractors,09/12/2021,11331751,936.85,Revenue,1005424,Willow Home Care Ltd
Shropshire,00GG,People - Social Care Hospital Interface Purchasing,Third Party Payments - Private Contractors,09/12/2021,11334442,515.03,Revenue,1005424,Willow Home Care Ltd
Shropshire,00GG,Place - Shrewsbury Shopping Centres (Commercial),Supplies & Services - Services,09/12/2021,3294192,"1,306.00",Revenue,1006058,Personal redaction
Shropshire,00GG,Place - Shrewsbury Shopping Centres (Commercial),Supplies & Services - Services,09/12/2021,3294195,"1,300.00",Revenue,1006058,Personal redaction
Shropshire,00GG,Place - Shrewsbury Shopping Centres (Commercial),Supplies & Services - Services,09/12/2021,3294205,"1,300.00",Revenue,1006058,Personal redaction
Shropshire,00GG,Place - Shrewsbury Shopping Centres (Commercial),Supplies & Services - Services,09/12/2021,3294216,"1,300.00",Revenue,1006058,Personal redaction
Shropshire,00GG,Resources - ICT Digital Transformation Project,Supplies & Services - Grants and Subscriptions,09/12/2021,3293594,"6,800.00",Revenue,1008127,Age Uk
Shropshire,00GG,People - Special Educational Needs & Disability,Third Party Payments - Other Establishments,09/12/2021,3297217,853.27,Revenue,1008343,Jennifer Lace Childcare (Shropshire) Ltd T/A The Little Green House Childcare Bridgnorth
Shropshire,00GG,People - Special Educational Needs & Disability,Third Party Payments - Other Establishments,09/12/2021,3297233,"1,050.00",Revenue,1008445,Caroline Holloway
Shropshire,00GG,Capital - Primary School Capital,Non Revenue - Non Revenue,09/12/2021,3291771,"11,750.00",Capital,1008574,Taylors Mechanical Ltd
Shropshire,00GG,Place - Outdoor Partnerships,Supplies & Services - Services,09/12/2021,3287336,"7,250.00",Revenue,1009974,M R Owen
Shropshire,00GG,People - Social Care Hospital Interface Purchasing,Third Party Payments - Private Contractors,09/12/2021,11330819,"4,200.00",Revenue,1010097,Quil Care Group
Shropshire,00GG,People - Social Care Hospital Interface Purchasing,Third Party Payments - Private Contractors,09/12/2021,11332015,524.84,Revenue,1011337,Willow Care North Shropshire Ltd
Shropshire,00GG,People - Social Care Hospital Interface Purchasing,Third Party Payments - Private Contractors,09/12/2021,11332016,"2,472.12",Revenue,1011337,Willow Care North Shropshire Ltd
Shropshire,00GG,People - Children�s Case Management,Supplies & Services - Services,09/12/2021,3290404,"1,540.00",Revenue,1012112,Nicholas Radcliffe
Shropshire,00GG,Health and Wellbeing - Public Health General Management,Supplies & Services - Grants and Subscriptions,09/12/2021,3287027,"10,000.00",Revenue,1012185,Oswestry Community Action (Qube)
Shropshire,00GG,People - Early Years,Third Party Payments - Other Establishments,09/12/2021,3294368,615.00,Revenue,1012583,Little Bears Day Care
Shropshire,00GG,Place - Environment and Transport (Public Transport),Transport-Related Expenditure - Direct Transport Costs,09/12/2021,3291759,"110,783.30",Revenue,1013245,Econ Engineering Ltd
Shropshire,00GG,Resources - Welfare & Reform,Transfer Payments - Housing Benefits,09/12/2021,3293153,"1,909.00",Revenue,1014009,PPS Ltd Client Acc Shropshire
Shropshire,00GG,Place - Property Services Group,Premises-Related Expenditure - Repairs alterations and maintenance of buildings,10/12/2021,3294470,"1,185.06",Revenue,1000101,Cooper & Williams Ltd
Shropshire,00GG,Place - Corporate Landlord - Smallholdings,Premises-Related Expenditure - Repairs alterations and maintenance of buildings,10/12/2021,3294546,"3,179.00",Revenue,1000101,Cooper & Williams Ltd
Shropshire,00GG,People - Non-Delegated Secondary DSG,Premises-Related Expenditure - Repairs alterations and maintenance of buildings,10/12/2021,3294550,585.71,Revenue,1000101,Cooper & Williams Ltd
Shropshire,00GG,Capital - Secondary School Capital,Non Revenue - Non Revenue,10/12/2021,3294475,"20,000.00",Capital,1000128,R G Edwards & Co Ltd
Shropshire,00GG,Capital - Adult Social Care Operations Capital,Non Revenue - Non Revenue,10/12/2021,11331599,"1,299.67",Capital,1000128,R G Edwards & Co Ltd
Shropshire,00GG,Capital - Unallocated School Capital,Non Revenue - Non Revenue,10/12/2021,11332057,"3,575.00",Capital,1000128,R G Edwards & Co Ltd
Shropshire,00GG,Place - Environment and Transport (Street Scene),Supplies & Services - Services,10/12/2021,3285868,377.32,Revenue,1000135,Hilbrae Pets Hotel
Shropshire,00GG,Place - Highways (Streetworks),Supplies & Services - Services,10/12/2021,3288277,498.96,Revenue,1000228,Midland News Association Ltd
Shropshire,00GG,Place - Environment and Transport (Strategic),Supplies & Services - Services,10/12/2021,3288295,"1,108.80",Revenue,1000228,Midland News Association Ltd
Shropshire,00GG,Place - Highways (Streetworks),Supplies & Services - Services,10/12/2021,3288314,887.04,Revenue,1000228,Midland News Association Ltd
Shropshire,00GG,Place - Corporate Landlord - Admin Buildings,Premises-Related Expenditure - Repairs alterations and maintenance of buildings,10/12/2021,11334094,"2,948.00",Revenue,1000306,Security Wise Ltd
Shropshire,00GG,Capital - Unallocated School Capital,Non Revenue - Non Revenue,10/12/2021,11332085,"2,212.29",Capital,1000322,R M W Electrical Services Ltd
Shropshire,00GG,Place - Corporate Landlord - Adult Services,Premises-Related Expenditure - Repairs alterations and maintenance of buildings,10/12/2021,11332948,568.00,Revenue,1000322,R M W Electrical Services Ltd
Shropshire,00GG,Capital - Unallocated School Capital,Non Revenue - Non Revenue,10/12/2021,11332931,"4,848.00",Capital,1000368,Telford Thermal Insulation Contract Ltd
Shropshire,00GG,People - Care Management - Transport,Transport-Related Expenditure - Contract Hire and Operating Leases,10/12/2021,3287339,975.00,Revenue,1000377,M & J Travel
Shropshire,00GG,People - Housing Options,Supplies & Services - Services,10/12/2021,3287947,550.00,Revenue,1000498,Glyn Upton Removals
Shropshire,00GG,Capital - Primary School Capital,Non Revenue - Non Revenue,10/12/2021,3290089,"1,743.00",Capital,1000753,Stone Computers Ltd
Shropshire,00GG,Place - Shire Catering,Supplies & Services - Catering,10/12/2021,3297514,"1,498.70",Revenue,1000769,The Little Food Company Limited
Shropshire,00GG,Place - Shire Catering,Supplies & Services - Catering,10/12/2021,3297682,"1,113.20",Revenue,1000769,The Little Food Company Limited
Shropshire,00GG,Place - Shire Catering,Supplies & Services - Catering,10/12/2021,3297685,"1,237.20",Revenue,1000769,The Little Food Company Limited
Shropshire,00GG,Place - Shire Catering,Supplies & Services - Catering,10/12/2021,3297689,"1,147.20",Revenue,1000769,The Little Food Company Limited
Shropshire,00GG,Place - Shire Catering,Supplies & Services - Catering,10/12/2021,3297691,"1,083.10",Revenue,1000769,The Little Food Company Limited
Shropshire,00GG,Place - Shire Catering,Supplies & Services - Catering,10/12/2021,3297709,"1,294.70",Revenue,1000769,The Little Food Company Limited
Shropshire,00GG,Place - Shire Catering,Supplies & Services - Catering,10/12/2021,3297720,"1,204.00",Revenue,1000769,The Little Food Company Limited
Shropshire,00GG,Place - Shire Catering,Supplies & Services - Catering,10/12/2021,3297807,"1,002.70",Revenue,1000769,The Little Food Company Limited
Shropshire,00GG,Place - Shire Catering,Supplies & Services - Catering,10/12/2021,3297889,"2,238.00",Revenue,1000769,The Little Food Company Limited
Shropshire,00GG,Place - Shire Catering,Supplies & Services - Catering,10/12/2021,3297895,"1,637.20",Revenue,1000769,The Little Food Company Limited
Shropshire,00GG,Place - Shire Catering,Supplies & Services - Catering,10/12/2021,3298085,"1,282.30",Revenue,1000769,The Little Food Company Limited
Shropshire,00GG,Place - Outdoor Partnerships,Premises-Related Expenditure - Repairs alterations and maintenance of buildings,10/12/2021,3287710,"3,947.30",Revenue,1001529,Hales Sawmills Ltd
Shropshire,00GG,Resources - Legal Services,Supplies & Services - Services,10/12/2021,3298156,990.20,Revenue,1001536,Bevan Brittan Llp Client Account
Shropshire,00GG,Resources - Legal Services,Supplies & Services - Services,10/12/2021,3298169,787.60,Revenue,1001536,Bevan Brittan Llp Client Account
Shropshire,00GG,People - Social Care Community Purchasing,Third Party Payments - Private Contractors,10/12/2021,11331752,"4,518.48",Revenue,1001546,Peace Of Mind Homecare Ltd
Shropshire,00GG,People - Social Care Community Purchasing,Third Party Payments - Private Contractors,10/12/2021,11331753,"1,728.16",Revenue,1001546,Peace Of Mind Homecare Ltd
Shropshire,00GG,Place - Shire Catering,Supplies & Services - Equipment Furniture and Materials,10/12/2021,3287735,"6,144.84",Revenue,1001601,Abraxas Catering Equipment Ltd
Shropshire,00GG,Place - Shire Catering,Supplies & Services - Equipment Furniture and Materials,10/12/2021,3287923,"1,565.32",Revenue,1001601,Abraxas Catering Equipment Ltd
Shropshire,00GG,Resources - ICT Services,Supplies & Services - Communications and Computing,10/12/2021,3287908,"1,650.34",Revenue,1001651,Ccs Media
Shropshire,00GG,People - Care Management - Assistive Equipment & Technology,Premises-Related Expenditure - Repairs alterations and maintenance of buildings,10/12/2021,11334155,607.92,Revenue,1001663,Lift & Engineering Services Ltd
Shropshire,00GG,People - Care Management - Assistive Equipment & Technology,Premises-Related Expenditure - Repairs alterations and maintenance of buildings,10/12/2021,11334156,527.26,Revenue,1001663,Lift & Engineering Services Ltd
Shropshire,00GG,People - Care Management - Assistive Equipment & Technology,Premises-Related Expenditure - Repairs alterations and maintenance of buildings,10/12/2021,11334157,"2,253.60",Revenue,1001663,Lift & Engineering Services Ltd
Shropshire,00GG,Capital - Unallocated School Capital,Non Revenue - Non Revenue,10/12/2021,11332060,"4,732.50",Capital,1001915,Sst Ta Sentinel Security Technicians Ltd
Shropshire,00GG,Capital - Secondary School Capital,Non Revenue - Non Revenue,10/12/2021,3294533,"27,225.91",Capital,1001951,G I Sykes Ltd
Shropshire,00GG,People - Special Educational Needs & Disability,Third Party Payments - Other Establishments,10/12/2021,3289065,"12,155.00",Revenue,1002017,Bryn Melyn Care Ltd
Shropshire,00GG,People - Special Educational Needs & Disability,Third Party Payments - Other Establishments,10/12/2021,3289072,"11,988.49",Revenue,1002017,Bryn Melyn Care Ltd
Shropshire,00GG,Adult Services - Supported Living Properties,Premises-Related Expenditure - Rents,10/12/2021,3294525,"2,225.50",Revenue,1002315,First Choice Housing Association Ltd
Shropshire,00GG,Adult Services - Supported Living Properties,Premises-Related Expenditure - Rents,10/12/2021,3294553,"1,324.74",Revenue,1002315,First Choice Housing Association Ltd
Shropshire,00GG,Adult Services - Supported Living Properties,Premises-Related Expenditure - Rents,10/12/2021,3294565,"6,910.08",Revenue,1002315,First Choice Housing Association Ltd
Shropshire,00GG,Place - Theatre Services,Supplies & Services - Catering,10/12/2021,3287934,"2,107.73",Revenue,1002559,Matthew Clark Wholesale Ltd
Shropshire,00GG,Place - Leisure,Third Party Payments - Private Contractors,10/12/2021,3287965,"3,301.00",Revenue,1002644,Nigel Bramall
Shropshire,00GG,People - Care Management - Social Work Teams,Transport-Related Expenditure - Public Transport,10/12/2021,3291702,18.00,Revenue,1002702,Sajkum Ltd t/a Sajeev Kumar Kshemendran
Shropshire,00GG,People - Care Management - Social Work Teams,Supplies & Services - Services,10/12/2021,3291702,560.00,Revenue,1002702,Sajkum Ltd t/a Sajeev Kumar Kshemendran
Shropshire,00GG,People - Social Care Hospital Interface Purchasing,Third Party Payments - Private Contractors,10/12/2021,11334067,832.10,Revenue,1002725,Bluebird Care (Shropshire Care Ltd)
Shropshire,00GG,People - Special Educational Needs & Disability,Third Party Payments - Other Establishments,10/12/2021,3290160,"17,766.67",Revenue,1002739,Bettws Lifehouse Ltd
Shropshire,00GG,Place - Libraries,Third Party Payments - Private Contractors,10/12/2021,3289259,"5,590.14",Revenue,1002873,Cleobury Country Limited
Shropshire,00GG,Capital - Secondary School Capital,Non Revenue - Non Revenue,10/12/2021,3294473,"1,590.00",Capital,1002914,Aib Solutions Ltd
Shropshire,00GG,Resources - Finance,Supplies & Services - Grants and Subscriptions,10/12/2021,3297901,"1,650.00",Revenue,1003392,Shropshire County Pension Fund
Shropshire,00GG,Capital - Unallocated School Capital,Non Revenue - Non Revenue,10/12/2021,11335450,"1,548.00",Capital,1003602,HSL Compliance Limited
Shropshire,00GG,People - Children�s Case Management,Supplies & Services - Services,10/12/2021,3291049,833.00,Revenue,1003719,Newstart Networks Cic
Shropshire,00GG,Place - Leisure,Third Party Payments - Other Agencies,10/12/2021,3288010,"58,436.09",Revenue,1003814,Shropshire Community Leisure Trust
Shropshire,00GG,Place - Leisure,Premises-Related Expenditure - Repairs alterations and maintenance of buildings,10/12/2021,3288027,440.00,Revenue,1003814,Shropshire Community Leisure Trust
Shropshire,00GG,Place - Leisure,Third Party Payments - Other Agencies,10/12/2021,3288060,"58,436.09",Revenue,1003814,Shropshire Community Leisure Trust
Shropshire,00GG,People - External Providers,Supplies & Services - Grants and Subscriptions,10/12/2021,3288284,"8,890.00",Revenue,1003925,Energize Shropshire  Telford & Wrekin
Shropshire,00GG,Capital - Non Maintained Schools Capital,Non Revenue - Non Revenue,10/12/2021,3287562,"2,816.10",Capital,1003981,Diocese Of Shrewsbury
Shropshire,00GG,Place - Highways (Streetworks),Supplies & Services - Communications and Computing,10/12/2021,3289176,"17,035.57",Revenue,1003989,Roadworks Information Ltd
Shropshire,00GG,People - Disabled Children's Team,Third Party Payments - Private Contractors,10/12/2021,11331800,"1,074.92",Revenue,1004799,Newcross Healthcare Solutions
Shropshire,00GG,Children's Services - Disabled Children's Team,Third Party Payments - Private Contractors,10/12/2021,11331802,"8,336.44",Revenue,1004799,Newcross Healthcare Solutions
Shropshire,00GG,Children's Services - Disabled Children's Team,Third Party Payments - Private Contractors,10/12/2021,11331803,"7,657.84",Revenue,1004799,Newcross Healthcare Solutions
Shropshire,00GG,Children's Services - Disabled Children's Team,Third Party Payments - Private Contractors,10/12/2021,11331804,"6,950.00",Revenue,1004799,Newcross Healthcare Solutions
Shropshire,00GG,People - Disabled Children's Team,Third Party Payments - Private Contractors,10/12/2021,11331807,"8,713.18",Revenue,1004799,Newcross Healthcare Solutions
Shropshire,00GG,People - Social Care Hospital Interface Purchasing,Third Party Payments - Private Contractors,10/12/2021,11332017,"2,643.80",Revenue,1004909,Phoenix Homecare And Support Ltd
Shropshire,00GG,Resources - Legal Services � Child Care,Employees - Direct Employee Expenses,10/12/2021,3289263,619.50,Revenue,1005215,The Oyster Partnership Ltd
Shropshire,00GG,Resources - Legal Services � Child Care,Employees - Direct Employee Expenses,10/12/2021,3289274,"2,799.72",Revenue,1005215,The Oyster Partnership Ltd
Shropshire,00GG,Resources - Legal Services � Child Care,Employees - Direct Employee Expenses,10/12/2021,3289307,"1,729.75",Revenue,1005215,The Oyster Partnership Ltd
Shropshire,00GG,Place - Planning Services,Employees - Direct Employee Expenses,10/12/2021,3289584,645.00,Revenue,1005215,The Oyster Partnership Ltd
Shropshire,00GG,Capital - Housing Services Capital,Non Revenue - Non Revenue,10/12/2021,3294217,"2,945.00",Capital,1005449,The Excellent Ramp System Ltd
Shropshire,00GG,People - Placements: Adoption Service,Supplies & Services - Services,10/12/2021,11332199,425.00,Revenue,1005548,Rgt Training & Consultancy Ltd
Shropshire,00GG,Place - Theatre Services,Third Party Payments - Private Contractors,10/12/2021,3289221,915.20,Revenue,1005757,Trafalgar Releasing Ltd
Shropshire,00GG,Place - Highways (Streetworks),Supplies & Services - Communications and Computing,10/12/2021,3297753,960.00,Revenue,1005872,Safe Apps Limited
Shropshire,00GG,Children's Services - Children�s Case Management,Supplies & Services - Services,10/12/2021,3289989,900.00,Revenue,1005925,Foresight Clinical Services Ltd
Shropshire,00GG,People - Placements: Placement Staffing,Employees - Direct Employee Expenses,10/12/2021,3289830,"2,518.96",Revenue,1005988,NonStop Consulting Ltd
Shropshire,00GG,Resources - ICT Services,Supplies & Services - Communications and Computing,10/12/2021,3287739,"209,634.66",Revenue,1006603,4Net Technologies
Shropshire,00GG,People - Independent Living,Third Party Payments - Private Contractors,10/12/2021,3297430,"2,666.67",Revenue,1007813,Bromford Carinthia Housing Association L
Shropshire,00GG,People - Independent Living,Third Party Payments - Private Contractors,10/12/2021,3297435,"2,968.92",Revenue,1007813,Bromford Carinthia Housing Association L
Shropshire,00GG,People - Early Years,Third Party Payments - Other Establishments,10/12/2021,3297991,"1,950.00",Revenue,1008317,Earlyworld Nursery
Shropshire,00GG,People - Early Years,Third Party Payments - Other Establishments,10/12/2021,3297384,615.00,Revenue,1008345,Mount Lane Day Nursery
Shropshire,00GG,People - Early Years,Third Party Payments - Other Establishments,10/12/2021,3297973,"2,500.00",Revenue,1008359,Kinlet Family Playgroup
Shropshire,00GG,People - Early Years,Third Party Payments - Other Establishments,10/12/2021,3298011,"1,750.00",Revenue,1008359,Kinlet Family Playgroup
Shropshire,00GG,People - Special Educational Needs & Disability,Third Party Payments - Other Establishments,10/12/2021,3297915,"1,398.00",Revenue,1008459,Shrewsbury Prepatoria Nursery
Shropshire,00GG,Place - Corporate Landlord - Adult Services,Premises-Related Expenditure - Repairs alterations and maintenance of buildings,10/12/2021,3294440,461.59,Revenue,1008560,M W D Services
Shropshire,00GG,Place - Property Services Group,Premises-Related Expenditure - Repairs alterations and maintenance of buildings,10/12/2021,11335463,765.85,Revenue,1008574,Taylors Mechanical Ltd
Shropshire,00GG,Capital - Primary School Capital,Non Revenue - Non Revenue,10/12/2021,3294518,"8,000.00",Capital,1008582,Asset Surfacing & Construction Ltd
Shropshire,00GG,People - Housing Options,Premises-Related Expenditure - Repairs alterations and maintenance of buildings,10/12/2021,11335456,730.51,Revenue,1008604,Pp Electrical Services (Shropshire) Ltd
Shropshire,00GG,Capital - Housing Services Capital,Non Revenue - Non Revenue,10/12/2021,3294442,"4,750.00",Capital,1008669,Shire Stairlifts Ltd
Shropshire,00GG,People - Independent Living,Third Party Payments - Private Contractors,10/12/2021,3291689,"4,094.86",Revenue,1008670,Shrewsbury Homes For All
Shropshire,00GG,Capital - Housing Services Capital,Non Revenue - Non Revenue,10/12/2021,3293831,"6,590.93",Capital,1009035,W S Building Services (Shropshire) Ltd
Shropshire,00GG,Capital - Housing Services Capital,Non Revenue - Non Revenue,10/12/2021,3293913,"3,332.00",Capital,1009278,Candor Care Limited
Shropshire,00GG,Capital - Housing Services Capital,Non Revenue - Non Revenue,10/12/2021,3294554,"5,945.00",Capital,1009278,Candor Care Limited
Shropshire,00GG,People - Enable,Premises-Related Expenditure - Rents,10/12/2021,3291540,"1,197.33",Revenue,1009419,Shropshire Council Business Rates
Shropshire,00GG,Health and Wellbeing - Regulatory Services,Supplies & Services - Services,10/12/2021,3290144,"8,000.00",Revenue,1009709,St Ives Chambers Fees Account
Shropshire,00GG,Resources - Legal Services � Child Care,Supplies & Services - Services,10/12/2021,3297897,850.00,Revenue,1009781,Helen Arthur
Shropshire,00GG,Resources - Information Governance and Scrutiny,Employees - Indirect Employee Expenses,10/12/2021,3292890,"3,600.00",Revenue,1009825,Flowz Limited
Shropshire,00GG,Place - Theatre Services,Third Party Payments - Private Contractors,10/12/2021,3298170,"10,021.98",Revenue,1009999,Chambers Touring Ltd Client Account
Shropshire,00GG,Place - Highways (Operations),Third Party Payments - Private Contractors,10/12/2021,3297757,455.00,Revenue,1010124,C M Room
Shropshire,00GG,Children's Services - Disabled Children's Team,Third Party Payments - Private Contractors,10/12/2021,11331792,"3,752.00",Revenue,1010383,Acorn Way
Shropshire,00GG,Place - Libraries,Supplies & Services - Grants and Subscriptions,10/12/2021,3289458,639.20,Revenue,1010595,Bolinda Uk Limited
Shropshire,00GG,People - Non-Delegated Primary DSG,Third Party Payments - Other Establishments,10/12/2021,3288270,"8,798.31",Revenue,1010729,Empower Trust
Shropshire,00GG,Adult Services - Housing Options,Supplies & Services - Services,10/12/2021,3297246,"2,795.00",Revenue,1010734,Hemming Group Limited
Shropshire,00GG,Place - Shire Cleaning,Premises-Related Expenditure - Cleaning and domestic supplies,10/12/2021,3288003,"1,072.52",Revenue,1011196,Bunzl Cleaning & Hygiene Supplies
Shropshire,00GG,Adult Services - Projects,Supplies & Services - Services,10/12/2021,3276279,750.00,Revenue,1012738,MSG Consultancy Limited
Shropshire,00GG,People - Housing Options,Supplies & Services - Services,10/12/2021,3298144,"10,660.00",Revenue,1012761,Miss Annette Warner
Shropshire,00GG,Place - Theatre Services,Third Party Payments - Private Contractors,10/12/2021,3298146,"1,175.85",Revenue,1012861,Robert Lloyd Parry
Shropshire,00GG,Place - Environment and Transport (Street Scene),Premises-Related Expenditure - Grounds maintenance costs,10/12/2021,3288309,595.00,Revenue,1013047,BH Treecare
Shropshire,00GG,Legal and Democratic Services - Legal Services � Child Care,Supplies & Services - Services,10/12/2021,3298048,750.00,Revenue,1013060,Ms Clare Dillon
Shropshire,00GG,Place - Corporate Landlord - Mardol House & Tannery,Premises-Related Expenditure - Repairs alterations and maintenance of buildings,10/12/2021,11332061,"3,402.42",Revenue,1013104,Fire Management Ltd
Shropshire,00GG,People - Special Educational Needs & Disability,Third Party Payments - Other Establishments,10/12/2021,3290659,"10,000.00",Revenue,1013118,Queensway HLC
Shropshire,00GG,Place - Highways (Governance),Supplies & Services - Services,10/12/2021,3287972,"4,950.00",Revenue,1013237,Proving Services Ltd
Shropshire,00GG,Place - Environment and Transport (Public Transport),Transport-Related Expenditure - Direct Transport Costs,10/12/2021,3291760,"122,044.98",Revenue,1013245,Econ Engineering Ltd
Shropshire,00GG,Place - Environment and Transport (Public Transport),Supplies & Services - Printing Stationery and General Office Expenses,10/12/2021,3291760,55.00,Revenue,1013245,Econ Engineering Ltd
Shropshire,00GG,Place - Environment and Transport (Public Transport),Transport-Related Expenditure - Contract Hire and Operating Leases,10/12/2021,3293104,"3,192.60",Revenue,1013245,Econ Engineering Ltd
Shropshire,00GG,Place - Theatre Services,Third Party Payments - Private Contractors,10/12/2021,3289206,556.55,Revenue,1013765,Royal National Theatre
Shropshire,00GG,People - People Directorate Management,Supplies & Services - Expenses,10/12/2021,3291242,930.00,Revenue,1013803,Emap Publishing Ltd
Shropshire,00GG,Legal and Democratic Services - Legal Services � Child Care,Supplies & Services - Services,10/12/2021,3298087,700.00,Revenue,1013844,Mr Robin Arwel Lewis
Shropshire,00GG,Place - Planning Services,Supplies & Services - Services,10/12/2021,3290478,"3,000.00",Revenue,1013913,Mr Gary Grant
Shropshire,00GG,People - Care Management - Assistive Equipment & Technology,Supplies & Services - Services,10/12/2021,3288454,490.00,Revenue,1014749,Tunstall Health Care (Uk) Ltd
Shropshire,00GG,People - Care Management - Assistive Equipment & Technology,Supplies & Services - Services,10/12/2021,3288514,"3,800.00",Revenue,1014749,Tunstall Health Care (Uk) Ltd
Shropshire,00GG,People - Care Management - Assistive Equipment & Technology,Supplies & Services - Services,10/12/2021,3288788,"2,250.00",Revenue,1014749,Tunstall Health Care (Uk) Ltd
Shropshire,00GG,Resources - Print & Post Services,Supplies & Services - Communications and Computing,10/12/2021,3293236,"1,029.48",Revenue,1014774,Royal Mail Group Ltd
Shropshire,00GG,People - Housing Options,Supplies & Services - Services,10/12/2021,3298062,"10,649.92",Revenue,1015762,Sydney House Hotel
Shropshire,00GG,Capital - Primary School Capital,Non Revenue - Non Revenue,13/12/2021,3297902,"11,589.31",Capital,1000615,H T L Windows & Doors Ltd
Shropshire,00GG,People - Internal Providers - Day Services,Premises-Related Expenditure - Cleaning and domestic supplies,13/12/2021,3290732,"2,001.12",Revenue,1000763,Phs Group Plc
Shropshire,00GG,Place - Shire Catering,Supplies & Services - Catering,13/12/2021,3298320,"1,293.00",Revenue,1000769,The Little Food Company Limited
Shropshire,00GG,Place - Shire Catering,Supplies & Services - Catering,13/12/2021,3298484,"1,021.10",Revenue,1000769,The Little Food Company Limited
Shropshire,00GG,People - Placements: Residential Placements,Transport-Related Expenditure - Public Transport,13/12/2021,3298192,98.09,Revenue,1001027,SC Ifton House Imprest Account
Shropshire,00GG,People - Placements: Residential Placements,Supplies & Services - Catering,13/12/2021,3298192,243.52,Revenue,1001027,SC Ifton House Imprest Account
Shropshire,00GG,People - Placements: Residential Placements,Third Party Payments - Other Establishments,13/12/2021,3298192,229.17,Revenue,1001027,SC Ifton House Imprest Account
Shropshire,00GG,Capital - Housing Services Capital,Non Revenue - Non Revenue,13/12/2021,3291138,"5,063.11",Capital,1001194,Access Mobility Solutions
Shropshire,00GG,Capital - Highways Capital,Non Revenue - Non Revenue,13/12/2021,3297722,"58,114.86",Capital,1001846,Mcphillips (Wellington) Ltd
Shropshire,00GG,People - Housing Options,Supplies & Services - Services,13/12/2021,3298424,"1,890.00",Revenue,1002000,The Raven Hotel
Shropshire,00GG,People - Social Care Community Purchasing,Third Party Payments - Private Contractors,13/12/2021,11335685,"1,649.14",Revenue,1002214,Condover College Ltd
Shropshire,00GG,People - Social Care Hospital Interface Purchasing,Third Party Payments - Private Contractors,13/12/2021,11335684,617.96,Revenue,1002304,Priority Care (Shropshire) Ltd
Shropshire,00GG,Adult Services - Supported Living Properties,Premises-Related Expenditure - Rents,13/12/2021,3298734,"1,307.12",Revenue,1002315,First Choice Housing Association Ltd
Shropshire,00GG,Adult Services - Supported Living Properties,Premises-Related Expenditure - Rents,13/12/2021,3298792,"6,623.70",Revenue,1002315,First Choice Housing Association Ltd
Shropshire,00GG,People - Learning & Skills Business Support,Supplies & Services - Services,13/12/2021,3298442,"3,600.00",Revenue,1002379,Broseley Town Council
Shropshire,00GG,Place - Leisure,Supplies & Services - Services,13/12/2021,3298785,"1,020.00",Revenue,1002582,The Swimming Teachers Association
Shropshire,00GG,People - Special Educational Needs & Disability,Third Party Payments - Other Establishments,13/12/2021,3298239,"6,966.67",Revenue,1002739,Bettws Lifehouse Ltd
Shropshire,00GG,People - Special Educational Needs & Disability,Third Party Payments - Other Establishments,13/12/2021,3298795,"9,366.67",Revenue,1002739,Bettws Lifehouse Ltd
Shropshire,00GG,Place - Environment and Transport (Public Transport),Transport-Related Expenditure - Contract Hire and Operating Leases,13/12/2021,3297404,629.50,Revenue,1003158,Car Hire (Day Of Swansea) Ltd
Shropshire,00GG,Resources - Risk Management and Insurance,Supplies & Services - Equipment Furniture and Materials,13/12/2021,3298037,"17,780.65",Revenue,1003166,Gallagher Bassett International Ltd
Shropshire,00GG,People - Home to School Transport,Transport-Related Expenditure - Contract Hire and Operating Leases,13/12/2021,3290105,"2,480.00",Revenue,1003303,M & S Coaches Of Herefordshire Limited
Shropshire,00GG,Adult Services - Public Health Children & Young People,Third Party Payments - Health Authorities,13/12/2021,3297830,"339,326.67",Revenue,1003483,Shropshire Community Health Nhs Trust
Shropshire,00GG,People - Housing Options,Supplies & Services - Services,13/12/2021,3298334,"1,930.00",Revenue,1003731,The Firs Riverside B&B Limited
Shropshire,00GG,People - Housing Options,Supplies & Services - Services,13/12/2021,3298453,"20,935.00",Revenue,1003731,The Firs Riverside B&B Limited
Shropshire,00GG,Place - Theatre Services,Third Party Payments - Private Contractors,13/12/2021,3298150,"34,614.38",Revenue,1004886,Mick Perrin Worldwide Ltd
Shropshire,00GG,People - Social Care Hospital Interface Purchasing,Third Party Payments - Private Contractors,13/12/2021,11335686,826.49,Revenue,1005424,Willow Home Care Ltd
Shropshire,00GG,People - Early Years,Third Party Payments - Other Establishments,13/12/2021,3298362,"1,893.75",Revenue,1008438,Sheriffhales Montessori Preschool
Shropshire,00GG,Place - Outdoor Partnerships,Premises-Related Expenditure - Repairs alterations and maintenance of buildings,13/12/2021,3294434,632.00,Revenue,1008554,W T Rowley & Sons
Shropshire,00GG,Place - Property Services Group,Premises-Related Expenditure - Repairs alterations and maintenance of buildings,13/12/2021,3298370,520.00,Revenue,1008554,W T Rowley & Sons
Shropshire,00GG,Place - Property Services Group,Premises-Related Expenditure - Repairs alterations and maintenance of buildings,13/12/2021,11335543,587.87,Revenue,1008559,Mant Ltd
Shropshire,00GG,Place - Property Services Group,Premises-Related Expenditure - Repairs alterations and maintenance of buildings,13/12/2021,11335545,420.02,Revenue,1008559,Mant Ltd
Shropshire,00GG,People - Non-Delegated Primary DSG,Premises-Related Expenditure - Repairs alterations and maintenance of buildings,13/12/2021,3297875,"2,122.90",Revenue,1008580,Eric Neville Catering Supplies Ltd
Shropshire,00GG,Capital - Housing Services Capital,Non Revenue - Non Revenue,13/12/2021,3297851,"3,588.00",Capital,1009278,Candor Care Limited
Shropshire,00GG,Capital - Housing Services Capital,Non Revenue - Non Revenue,13/12/2021,3297944,"9,252.00",Capital,1009278,Candor Care Limited
Shropshire,00GG,Capital - Housing Services Capital,Non Revenue - Non Revenue,13/12/2021,3298005,902.60,Capital,1009278,Candor Care Limited
Shropshire,00GG,People - Non-Delegated Primary DSG,Premises-Related Expenditure - Repairs alterations and maintenance of buildings,13/12/2021,11335532,"2,363.17",Revenue,1009380,MEB Total Limited
Shropshire,00GG,Health and Wellbeing - Regulatory Services,Supplies & Services - Services,13/12/2021,3298213,"1,550.00",Revenue,1009709,St Ives Chambers Fees Account
Shropshire,00GG,Place - Corporate Landlord - Museums & Culture,Premises-Related Expenditure - Rates,13/12/2021,3297852,"1,265.40",Revenue,1010548,Sc Bid Levy Account
Shropshire,00GG,People - Housing Options,Supplies & Services - Services,13/12/2021,3298570,"2,310.00",Revenue,1012682,Little Pub Company (Oswestry) Ltd  TA Railway Inn
Shropshire,00GG,People - Children�s Case Management,Supplies & Services - Services,13/12/2021,3298296,600.00,Revenue,1013963,Fresh Start Mediation
Shropshire,00GG,Resources - ICT Services,Supplies & Services - Communications and Computing,13/12/2021,3298247,"6,804.70",Revenue,1014784,Ee Limited
Shropshire,00GG,People - Home to School Transport,Transport-Related Expenditure - Contract Hire and Operating Leases,14/12/2021,3292651,"4,378.00",Revenue,1000198,Longmynd Travel Ltd
Shropshire,00GG,People - Home to School Transport,Transport-Related Expenditure - Contract Hire and Operating Leases,14/12/2021,3292654,"4,279.00",Revenue,1000198,Longmynd Travel Ltd
Shropshire,00GG,People - Home to School Transport,Transport-Related Expenditure - Contract Hire and Operating Leases,14/12/2021,3292669,"1,441.00",Revenue,1000198,Longmynd Travel Ltd
Shropshire,00GG,People - Home to School Transport,Transport-Related Expenditure - Contract Hire and Operating Leases,14/12/2021,3292673,"4,312.00",Revenue,1000198,Longmynd Travel Ltd
Shropshire,00GG,People - Home to School Transport,Transport-Related Expenditure - Contract Hire and Operating Leases,14/12/2021,3292683,"2,982.00",Revenue,1000198,Longmynd Travel Ltd
Shropshire,00GG,People - Home to School Transport,Transport-Related Expenditure - Contract Hire and Operating Leases,14/12/2021,3292688,"4,378.00",Revenue,1000198,Longmynd Travel Ltd
Shropshire,00GG,People - Home to School Transport,Transport-Related Expenditure - Contract Hire and Operating Leases,14/12/2021,3292698,"4,224.00",Revenue,1000198,Longmynd Travel Ltd
Shropshire,00GG,People - Home to School Transport,Transport-Related Expenditure - Contract Hire and Operating Leases,14/12/2021,3292701,"3,938.00",Revenue,1000198,Longmynd Travel Ltd
Shropshire,00GG,People - Home to School Transport,Transport-Related Expenditure - Contract Hire and Operating Leases,14/12/2021,3292707,"4,059.00",Revenue,1000198,Longmynd Travel Ltd
Shropshire,00GG,People - Home to School Transport,Transport-Related Expenditure - Contract Hire and Operating Leases,14/12/2021,3292985,"4,112.90",Revenue,1000198,Longmynd Travel Ltd
Shropshire,00GG,Place - Environment and Transport (Public Transport),Third Party Payments - Transport Operators,14/12/2021,3299068,"5,880.32",Revenue,1000204,Lakeside Coaches Ltd
Shropshire,00GG,People - Early Years,Supplies & Services - Services,14/12/2021,3299282,560.06,Revenue,1000237,N Power
Shropshire,00GG,People - Home to School Transport,Transport-Related Expenditure - Contract Hire and Operating Leases,14/12/2021,3293226,"1,738.00",Revenue,1000766,Birch Travel Ltd
Shropshire,00GG,People - Home to School Transport,Transport-Related Expenditure - Contract Hire and Operating Leases,14/12/2021,3293265,"3,003.00",Revenue,1000766,Birch Travel Ltd
Shropshire,00GG,People - Home to School Transport,Transport-Related Expenditure - Contract Hire and Operating Leases,14/12/2021,3293353,"3,696.00",Revenue,1000766,Birch Travel Ltd
Shropshire,00GG,People - Home to School Transport,Transport-Related Expenditure - Contract Hire and Operating Leases,14/12/2021,3293438,"3,696.00",Revenue,1000766,Birch Travel Ltd
Shropshire,00GG,Resources - Human Resources Operations,Employees - Indirect Employee Expenses,14/12/2021,3294582,"15,242.00",Revenue,1001174,Disclosure & Barring Services
Shropshire,00GG,People - Learning & Skills Business Support,Supplies & Services - Services,14/12/2021,3299311,"6,120.00",Revenue,1001260,Whitchurch Community Services Assoc
Shropshire,00GG,Place - Climate Change,Supplies & Services - Grants and Subscriptions,14/12/2021,3298260,"1,295.00",Revenue,1001268,Guardian News And Media Ltd
Shropshire,00GG,People - Social Care Hospital Interface Purchasing,Third Party Payments - Private Contractors,14/12/2021,11332927,"1,694.00",Revenue,1001613,New Dawn Care Ltd
Shropshire,00GG,People - Home to School Transport,Transport-Related Expenditure - Contract Hire and Operating Leases,14/12/2021,3299258,"1,417.00",Revenue,1001802,E J Griffiths
Shropshire,00GG,People - Learning & Skills Business Support,Supplies & Services - Services,14/12/2021,3299229,"3,600.00",Revenue,1002313,Shrewsbury Town In The Community
Shropshire,00GG,People - Learning & Skills Business Support,Supplies & Services - Services,14/12/2021,3299230,"3,600.00",Revenue,1002313,Shrewsbury Town In The Community
Shropshire,00GG,Place - Environment and Transport (Public Transport),Supplies & Services - Grants and Subscriptions,14/12/2021,3293275,"10,000.00",Revenue,1002534,Ceredigion County Council
Shropshire,00GG,Place - Leisure,Supplies & Services - Equipment Furniture and Materials,14/12/2021,3289955,"1,023.52",Revenue,1002644,Nigel Bramall
Shropshire,00GG,Adult Services - Social Care Hospital Interface Purchasing,Third Party Payments - Private Contractors,14/12/2021,11335881,710.40,Revenue,1002725,Bluebird Care (Shropshire Care Ltd)
Shropshire,00GG,Adult Services - Social Care Hospital Interface Purchasing,Third Party Payments - Private Contractors,14/12/2021,11335882,742.84,Revenue,1002725,Bluebird Care (Shropshire Care Ltd)
Shropshire,00GG,Adult Services - Social Care Hospital Interface Purchasing,Third Party Payments - Private Contractors,14/12/2021,11335884,818.00,Revenue,1002725,Bluebird Care (Shropshire Care Ltd)
Shropshire,00GG,Adult Services - Social Care Hospital Interface Purchasing,Third Party Payments - Private Contractors,14/12/2021,11335885,"1,260.00",Revenue,1002725,Bluebird Care (Shropshire Care Ltd)
Shropshire,00GG,Adult Services - Social Care Hospital Interface Purchasing,Third Party Payments - Private Contractors,14/12/2021,11335886,"1,349.96",Revenue,1002725,Bluebird Care (Shropshire Care Ltd)
Shropshire,00GG,Adult Services - Social Care Hospital Interface Purchasing,Third Party Payments - Private Contractors,14/12/2021,11335887,"1,324.33",Revenue,1002725,Bluebird Care (Shropshire Care Ltd)
Shropshire,00GG,People - Social Care Hospital Interface Purchasing,Third Party Payments - Private Contractors,14/12/2021,11335888,"1,664.20",Revenue,1002725,Bluebird Care (Shropshire Care Ltd)
Shropshire,00GG,Place - Environment and Transport (Public Transport),Transport-Related Expenditure - Contract Hire and Operating Leases,14/12/2021,3292065,"1,002.10",Revenue,1002991,Lex Autolease Ltd
Shropshire,00GG,Place - Highways (Operations),Third Party Payments - Private Contractors,14/12/2021,3289630,"1,160.00",Revenue,1003236,A Clayton Contracting Ltd
Shropshire,00GG,People - Special Educational Needs & Disability,Third Party Payments - Other Establishments,14/12/2021,3299113,"1,000.00",Revenue,1003515,The Marches School
Shropshire,00GG,People - Special Educational Needs & Disability,Third Party Payments - Other Establishments,14/12/2021,3299126,"2,578.00",Revenue,1003515,The Marches School
Shropshire,00GG,People - Learning & Skills Business Support,Supplies & Services - Services,14/12/2021,3298495,"3,600.00",Revenue,1003521,Activsports Ltd
Shropshire,00GG,Place - Environment and Transport (Public Transport),Third Party Payments - Transport Operators,14/12/2021,3299058,840.65,Revenue,1003603,Celtic Travel
Shropshire,00GG,Resources - Print & Post Services,Supplies & Services - Communications and Computing,14/12/2021,3293264,"3,032.87",Revenue,1003729,Whistl North Limited
Shropshire,00GG,Place - Leisure,Supplies & Services - Equipment Furniture and Materials,14/12/2021,3298801,971.12,Revenue,1003962,Gym Solutions Ltd
Shropshire,00GG,People - Special Educational Needs & Disability,Third Party Payments - Other Establishments,14/12/2021,3298982,"1,829.00",Revenue,1004004,Bridgnorth Endowed School
Shropshire,00GG,Place - Environment and Transport (Public Transport),Third Party Payments - Transport Operators,14/12/2021,3299176,"6,332.90",Revenue,1004060,Diamond Bus Company Ltd
Shropshire,00GG,Legal and Democratic Services - Legal Services � Child Care,Supplies & Services - Services,14/12/2021,3298759,471.76,Revenue,1004250,Cater Walsh Reporting Ltd
Shropshire,00GG,People - Special Educational Needs & Disability,Third Party Payments - Other Establishments,14/12/2021,3299019,"1,000.00",Revenue,1004656,Stokesay Primary School
Shropshire,00GG,People - Early Years,Third Party Payments - Other Establishments,14/12/2021,11336094,"6,963.84",Revenue,1004656,Stokesay Primary School
Shropshire,00GG,People - Home to School Transport,Transport-Related Expenditure - Contract Hire and Operating Leases,14/12/2021,3292287,"1,050.00",Revenue,1004724,Swan Cabs Limited
Shropshire,00GG,People - Special Educational Needs & Disability,Third Party Payments - Other Establishments,14/12/2021,3299020,"4,331.00",Revenue,1004737,Longlands Primary School
Shropshire,00GG,Place - Environment and Transport (Public Transport),Third Party Payments - Transport Operators,14/12/2021,3299174,"1,181.43",Revenue,1004941,Banga Travel
Shropshire,00GG,People - Special Educational Needs & Disability,Third Party Payments - Other Establishments,14/12/2021,3298987,"1,167.00",Revenue,1004947,Bitterley C Of E Primary School
Shropshire,00GG,Place - Shire Catering,Supplies & Services - Equipment Furniture and Materials,14/12/2021,3299269,"1,279.04",Revenue,1005013,Nobisco Limited
Shropshire,00GG,People - Special Educational Needs & Disability,Third Party Payments - Other Establishments,14/12/2021,3299144,"2,168.00",Revenue,1005016,Shropshire Gateway Educational Trust (Stottesdon)
Shropshire,00GG,People - People Directorate Management,Employees - Direct Employee Expenses,14/12/2021,3289251,"3,928.56",Revenue,1005052,Hampton'S Resourcing
Shropshire,00GG,Adult Services - Adult Social Care Management,Employees - Direct Employee Expenses,14/12/2021,3292524,"4,761.90",Revenue,1005052,Hampton'S Resourcing
Shropshire,00GG,People - Adult Social Care Management,Employees - Direct Employee Expenses,14/12/2021,3292540,"2,857.14",Revenue,1005052,Hampton'S Resourcing
Shropshire,00GG,People - Special Educational Needs & Disability,Third Party Payments - Other Establishments,14/12/2021,3299029,"2,550.00",Revenue,1005584,Shrewsbury Academy Marches MAT
Shropshire,00GG,People - Special Educational Needs & Disability,Third Party Payments - Other Establishments,14/12/2021,3299005,542.00,Revenue,1005591,TrustEd Schools
Shropshire,00GG,People - Special Educational Needs & Disability,Third Party Payments - Other Establishments,14/12/2021,3299118,"1,709.00",Revenue,1005628,Ludlow Primary School
Shropshire,00GG,People - Special Educational Needs & Disability,Third Party Payments - Other Establishments,14/12/2021,3299074,"1,458.00",Revenue,1005913,Radbrook Primary School
Shropshire,00GG,People - Special Educational Needs & Disability,Third Party Payments - Other Establishments,14/12/2021,3298955,"1,416.00",Revenue,1005918,Burford Academy
Shropshire,00GG,People - Special Educational Needs & Disability,Third Party Payments - Other Establishments,14/12/2021,3299154,"2,914.00",Revenue,1005920,Sbmat Ta Greenfields School
Shropshire,00GG,People - Special Educational Needs & Disability,Third Party Payments - Other Establishments,14/12/2021,3299039,"2,955.00",Revenue,1005998,Severn Bridges Multi Academy Trust
Shropshire,00GG,Place - Environment and Transport (Public Transport),Transport-Related Expenditure - Direct Transport Costs,14/12/2021,3290630,"7,043.22",Revenue,1006053,Uk Fuels Limited
Shropshire,00GG,People - Early Years,Third Party Payments - Other Establishments,14/12/2021,11336060,"5,353.45",Revenue,1008302,White House School
Shropshire,00GG,People - Early Years,Third Party Payments - Other Establishments,14/12/2021,11336034,"4,352.40",Revenue,1008304,Little Acorns Of Rushbury
Shropshire,00GG,People - Early Years,Third Party Payments - Other Establishments,14/12/2021,11335932,"2,181.60",Revenue,1008306,Rainbow Pre School & Nursery
Shropshire,00GG,People - Early Years,Third Party Payments - Other Establishments,14/12/2021,11336047,"12,941.14",Revenue,1008306,Rainbow Pre School & Nursery
Shropshire,00GG,People - Early Years,Third Party Payments - Other Establishments,14/12/2021,11336051,"1,624.90",Revenue,1008307,Stepping Stones Nursery(Church Stretton)
Shropshire,00GG,People - Early Years,Third Party Payments - Other Establishments,14/12/2021,11336063,"14,637.12",Revenue,1008309,Prestfelde School
Shropshire,00GG,People - Early Years,Third Party Payments - Other Establishments,14/12/2021,11335930,545.40,Revenue,1008310,Pant Pandas Childcare Centre
Shropshire,00GG,People - Early Years,Third Party Payments - Other Establishments,14/12/2021,11336043,"11,751.48",Revenue,1008310,Pant Pandas Childcare Centre
Shropshire,00GG,People - Early Years,Third Party Payments - Other Establishments,14/12/2021,11335911,"4,799.52",Revenue,1008314,Gobowen All Rounders Childcare
Shropshire,00GG,People - Early Years,Third Party Payments - Other Establishments,14/12/2021,11336022,"20,050.06",Revenue,1008314,Gobowen All Rounders Childcare
Shropshire,00GG,People - Early Years,Third Party Payments - Other Establishments,14/12/2021,11335942,"1,963.44",Revenue,1008315,Whittington Under Fives Playgroups
Shropshire,00GG,People - Early Years,Third Party Payments - Other Establishments,14/12/2021,11336059,"14,130.79",Revenue,1008315,Whittington Under Fives Playgroups
Shropshire,00GG,People - Early Years,Third Party Payments - Other Establishments,14/12/2021,11335908,"2,181.60",Revenue,1008317,Earlyworld Nursery
Shropshire,00GG,People - Early Years,Third Party Payments - Other Establishments,14/12/2021,11336019,"52,664.04",Revenue,1008317,Earlyworld Nursery
Shropshire,00GG,People - Early Years,Third Party Payments - Other Establishments,14/12/2021,11335918,"2,181.60",Revenue,1008318,Kaleidoscope
Shropshire,00GG,People - Early Years,Third Party Payments - Other Establishments,14/12/2021,11336029,"30,495.82",Revenue,1008318,Kaleidoscope
Shropshire,00GG,People - Early Years,Third Party Payments - Other Establishments,14/12/2021,11336061,"14,014.73",Revenue,1008319,St Winefrides School
Shropshire,00GG,People - Early Years,Third Party Payments - Other Establishments,14/12/2021,11335928,"5,999.40",Revenue,1008320,Oswestry Methodist Pre School
Shropshire,00GG,People - Early Years,Third Party Payments - Other Establishments,14/12/2021,11336041,"7,834.32",Revenue,1008320,Oswestry Methodist Pre School
Shropshire,00GG,People - Early Years,Third Party Payments - Other Establishments,14/12/2021,11335996,545.40,Revenue,1008322,Baschurch Pre School Group
Shropshire,00GG,People - Early Years,Third Party Payments - Other Establishments,14/12/2021,11336182,"23,938.20",Revenue,1008322,Baschurch Pre School Group
Shropshire,00GG,People - Early Years,Third Party Payments - Other Establishments,14/12/2021,11335925,"1,090.80",Revenue,1008323,Nesscliffe House Nursery School
Shropshire,00GG,People - Early Years,Third Party Payments - Other Establishments,14/12/2021,11336038,"7,921.37",Revenue,1008323,Nesscliffe House Nursery School
Shropshire,00GG,People - Early Years,Third Party Payments - Other Establishments,14/12/2021,11335919,"1,636.20",Revenue,1008324,Radbrook Nursery & Pre-School
Shropshire,00GG,People - Early Years,Third Party Payments - Other Establishments,14/12/2021,11336030,"9,488.23",Revenue,1008324,Radbrook Nursery & Pre-School
Shropshire,00GG,People - Early Years,Third Party Payments - Other Establishments,14/12/2021,11335901,"1,090.80",Revenue,1008325,Bomere Heath Sunshine Pre School
Shropshire,00GG,People - Early Years,Third Party Payments - Other Establishments,14/12/2021,11336009,"5,832.22",Revenue,1008325,Bomere Heath Sunshine Pre School
Shropshire,00GG,People - Early Years,Third Party Payments - Other Establishments,14/12/2021,11335920,"2,181.60",Revenue,1008326,Kingfisher Nursery School
Shropshire,00GG,People - Early Years,Third Party Payments - Other Establishments,14/12/2021,11336031,"26,404.56",Revenue,1008326,Kingfisher Nursery School
Shropshire,00GG,People - Early Years,Third Party Payments - Other Establishments,14/12/2021,11335989,999.90,Revenue,1008327,Condover Pre-School Playgroup
Shropshire,00GG,People - Early Years,Third Party Payments - Other Establishments,14/12/2021,11336172,"4,018.72",Revenue,1008327,Condover Pre-School Playgroup
Shropshire,00GG,People - Early Years,Third Party Payments - Other Establishments,14/12/2021,11335927,545.40,Revenue,1008328,Opportunity Pre School Playgroup
Shropshire,00GG,People - Early Years,Third Party Payments - Other Establishments,14/12/2021,11336040,"6,006.31",Revenue,1008328,Opportunity Pre School Playgroup
Shropshire,00GG,People - Early Years,Third Party Payments - Other Establishments,14/12/2021,11336048,"10,054.04",Revenue,1008331,St Marys Nursery Albrighton
Shropshire,00GG,People - Early Years,Third Party Payments - Other Establishments,14/12/2021,11336033,"1,740.96",Revenue,1008332,Oswestry School - Bellan House
Shropshire,00GG,People - Early Years,Third Party Payments - Other Establishments,14/12/2021,11336045,"2,176.20",Revenue,1008333,Church Preen Pre-School
Shropshire,00GG,People - Early Years,Third Party Payments - Other Establishments,14/12/2021,11335935,"2,036.16",Revenue,1008334,Little Owls (Broseley)
Shropshire,00GG,People - Early Years,Third Party Payments - Other Establishments,14/12/2021,11336052,"25,962.07",Revenue,1008334,Little Owls (Broseley)
Shropshire,00GG,People - Early Years,Third Party Payments - Other Establishments,14/12/2021,11335994,872.64,Revenue,1008336,Wistanstow Under 5'S
Shropshire,00GG,People - Early Years,Third Party Payments - Other Establishments,14/12/2021,11336180,"3,917.16",Revenue,1008336,Wistanstow Under 5'S
Shropshire,00GG,People - Early Years,Third Party Payments - Other Establishments,14/12/2021,11335902,"1,345.32",Revenue,1008338,Little Explorer'S Pre-School
Shropshire,00GG,People - Early Years,Third Party Payments - Other Establishments,14/12/2021,11336012,"7,515.14",Revenue,1008338,Little Explorer'S Pre-School
Shropshire,00GG,People - Early Years,Third Party Payments - Other Establishments,14/12/2021,11335917,"3,817.80",Revenue,1008342,Holy Trinity Playgroup
Shropshire,00GG,People - Early Years,Third Party Payments - Other Establishments,14/12/2021,11336028,"9,575.28",Revenue,1008342,Holy Trinity Playgroup
Shropshire,00GG,People - Early Years,Third Party Payments - Other Establishments,14/12/2021,11335936,"3,817.80",Revenue,1008343,Jennifer Lace Childcare (Shropshire) Ltd T/A The Little Green House Childcare Bridgnorth
Shropshire,00GG,People - Early Years,Third Party Payments - Other Establishments,14/12/2021,11336053,"19,063.51",Revenue,1008343,Jennifer Lace Childcare (Shropshire) Ltd T/A The Little Green House Childcare Bridgnorth
Shropshire,00GG,People - Early Years,Third Party Payments - Other Establishments,14/12/2021,11336044,"35,776.73",Revenue,1008344,Peter Pan Nursery
Shropshire,00GG,People - Early Years,Third Party Payments - Other Establishments,14/12/2021,11335924,"3,817.80",Revenue,1008345,Mount Lane Day Nursery
Shropshire,00GG,People - Early Years,Third Party Payments - Other Establishments,14/12/2021,11336037,"26,462.59",Revenue,1008345,Mount Lane Day Nursery
Shropshire,00GG,People - Early Years,Third Party Payments - Other Establishments,14/12/2021,11336010,"8,704.80",Revenue,1008346,Border Pre School
Shropshire,00GG,People - Early Years,Third Party Payments - Other Establishments,14/12/2021,11335906,"2,181.60",Revenue,1008347,Crowgate Child Centre
Shropshire,00GG,People - Early Years,Third Party Payments - Other Establishments,14/12/2021,11336017,"7,747.27",Revenue,1008347,Crowgate Child Centre
Shropshire,00GG,People - Early Years,Third Party Payments - Other Establishments,14/12/2021,11336015,"30,814.99",Revenue,1008348,Country Kids Day Nursery
Shropshire,00GG,People - Early Years,Third Party Payments - Other Establishments,14/12/2021,11335907,545.40,Revenue,1008349,Dorrington Nursery
Shropshire,00GG,People - Early Years,Third Party Payments - Other Establishments,14/12/2021,11336018,"2,669.47",Revenue,1008349,Dorrington Nursery
Shropshire,00GG,People - Early Years,Third Party Payments - Other Establishments,14/12/2021,11336062,"24,112.30",Revenue,1008352,Moor Park School
Shropshire,00GG,People - Early Years,Third Party Payments - Other Establishments,14/12/2021,11335922,"2,181.60",Revenue,1008353,Minsterley Nursery
Shropshire,00GG,People - Early Years,Third Party Payments - Other Establishments,14/12/2021,11336035,"10,489.28",Revenue,1008353,Minsterley Nursery
Shropshire,00GG,People - Early Years,Third Party Payments - Other Establishments,14/12/2021,11335960,"1,854.36",Revenue,1008354,Shropshire Gateway Educational Trust (The Warren)
Shropshire,00GG,People - Early Years,Third Party Payments - Other Establishments,14/12/2021,11336117,"9,488.23",Revenue,1008354,Shropshire Gateway Educational Trust (The Warren)
Shropshire,00GG,People - Early Years,Third Party Payments - Other Establishments,14/12/2021,11335900,"2,181.60",Revenue,1008356,Bicton Heath Pre-School
Shropshire,00GG,People - Early Years,Third Party Payments - Other Establishments,14/12/2021,11336008,"16,945.34",Revenue,1008356,Bicton Heath Pre-School
Shropshire,00GG,People - Early Years,Third Party Payments - Other Establishments,14/12/2021,11335916,545.40,Revenue,1008358,Hodnet Pre-School Playgroup
Shropshire,00GG,People - Early Years,Third Party Payments - Other Establishments,14/12/2021,11336027,"6,165.90",Revenue,1008358,Hodnet Pre-School Playgroup
Shropshire,00GG,People - Early Years,Third Party Payments - Other Establishments,14/12/2021,11335921,"1,636.20",Revenue,1008359,Kinlet Family Playgroup
Shropshire,00GG,People - Early Years,Third Party Payments - Other Establishments,14/12/2021,11336032,"7,000.11",Revenue,1008359,Kinlet Family Playgroup
Shropshire,00GG,People - Early Years,Third Party Payments - Other Establishments,14/12/2021,11335923,545.40,Revenue,1008361,Morda Village Pre School
Shropshire,00GG,People - Early Years,Third Party Payments - Other Establishments,14/12/2021,11336036,"7,573.18",Revenue,1008361,Morda Village Pre School
Shropshire,00GG,People - Early Years,Third Party Payments - Other Establishments,14/12/2021,11335938,"7,635.60",Revenue,1008362,Twyford Tots Nursery
Shropshire,00GG,People - Early Years,Third Party Payments - Other Establishments,14/12/2021,11336055,"47,876.40",Revenue,1008362,Twyford Tots Nursery
Shropshire,00GG,People - Early Years,Third Party Payments - Other Establishments,14/12/2021,11335988,"2,036.16",Revenue,1008363,Spring RAF Shawbury
Shropshire,00GG,People - Early Years,Third Party Payments - Other Establishments,14/12/2021,11336170,"14,246.86",Revenue,1008363,Spring RAF Shawbury
Shropshire,00GG,People - Early Years,Third Party Payments - Other Establishments,14/12/2021,11335905,"1,090.80",Revenue,1008364,Craven Arms Playgroup
Shropshire,00GG,People - Early Years,Third Party Payments - Other Establishments,14/12/2021,11336016,"8,269.56",Revenue,1008364,Craven Arms Playgroup
Shropshire,00GG,People - Early Years,Third Party Payments - Other Establishments,14/12/2021,11335926,509.04,Revenue,1008365,Newcastle Childrens Centre
Shropshire,00GG,People - Early Years,Third Party Payments - Other Establishments,14/12/2021,11336039,"1,247.69",Revenue,1008365,Newcastle Childrens Centre
Shropshire,00GG,People - Early Years,Third Party Payments - Other Establishments,14/12/2021,11335933,"2,727.00",Revenue,1008366,Hidden Treasures
Shropshire,00GG,People - Early Years,Third Party Payments - Other Establishments,14/12/2021,11336049,"7,921.37",Revenue,1008366,Hidden Treasures
Shropshire,00GG,People - Early Years,Third Party Payments - Other Establishments,14/12/2021,11336011,"2,872.58",Revenue,1008367,Brockton Pre School
Shropshire,00GG,People - Early Years,Third Party Payments - Other Establishments,14/12/2021,11336003,"1,090.80",Revenue,1008368,Carrie Harper T/A The Column Nursery
Shropshire,00GG,People - Early Years,Third Party Payments - Other Establishments,14/12/2021,11336191,"11,751.48",Revenue,1008368,Carrie Harper T/A The Column Nursery
Shropshire,00GG,People - Early Years,Third Party Payments - Other Establishments,14/12/2021,11336006,"4,787.64",Revenue,1008370,Abkats
Shropshire,00GG,People - Early Years,Third Party Payments - Other Establishments,14/12/2021,11335913,"2,181.60",Revenue,1008371,Hazles Farm Day Nursery
Shropshire,00GG,People - Early Years,Third Party Payments - Other Establishments,14/12/2021,11336024,"18,280.08",Revenue,1008371,Hazles Farm Day Nursery
Shropshire,00GG,People - Early Years,Third Party Payments - Other Establishments,14/12/2021,11335939,"9,271.80",Revenue,1008372,Wem Playmates Nursery
Shropshire,00GG,People - Early Years,Third Party Payments - Other Establishments,14/12/2021,11336056,"23,764.10",Revenue,1008372,Wem Playmates Nursery
Shropshire,00GG,People - Early Years,Third Party Payments - Other Establishments,14/12/2021,11335903,545.40,Revenue,1008373,Busy Bodies Childrens Centre
Shropshire,00GG,People - Early Years,Third Party Payments - Other Establishments,14/12/2021,11336013,"13,057.20",Revenue,1008373,Busy Bodies Childrens Centre
Shropshire,00GG,People - Early Years,Third Party Payments - Other Establishments,14/12/2021,11336002,"7,635.60",Revenue,1008374,Kidszone
Shropshire,00GG,People - Early Years,Third Party Payments - Other Establishments,14/12/2021,11336190,"20,021.04",Revenue,1008374,Kidszone
Shropshire,00GG,People - Early Years,Third Party Payments - Other Establishments,14/12/2021,11335972,"5,454.00",Revenue,1008375,Bargates Playgroup
Shropshire,00GG,People - Early Years,Third Party Payments - Other Establishments,14/12/2021,11336137,"13,463.42",Revenue,1008375,Bargates Playgroup
Shropshire,00GG,People - Early Years,Third Party Payments - Other Establishments,14/12/2021,11335912,"5,454.00",Revenue,1008376,Little Greenfields Preschool Cic
Shropshire,00GG,People - Early Years,Third Party Payments - Other Establishments,14/12/2021,11336023,"4,004.21",Revenue,1008376,Little Greenfields Preschool Cic
Shropshire,00GG,People - Early Years,Third Party Payments - Other Establishments,14/12/2021,11335909,999.90,Revenue,1008377,Ellesmere Ducklings Pre School
Shropshire,00GG,People - Early Years,Third Party Payments - Other Establishments,14/12/2021,11336020,"3,133.73",Revenue,1008377,Ellesmere Ducklings Pre School
Shropshire,00GG,People - Early Years,Third Party Payments - Other Establishments,14/12/2021,11335940,545.40,Revenue,1008378,Weston Rhyn Playgroup
Shropshire,00GG,People - Early Years,Third Party Payments - Other Establishments,14/12/2021,11336057,"5,803.20",Revenue,1008378,Weston Rhyn Playgroup
Shropshire,00GG,People - Early Years,Third Party Payments - Other Establishments,14/12/2021,11335915,"1,636.20",Revenue,1008379,Hillside House Nursery
Shropshire,00GG,People - Early Years,Third Party Payments - Other Establishments,14/12/2021,11336026,"50,168.66",Revenue,1008379,Hillside House Nursery
Shropshire,00GG,People - Early Years,Third Party Payments - Other Establishments,14/12/2021,11336004,545.40,Revenue,1008380,CATERPILLARS CHILDCARE
Shropshire,00GG,People - Early Years,Third Party Payments - Other Establishments,14/12/2021,11336192,"8,704.80",Revenue,1008380,CATERPILLARS CHILDCARE
Shropshire,00GG,People - Early Years,Third Party Payments - Other Establishments,14/12/2021,11335934,"2,181.60",Revenue,1008381,Stargazers Nursery
Shropshire,00GG,People - Early Years,Third Party Payments - Other Establishments,14/12/2021,11336050,"20,456.28",Revenue,1008381,Stargazers Nursery
Shropshire,00GG,People - Early Years,Third Party Payments - Other Establishments,14/12/2021,11335941,"3,272.40",Revenue,1008382,Whitchurch Pre Sch Nursery (Whtchurch) L
Shropshire,00GG,People - Early Years,Third Party Payments - Other Establishments,14/12/2021,11336058,"16,539.12",Revenue,1008382,Whitchurch Pre Sch Nursery (Whtchurch) L
Shropshire,00GG,People - Early Years,Third Party Payments - Other Establishments,14/12/2021,11335929,"3,599.64",Revenue,1008385,Little Acorns At Our Lady & St Oswald Sc
Shropshire,00GG,People - Early Years,Third Party Payments - Other Establishments,14/12/2021,11336042,"9,140.04",Revenue,1008385,Little Acorns At Our Lady & St Oswald Sc
Shropshire,00GG,People - Early Years,Third Party Payments - Other Establishments,14/12/2021,11335937,"2,727.00",Revenue,1008386,Tiddlywinks Shrewsbury Ltd
Shropshire,00GG,People - Early Years,Third Party Payments - Other Establishments,14/12/2021,11336054,"14,362.92",Revenue,1008386,Tiddlywinks Shrewsbury Ltd
Shropshire,00GG,People - Early Years,Third Party Payments - Other Establishments,14/12/2021,11335910,"3,817.80",Revenue,1008387,Footsteps Nursery
Shropshire,00GG,People - Early Years,Third Party Payments - Other Establishments,14/12/2021,11336021,"12,273.77",Revenue,1008387,Footsteps Nursery
Shropshire,00GG,People - Early Years,Third Party Payments - Other Establishments,14/12/2021,11335952,"3,817.80",Revenue,1008389,Highley Minors Childcare
Shropshire,00GG,People - Early Years,Third Party Payments - Other Establishments,14/12/2021,11336103,"20,804.47",Revenue,1008389,Highley Minors Childcare
Shropshire,00GG,People - Early Years,Third Party Payments - Other Establishments,14/12/2021,11336110,"8,414.64",Revenue,1008391,Moreton Hall School
Shropshire,00GG,People - Early Years,Third Party Payments - Other Establishments,14/12/2021,11335953,"2,181.60",Revenue,1008392,Farm Friends Day Nursery
Shropshire,00GG,People - Early Years,Third Party Payments - Other Establishments,14/12/2021,11336105,"25,911.29",Revenue,1008392,Farm Friends Day Nursery
Shropshire,00GG,People - Early Years,Third Party Payments - Other Establishments,14/12/2021,11335956,"1,090.80",Revenue,1008393,Birchfield Prepcare Day Nursery
Shropshire,00GG,People - Early Years,Third Party Payments - Other Establishments,14/12/2021,11336109,"16,887.31",Revenue,1008393,Birchfield Prepcare Day Nursery
Shropshire,00GG,People - Early Years,Third Party Payments - Other Establishments,14/12/2021,11335958,"2,116.15",Revenue,1008394,The Ark
Shropshire,00GG,People - Early Years,Third Party Payments - Other Establishments,14/12/2021,11336113,"27,321.47",Revenue,1008394,The Ark
Shropshire,00GG,People - Early Years,Third Party Payments - Other Establishments,14/12/2021,11335993,"4,908.60",Revenue,1008396,Little Explorers Pre School
Shropshire,00GG,People - Early Years,Third Party Payments - Other Establishments,14/12/2021,11336179,"46,425.60",Revenue,1008396,Little Explorers Pre School
Shropshire,00GG,People - Early Years,Third Party Payments - Other Establishments,14/12/2021,11335962,"3,272.40",Revenue,1008399,Daisy Chain At Mytton Oak
Shropshire,00GG,People - Early Years,Third Party Payments - Other Establishments,14/12/2021,11336121,"30,466.80",Revenue,1008399,Daisy Chain At Mytton Oak
Shropshire,00GG,People - Early Years,Third Party Payments - Other Establishments,14/12/2021,11335964,"1,090.80",Revenue,1008401,Happy Faces Day Care Nursery Ltd
Shropshire,00GG,People - Early Years,Third Party Payments - Other Establishments,14/12/2021,11336125,"7,399.08",Revenue,1008401,Happy Faces Day Care Nursery Ltd
Shropshire,00GG,People - Early Years,Third Party Payments - Other Establishments,14/12/2021,11335963,545.40,Revenue,1008402,Bojangles Nursery (West Midlands) Ltd
Shropshire,00GG,People - Early Years,Third Party Payments - Other Establishments,14/12/2021,11336124,"7,544.16",Revenue,1008402,Bojangles Nursery (West Midlands) Ltd
Shropshire,00GG,People - Early Years,Third Party Payments - Other Establishments,14/12/2021,11336067,"1,537.85",Revenue,1008403,Emily Dexter
Shropshire,00GG,People - Early Years,Third Party Payments - Other Establishments,14/12/2021,11336076,"2,408.33",Revenue,1008404,Jane Maddox
Shropshire,00GG,People - Early Years,Third Party Payments - Other Establishments,14/12/2021,11336066,"5,658.12",Revenue,1008405,Hilarys Childminders Ltd
Shropshire,00GG,People - Early Years,Third Party Payments - Other Establishments,14/12/2021,11336071,"1,276.70",Revenue,1008406,Fiona Egerton
Shropshire,00GG,People - Early Years,Third Party Payments - Other Establishments,14/12/2021,11336101,"5,745.17",Revenue,1008407,Kym Crippin
Shropshire,00GG,People - Early Years,Third Party Payments - Other Establishments,14/12/2021,11335965,"2,727.00",Revenue,1008409,Oswestry School Prepcare Nursery
Shropshire,00GG,People - Early Years,Third Party Payments - Other Establishments,14/12/2021,11336127,"24,475.00",Revenue,1008409,Oswestry School Prepcare Nursery
Shropshire,00GG,People - Early Years,Third Party Payments - Other Establishments,14/12/2021,11335946,"1,090.80",Revenue,1008410,L E Philbin
Shropshire,00GG,People - Early Years,Third Party Payments - Other Establishments,14/12/2021,11336080,"1,973.09",Revenue,1008410,L E Philbin
Shropshire,00GG,People - Early Years,Third Party Payments - Other Establishments,14/12/2021,11336007,696.38,Revenue,1008412,Barbara Eames
Shropshire,00GG,People - Early Years,Third Party Payments - Other Establishments,14/12/2021,11336111,"4,142.03",Revenue,1008416,Victoria Hancox
Shropshire,00GG,People - Early Years,Third Party Payments - Other Establishments,14/12/2021,11335954,"5,454.00",Revenue,1008417,Meadow Farm Pre-School
Shropshire,00GG,People - Early Years,Third Party Payments - Other Establishments,14/12/2021,11336106,"6,006.31",Revenue,1008417,Meadow Farm Pre-School
Shropshire,00GG,People - Early Years,Third Party Payments - Other Establishments,14/12/2021,11335945,"1,636.20",Revenue,1008421,Carol Forsyth
Shropshire,00GG,People - Early Years,Third Party Payments - Other Establishments,14/12/2021,11336072,"2,611.44",Revenue,1008421,Carol Forsyth
Shropshire,00GG,People - Early Years,Third Party Payments - Other Establishments,14/12/2021,11335944,545.40,Revenue,1008422,Julie Edwards
Shropshire,00GG,People - Early Years,Third Party Payments - Other Establishments,14/12/2021,11336070,"3,191.76",Revenue,1008422,Julie Edwards
Shropshire,00GG,People - Early Years,Third Party Payments - Other Establishments,14/12/2021,11335970,"1,090.80",Revenue,1008423,Newbridge Day Nursery
Shropshire,00GG,People - Early Years,Third Party Payments - Other Establishments,14/12/2021,11336133,"15,015.78",Revenue,1008423,Newbridge Day Nursery
Shropshire,00GG,People - Early Years,Third Party Payments - Other Establishments,14/12/2021,11336126,"4,990.75",Revenue,1008424,Samantha Turner
Shropshire,00GG,People - Early Years,Third Party Payments - Other Establishments,14/12/2021,11335969,"1,636.20",Revenue,1008425,Chatterbox Pre-School & Out Of School
Shropshire,00GG,People - Early Years,Third Party Payments - Other Establishments,14/12/2021,11336132,"12,970.15",Revenue,1008425,Chatterbox Pre-School & Out Of School
Shropshire,00GG,People - Early Years,Third Party Payments - Other Establishments,14/12/2021,11336104,"2,437.34",Revenue,1008426,Karen Hayward
Shropshire,00GG,People - Early Years,Third Party Payments - Other Establishments,14/12/2021,11335955,545.40,Revenue,1008428,Kelly-Marie Thomas Morgan
Shropshire,00GG,People - Early Years,Third Party Payments - Other Establishments,14/12/2021,11336107,"2,176.20",Revenue,1008428,Kelly-Marie Thomas Morgan
Shropshire,00GG,People - Early Years,Third Party Payments - Other Establishments,14/12/2021,11336112,"2,698.49",Revenue,1008429,Suzanne Wigley TA Su's Childminding
Shropshire,00GG,People - Early Years,Third Party Payments - Other Establishments,14/12/2021,11336100,"1,175.15",Revenue,1008432,Jo-Anne Pugh
Shropshire,00GG,People - Early Years,Third Party Payments - Other Establishments,14/12/2021,11335971,"1,090.80",Revenue,1008436,Katherine Satoor
Shropshire,00GG,People - Early Years,Third Party Payments - Other Establishments,14/12/2021,11336135,"5,193.86",Revenue,1008436,Katherine Satoor
Shropshire,00GG,People - Early Years,Third Party Payments - Other Establishments,14/12/2021,11336134,522.29,Revenue,1008437,Ceris Jones
Shropshire,00GG,People - Early Years,Third Party Payments - Other Establishments,14/12/2021,11335974,"1,636.20",Revenue,1008438,Sheriffhales Montessori Preschool
Shropshire,00GG,People - Early Years,Third Party Payments - Other Establishments,14/12/2021,11336139,"5,048.78",Revenue,1008438,Sheriffhales Montessori Preschool
Shropshire,00GG,People - Early Years,Third Party Payments - Other Establishments,14/12/2021,11336108,"1,798.99",Revenue,1008440,Elaine Townsend
Shropshire,00GG,People - Early Years,Third Party Payments - Other Establishments,14/12/2021,11336064,"1,973.09",Revenue,1008442,Jacqueline Bateman
Shropshire,00GG,People - Early Years,Third Party Payments - Other Establishments,14/12/2021,11335995,"1,090.80",Revenue,1008443,Little Pixies nursery Limited
Shropshire,00GG,People - Early Years,Third Party Payments - Other Establishments,14/12/2021,11336181,"20,079.07",Revenue,1008443,Little Pixies nursery Limited
Shropshire,00GG,People - Early Years,Third Party Payments - Other Establishments,14/12/2021,11336099,"3,394.87",Revenue,1008445,Caroline Holloway
Shropshire,00GG,People - Early Years,Third Party Payments - Other Establishments,14/12/2021,11335973,545.40,Revenue,1008447,Ever After Nursery
Shropshire,00GG,People - Early Years,Third Party Payments - Other Establishments,14/12/2021,11336138,"9,575.28",Revenue,1008447,Ever After Nursery
Shropshire,00GG,People - Early Years,Third Party Payments - Other Establishments,14/12/2021,11335975,"8,181.00",Revenue,1008448,The Mulberry Bush Day Nursery
Shropshire,00GG,People - Early Years,Third Party Payments - Other Establishments,14/12/2021,11336141,"18,715.32",Revenue,1008448,The Mulberry Bush Day Nursery
Shropshire,00GG,People - Early Years,Third Party Payments - Other Establishments,14/12/2021,11335977,"2,945.16",Revenue,1008454,Explorers At Sundorne
Shropshire,00GG,People - Early Years,Third Party Payments - Other Establishments,14/12/2021,11336144,"12,621.96",Revenue,1008454,Explorers At Sundorne
Shropshire,00GG,People - Early Years,Third Party Payments - Other Establishments,14/12/2021,11336140,"2,263.25",Revenue,1008455,Miss Rebecca Dubicki
Shropshire,00GG,People - Early Years,Third Party Payments - Other Establishments,14/12/2021,11335976,"1,090.80",Revenue,1008457,Little Poppets Nursery
Shropshire,00GG,People - Early Years,Third Party Payments - Other Establishments,14/12/2021,11336143,"10,010.52",Revenue,1008457,Little Poppets Nursery
Shropshire,00GG,People - Early Years,Third Party Payments - Other Establishments,14/12/2021,11335968,545.40,Revenue,1008458,Rachel Pyner
Shropshire,00GG,People - Early Years,Third Party Payments - Other Establishments,14/12/2021,11336131,870.48,Revenue,1008458,Rachel Pyner
Shropshire,00GG,People - Early Years,Third Party Payments - Other Establishments,14/12/2021,11336145,"20,572.34",Revenue,1008459,Shrewsbury Prepatoria Nursery
Shropshire,00GG,People - Early Years,Third Party Payments - Other Establishments,14/12/2021,11335978,"3,272.40",Revenue,1008463,Katies Kids Limited
Shropshire,00GG,People - Early Years,Third Party Payments - Other Establishments,14/12/2021,11336148,"31,366.30",Revenue,1008463,Katies Kids Limited
Shropshire,00GG,People - Early Years,Third Party Payments - Other Establishments,14/12/2021,11336122,"3,090.20",Revenue,1008468,Emma Harper
Shropshire,00GG,People - Early Years,Third Party Payments - Other Establishments,14/12/2021,11335947,545.40,Revenue,1008472,Miss K Y Price
Shropshire,00GG,People - Early Years,Third Party Payments - Other Establishments,14/12/2021,11336075,"1,740.96",Revenue,1008473,Rachels Childcare
Shropshire,00GG,People - Early Years,Third Party Payments - Other Establishments,14/12/2021,11335998,545.40,Revenue,1008474,The Park Pre-School
Shropshire,00GG,People - Early Years,Third Party Payments - Other Establishments,14/12/2021,11336184,"3,394.87",Revenue,1008474,The Park Pre-School
Shropshire,00GG,People - Early Years,Third Party Payments - Other Establishments,14/12/2021,11336074,"2,147.18",Revenue,1008475,Dawn Howells
Shropshire,00GG,People - Early Years,Third Party Payments - Other Establishments,14/12/2021,11335979,"1,090.80",Revenue,1008479,Childrensworld Cressage
Shropshire,00GG,People - Early Years,Third Party Payments - Other Establishments,14/12/2021,11336149,"12,621.96",Revenue,1008479,Childrensworld Cressage
Shropshire,00GG,People - Early Years,Third Party Payments - Other Establishments,14/12/2021,11336150,"1,915.06",Revenue,1008481,Julie Stinton
Shropshire,00GG,People - Early Years,Third Party Payments - Other Establishments,14/12/2021,11336146,696.38,Revenue,1008483,Connie-Louise Peate
Shropshire,00GG,People - Early Years,Third Party Payments - Other Establishments,14/12/2021,11335951,545.40,Revenue,1008487,Busy Bees Shrewsbury
Shropshire,00GG,People - Early Years,Third Party Payments - Other Establishments,14/12/2021,11336102,"40,477.32",Revenue,1008487,Busy Bees Shrewsbury
Shropshire,00GG,People - Early Years,Third Party Payments - Other Establishments,14/12/2021,11336186,"5,803.20",Revenue,1008488,Brookfield Day Nursery
Shropshire,00GG,People - Early Years,Third Party Payments - Other Establishments,14/12/2021,11336084,609.34,Revenue,1008490,Brenda Yvonne Ingham
Shropshire,00GG,People - Early Years,Third Party Payments - Other Establishments,14/12/2021,11336151,"20,891.52",Revenue,1008494,Cheryl Potter
Shropshire,00GG,People - Early Years,Third Party Payments - Other Establishments,14/12/2021,11335904,"4,145.04",Revenue,1008495,Cleobury Gateway Nursery
Shropshire,00GG,People - Early Years,Third Party Payments - Other Establishments,14/12/2021,11336014,"16,190.92",Revenue,1008495,Cleobury Gateway Nursery
Shropshire,00GG,People - Early Years,Third Party Payments - Other Establishments,14/12/2021,11335981,545.40,Revenue,1008497,Explorers At Trefonen
Shropshire,00GG,People - Early Years,Third Party Payments - Other Establishments,14/12/2021,11336155,"10,837.48",Revenue,1008497,Explorers At Trefonen
Shropshire,00GG,People - Early Years,Third Party Payments - Other Establishments,14/12/2021,11335959,545.40,Revenue,1008499,Baet Ta Bitterley C Of E Primary School
Shropshire,00GG,People - Early Years,Third Party Payments - Other Establishments,14/12/2021,11336116,"6,920.32",Revenue,1008499,Baet Ta Bitterley C Of E Primary School
Shropshire,00GG,People - Early Years,Third Party Payments - Other Establishments,14/12/2021,11336098,"6,354.50",Revenue,1008503,Priorslee Primary School Academy Trust
Shropshire,00GG,People - Early Years,Third Party Payments - Other Establishments,14/12/2021,11336097,"34,238.88",Revenue,1008506,Woodside School
Shropshire,00GG,People - Early Years,Third Party Payments - Other Establishments,14/12/2021,11335982,"1,090.80",Revenue,1008508,Barrow Village Pre-School Ltd
Shropshire,00GG,People - Early Years,Third Party Payments - Other Establishments,14/12/2021,11336157,"11,925.58",Revenue,1008508,Barrow Village Pre-School Ltd
Shropshire,00GG,People - Special Educational Needs & Disability,Third Party Payments - Other Establishments,14/12/2021,3298944,"5,668.00",Revenue,1008509,Ellesmere Primary School
Shropshire,00GG,People - Early Years,Third Party Payments - Other Establishments,14/12/2021,11336085,"43,407.94",Revenue,1008509,Ellesmere Primary School
Shropshire,00GG,People - Early Years,Third Party Payments - Other Establishments,14/12/2021,11336089,"22,342.32",Revenue,1008510,St Martins School
Shropshire,00GG,People - Early Years,Third Party Payments - Other Establishments,14/12/2021,11335914,"1,636.20",Revenue,1008511,The Acorn Children'S Centre
Shropshire,00GG,People - Early Years,Third Party Payments - Other Establishments,14/12/2021,11336025,"18,251.06",Revenue,1008511,The Acorn Children'S Centre
Shropshire,00GG,People - Early Years,Third Party Payments - Other Establishments,14/12/2021,11336158,"19,092.53",Revenue,1008513,Dad'S The Word
Shropshire,00GG,People - Early Years,Third Party Payments - Other Establishments,14/12/2021,11335950,"2,508.84",Revenue,1008515,Fields Multi Academy Trust - Prees CE Primary School and Nursery
Shropshire,00GG,People - Early Years,Third Party Payments - Other Establishments,14/12/2021,11336092,"14,798.16",Revenue,1008515,Fields Multi Academy Trust - Prees CE Primary School and Nursery
Shropshire,00GG,People - Early Years,Third Party Payments - Other Establishments,14/12/2021,11336115,"5,222.88",Revenue,1008516,TrustEd Schools
Shropshire,00GG,People - Early Years,Third Party Payments - Other Establishments,14/12/2021,11336159,"1,566.86",Revenue,1008517,Primrose Playhouse
Shropshire,00GG,People - Early Years,Third Party Payments - Other Establishments,14/12/2021,11335931,"2,727.00",Revenue,1008518,Poppets (Bridgnorth) Limited
Shropshire,00GG,People - Early Years,Third Party Payments - Other Establishments,14/12/2021,11336046,"13,927.68",Revenue,1008518,Poppets (Bridgnorth) Limited
Shropshire,00GG,People - Early Years,Third Party Payments - Other Establishments,14/12/2021,11335948,"1,599.84",Revenue,1008520,Ludlow Primary School
Shropshire,00GG,People - Early Years,Third Party Payments - Other Establishments,14/12/2021,11336090,"14,087.27",Revenue,1008520,Ludlow Primary School
Shropshire,00GG,People - Early Years,Third Party Payments - Other Establishments,14/12/2021,11336153,"2,611.44",Revenue,1008521,Sally Quinton
Shropshire,00GG,People - Early Years,Third Party Payments - Other Establishments,14/12/2021,11336078,"1,073.59",Revenue,1008522,Sarah Jones
Shropshire,00GG,People - Early Years,Third Party Payments - Other Establishments,14/12/2021,11336065,"1,044.58",Revenue,1008523,Angela Bramall
Shropshire,00GG,People - Early Years,Third Party Payments - Other Establishments,14/12/2021,11336081,"2,785.54",Revenue,1008524,Kathryn Pinches
Shropshire,00GG,People - Early Years,Third Party Payments - Other Establishments,14/12/2021,11336068,551.30,Revenue,1008527,Donna Downes
Shropshire,00GG,People - Early Years,Third Party Payments - Other Establishments,14/12/2021,11336130,"17,068.66",Revenue,1008528,Holy Trinity Ce Primary Academy & Nurse
Shropshire,00GG,People - Early Years,Third Party Payments - Other Establishments,14/12/2021,11336088,"20,238.66",Revenue,1008530,Sbmat Ta Greenfields Primary School
Shropshire,00GG,People - Early Years,Third Party Payments - Other Establishments,14/12/2021,11335967,"1,090.80",Revenue,1008532,Severn Bridge Mat Ta Mount Pleasant
Shropshire,00GG,People - Early Years,Third Party Payments - Other Establishments,14/12/2021,11336129,"19,343.81",Revenue,1008532,Severn Bridge Mat Ta Mount Pleasant
Shropshire,00GG,People - Early Years,Third Party Payments - Other Establishments,14/12/2021,11336154,957.53,Revenue,1008534,Claire Cartman
Shropshire,00GG,People - Early Years,Third Party Payments - Other Establishments,14/12/2021,11336136,"2,437.34",Revenue,1008536,Mrs Jenny Jones
Shropshire,00GG,People - Early Years,Third Party Payments - Other Establishments,14/12/2021,11336077,696.38,Revenue,1008538,Amanda Mullard
Shropshire,00GG,People - Early Years,Third Party Payments - Other Establishments,14/12/2021,11335961,545.40,Revenue,1008543,Stottesdon Gateway Nursery
Shropshire,00GG,People - Early Years,Third Party Payments - Other Establishments,14/12/2021,11336120,"4,671.58",Revenue,1008543,Stottesdon Gateway Nursery
Shropshire,00GG,People - Early Years,Third Party Payments - Other Establishments,14/12/2021,11335983,545.40,Revenue,1008545,Melanie Perks
Shropshire,00GG,People - Early Years,Third Party Payments - Other Establishments,14/12/2021,11336161,"2,408.33",Revenue,1008545,Melanie Perks
Shropshire,00GG,People - Early Years,Third Party Payments - Other Establishments,14/12/2021,11336086,"7,137.94",Revenue,1008548,TrustEd Schools
Shropshire,00GG,People - Special Educational Needs & Disability,Third Party Payments - Other Establishments,14/12/2021,3298996,"2,383.00",Revenue,1008900,The Grange Primary School
Shropshire,00GG,People - Special Educational Needs & Disability,Third Party Payments - Other Establishments,14/12/2021,3298963,"1,166.00",Revenue,1009071,Buildwas Academy
Shropshire,00GG,People - Special Educational Needs & Disability,Third Party Payments - Other Establishments,14/12/2021,3299143,"3,208.00",Revenue,1009184,Holy Trinity Ce Primary Academy
Shropshire,00GG,People - Special Educational Needs & Disability,Third Party Payments - Other Establishments,14/12/2021,3298943,"4,333.00",Revenue,1009228,Coleham Primary School
Shropshire,00GG,People - Special Educational Needs & Disability,Third Party Payments - Other Establishments,14/12/2021,3298966,"1,085.00",Revenue,1009708,Bast T/A Castlefields Primary
Shropshire,00GG,People - Special Educational Needs & Disability,Third Party Payments - Other Establishments,14/12/2021,3298865,"1,250.00",Revenue,1009916,Condover Ce Primary School
Shropshire,00GG,People - Special Educational Needs & Disability,Third Party Payments - Other Establishments,14/12/2021,3298974,"3,083.00",Revenue,1009951,Commercial redaction
Shropshire,00GG,People - Special Educational Needs & Disability,Third Party Payments - Other Establishments,14/12/2021,3298969,"1,166.00",Revenue,1009956,Shropshire Gateway Educational Trust (Clee Hill)
Shropshire,00GG,People - Learning & Skills Business Support,Supplies & Services - Services,14/12/2021,3298666,"2,880.00",Revenue,1010094,Storymine Community Interest Company
Shropshire,00GG,People - Social Care Hospital Interface Purchasing,Third Party Payments - Private Contractors,14/12/2021,11335889,"1,950.00",Revenue,1010097,Quil Care Group
Shropshire,00GG,People - Special Educational Needs & Disability,Third Party Payments - Other Establishments,14/12/2021,3299142,"2,292.00",Revenue,1010099,Tilstock Primary School
Shropshire,00GG,People - Early Years,Third Party Payments - Other Establishments,14/12/2021,11336095,"3,394.87",Revenue,1010099,Tilstock Primary School
Shropshire,00GG,People - Special Educational Needs & Disability,Third Party Payments - Other Establishments,14/12/2021,3299149,"1,333.00",Revenue,1010405,Fields Multi Academy Trust - Whixall CE Primary School and Nursery
Shropshire,00GG,People - Early Years,Third Party Payments - Other Establishments,14/12/2021,11336123,522.29,Revenue,1010408,Kelly Hooper
Shropshire,00GG,People - Learning & Skills Business Support,Supplies & Services - Services,14/12/2021,3298348,"1,100.00",Revenue,1010441,Pear Uk West Ltd
Shropshire,00GG,People - Special Educational Needs & Disability,Third Party Payments - Other Establishments,14/12/2021,3298998,667.00,Revenue,1010463,Bishops Castle Primary School
Shropshire,00GG,People - Early Years,Third Party Payments - Other Establishments,14/12/2021,11336093,"22,168.22",Revenue,1010700,Empower Trust
Shropshire,00GG,People - Early Years,Third Party Payments - Other Establishments,14/12/2021,11336087,"6,528.60",Revenue,1010701,Empower Trust
Shropshire,00GG,People - Early Years,Third Party Payments - Other Establishments,14/12/2021,11335949,"12,871.44",Revenue,1010702,Empower Trust
Shropshire,00GG,People - Early Years,Third Party Payments - Other Establishments,14/12/2021,11336091,"52,925.18",Revenue,1010702,Empower Trust
Shropshire,00GG,People - Special Educational Needs & Disability,Third Party Payments - Other Establishments,14/12/2021,3299140,"1,806.00",Revenue,1010725,Empower Trust
Shropshire,00GG,People - Special Educational Needs & Disability,Third Party Payments - Other Establishments,14/12/2021,3299063,"2,998.00",Revenue,1010726,Empower Trust
Shropshire,00GG,People - Special Educational Needs & Disability,Third Party Payments - Other Establishments,14/12/2021,3299013,"4,539.00",Revenue,1010727,Empower Trust
Shropshire,00GG,People - Special Educational Needs & Disability,Third Party Payments - Other Establishments,14/12/2021,3299131,"3,618.00",Revenue,1010728,Empower Trust
Shropshire,00GG,People - Special Educational Needs & Disability,Third Party Payments - Other Establishments,14/12/2021,3299054,"1,850.00",Revenue,1010729,Empower Trust
Shropshire,00GG,People - Special Educational Needs & Disability,Third Party Payments - Other Establishments,14/12/2021,3299130,"2,697.00",Revenue,1010730,Empower Trust
Shropshire,00GG,People - Learning & Skills Business Support,Supplies & Services - Services,14/12/2021,3298249,"3,240.00",Revenue,1010881,Educating Kids Outdoors
Shropshire,00GG,People - Home to School Transport,Transport-Related Expenditure - Contract Hire and Operating Leases,14/12/2021,3298483,704.00,Revenue,1011617,Personal redaction
Shropshire,00GG,Place - Planning Services,Income - Customer and Client Receipts,14/12/2021,3298947,"3,696.00",Revenue,1011756,Portal Plan Quest Ltd
Shropshire,00GG,People - Early Years,Third Party Payments - Other Establishments,14/12/2021,11336156,"1,160.64",Revenue,1011851,Cheri Jackson
Shropshire,00GG,People - Early Years,Third Party Payments - Other Establishments,14/12/2021,11336166,"1,378.26",Revenue,1011941,Rebecca Williamson
Shropshire,00GG,People - Early Years,Third Party Payments - Other Establishments,14/12/2021,11336167,"14,653.08",Revenue,1011966,Explorers at Hadnall
Shropshire,00GG,People - Early Years,Third Party Payments - Other Establishments,14/12/2021,11335986,"8,181.00",Revenue,1012371,Crowmoor Nursery and Preschool
Shropshire,00GG,People - Early Years,Third Party Payments - Other Establishments,14/12/2021,11336168,"18,280.08",Revenue,1012371,Crowmoor Nursery and Preschool
Shropshire,00GG,People - Early Years,Third Party Payments - Other Establishments,14/12/2021,11335987,"1,090.80",Revenue,1012469,Little Grubs Kindergarten
Shropshire,00GG,People - Early Years,Third Party Payments - Other Establishments,14/12/2021,11336169,"4,424.94",Revenue,1012469,Little Grubs Kindergarten
Shropshire,00GG,People - Early Years,Third Party Payments - Other Establishments,14/12/2021,11335980,"1,090.80",Revenue,1012760,Hillside House Nursery (Hook-a-Gate)
Shropshire,00GG,People - Early Years,Third Party Payments - Other Establishments,14/12/2021,11336152,"27,275.04",Revenue,1012760,Hillside House Nursery (Hook-a-Gate)
Shropshire,00GG,Place - Planning Services,Employees - Direct Employee Expenses,14/12/2021,3290439,"1,501.00",Revenue,1013010,Michael Davies - MPD Built Environment Consultants Limited
Shropshire,00GG,People - Special Educational Needs & Disability,Third Party Payments - Other Establishments,14/12/2021,3299145,"2,000.00",Revenue,1013052,Empower Trust
Shropshire,00GG,People - Early Years,Third Party Payments - Other Establishments,14/12/2021,11336118,"10,634.36",Revenue,1013052,Empower Trust
Shropshire,00GG,People - Learning & Skills Business Support,Supplies & Services - Services,14/12/2021,3298967,"1,841.00",Revenue,1013395,Park Hall Forest School
Shropshire,00GG,People - Early Years,Third Party Payments - Other Establishments,14/12/2021,11336173,"6,286.80",Revenue,1013395,Park Hall Forest School
Shropshire,00GG,People - Early Years,Third Party Payments - Other Establishments,14/12/2021,11335990,"4,908.60",Revenue,1013398,School's Out! Activity Club Ltd
Shropshire,00GG,People - Early Years,Third Party Payments - Other Establishments,14/12/2021,11336175,"2,611.44",Revenue,1013398,School's Out! Activity Club Ltd
Shropshire,00GG,People - Special Educational Needs & Disability,Third Party Payments - Other Establishments,14/12/2021,3299037,"2,583.00",Revenue,1014011,Bast T/A St Leonards Primary School
Shropshire,00GG,People - Special Educational Needs & Disability,Third Party Payments - Other Establishments,14/12/2021,3299069,"3,622.00",Revenue,1014030,Empower Trust
Shropshire,00GG,People - Early Years,Third Party Payments - Other Establishments,14/12/2021,11335984,545.40,Revenue,1014702,Amanda Rawlings & Alice Higgins
Shropshire,00GG,People - Early Years,Third Party Payments - Other Establishments,14/12/2021,11336162,"3,220.78",Revenue,1014702,Amanda Rawlings & Alice Higgins
Shropshire,00GG,People - Early Years,Third Party Payments - Other Establishments,14/12/2021,11335985,"1,636.20",Revenue,1014703,L J Batham
Shropshire,00GG,People - Early Years,Third Party Payments - Other Establishments,14/12/2021,11336163,"27,884.38",Revenue,1014703,L J Batham
Shropshire,00GG,People - Special Educational Needs & Disability,Third Party Payments - Other Establishments,14/12/2021,3299052,"2,083.00",Revenue,1014710,Whitchurch Ce Infant And Nursery Academy
Shropshire,00GG,People - Early Years,Third Party Payments - Other Establishments,14/12/2021,11336096,"31,337.28",Revenue,1014710,Whitchurch Ce Infant And Nursery Academy
Shropshire,00GG,People - Early Years,Third Party Payments - Other Establishments,14/12/2021,11336174,696.38,Revenue,1015591,Sharon Willis Childminding
Shropshire,00GG,People - Early Years,Third Party Payments - Other Establishments,14/12/2021,11335966,"1,636.20",Revenue,1016772,Oakmeadow Primary School (c/o Marches MAT)
Shropshire,00GG,People - Early Years,Third Party Payments - Other Establishments,14/12/2021,11336128,"23,822.14",Revenue,1016772,Oakmeadow Primary School (c/o Marches MAT)
Shropshire,00GG,People - Early Years,Third Party Payments - Other Establishments,14/12/2021,11336119,"5,694.39",Revenue,1016773,Lower Heath Primary School (c/o Marches MAT)
Shropshire,00GG,Health and Wellbeing - Sexual Health,Third Party Payments - Health Authorities,15/12/2021,3299081,898.00,Revenue,1000314,Bridgnorth Medical Practices
Shropshire,00GG,Health and Wellbeing - Sexual Health,Third Party Payments - Private Contractors,15/12/2021,3299081,563.44,Revenue,1000314,Bridgnorth Medical Practices
Shropshire,00GG,Capital - Primary School Capital,Non Revenue - Non Revenue,15/12/2021,3299306,"2,547.07",Capital,1000322,R M W Electrical Services Ltd
Shropshire,00GG,People - Non-Delegated Primary DSG,Premises-Related Expenditure - Repairs alterations and maintenance of buildings,15/12/2021,11332092,559.09,Revenue,1000324,David Rogers Electrical Contractors Ltd
Shropshire,00GG,People - Non-Delegated Primary DSG,Premises-Related Expenditure - Repairs alterations and maintenance of buildings,15/12/2021,11332093,452.20,Revenue,1000324,David Rogers Electrical Contractors Ltd
Shropshire,00GG,Place - Property Services Group,Premises-Related Expenditure - Repairs alterations and maintenance of buildings,15/12/2021,11332094,"1,430.33",Revenue,1000324,David Rogers Electrical Contractors Ltd
Shropshire,00GG,Place - Property Services Group,Premises-Related Expenditure - Repairs alterations and maintenance of buildings,15/12/2021,11332095,957.20,Revenue,1000324,David Rogers Electrical Contractors Ltd
Shropshire,00GG,Place - Corporate Landlord - Museums & Culture,Premises-Related Expenditure - Repairs alterations and maintenance of buildings,15/12/2021,11332096,767.92,Revenue,1000324,David Rogers Electrical Contractors Ltd
Shropshire,00GG,Health and Wellbeing - Sexual Health,Third Party Payments - Health Authorities,15/12/2021,3299103,"3,806.00",Revenue,1000326,Riverside Medical Practice
Shropshire,00GG,Health and Wellbeing - Sexual Health,Third Party Payments - Private Contractors,15/12/2021,3299103,"3,251.28",Revenue,1000326,Riverside Medical Practice
Shropshire,00GG,Capital - Economic Growth Capital,Non Revenue - Non Revenue,15/12/2021,3298843,"1,484.93",Capital,1000349,Severn Trent Water Ltd
Shropshire,00GG,People - Special Educational Needs & Disability,Supplies & Services - Equipment Furniture and Materials,15/12/2021,3288558,"2,150.00",Revenue,1000642,Smirthwaite Ltd
Shropshire,00GG,Health and Wellbeing - Sexual Health,Third Party Payments - Health Authorities,15/12/2021,3299094,"1,220.00",Revenue,1000656,Marden Medical Practice
Shropshire,00GG,Health and Wellbeing - Sexual Health,Third Party Payments - Private Contractors,15/12/2021,3299094,628.60,Revenue,1000656,Marden Medical Practice
Shropshire,00GG,Place - Shire Catering,Supplies & Services - Catering,15/12/2021,3297930,"1,539.00",Revenue,1000769,The Little Food Company Limited
Shropshire,00GG,Place - Shire Catering,Supplies & Services - Catering,15/12/2021,3298119,"1,200.60",Revenue,1000769,The Little Food Company Limited
Shropshire,00GG,Place - Shire Catering,Supplies & Services - Catering,15/12/2021,3298329,"1,126.30",Revenue,1000769,The Little Food Company Limited
Shropshire,00GG,Health and Wellbeing - Sexual Health,Third Party Payments - Health Authorities,15/12/2021,3299078,"1,023.00",Revenue,1000779,Beeches Medical Practice
Shropshire,00GG,Health and Wellbeing - Sexual Health,Third Party Payments - Private Contractors,15/12/2021,3299078,780.16,Revenue,1000779,Beeches Medical Practice
Shropshire,00GG,Place - Shire Catering,Supplies & Services - Catering,15/12/2021,3292361,"1,079.36",Revenue,1000926,Options Management
Shropshire,00GG,Place - Shire Catering,Supplies & Services - Catering,15/12/2021,3292371,"1,107.00",Revenue,1000926,Options Management
Shropshire,00GG,Health and Wellbeing - Sexual Health,Third Party Payments - Health Authorities,15/12/2021,3299109,"1,041.00",Revenue,1000929,Wem And Prees Medical Practice
Shropshire,00GG,Health and Wellbeing - Sexual Health,Third Party Payments - Private Contractors,15/12/2021,3299109,"1,213.76",Revenue,1000929,Wem And Prees Medical Practice
Shropshire,00GG,Health and Wellbeing - Sexual Health,Third Party Payments - Health Authorities,15/12/2021,3299107,"1,518.00",Revenue,1000934,South Hermitage Surgery
Shropshire,00GG,Health and Wellbeing - Sexual Health,Third Party Payments - Private Contractors,15/12/2021,3299107,"1,993.92",Revenue,1000934,South Hermitage Surgery
Shropshire,00GG,Health and Wellbeing - Sexual Health,Third Party Payments - Health Authorities,15/12/2021,3299099,"1,546.00",Revenue,1000996,Personal redaction
Shropshire,00GG,Health and Wellbeing - Sexual Health,Third Party Payments - Private Contractors,15/12/2021,3299099,"1,777.20",Revenue,1000996,Personal redaction
Shropshire,00GG,Health and Wellbeing - Sexual Health,Third Party Payments - Health Authorities,15/12/2021,3299162,"1,438.00",Revenue,1000996,Personal redaction
Shropshire,00GG,Health and Wellbeing - Sexual Health,Third Party Payments - Private Contractors,15/12/2021,3299162,"2,297.52",Revenue,1000996,Personal redaction
Shropshire,00GG,People - Special Educational Needs & Disability,Third Party Payments - Other Agencies,15/12/2021,3288265,"8,783.33",Revenue,1001217,Citizens Advice Shropshire
Shropshire,00GG,People - External Providers,Third Party Payments - Private Contractors,15/12/2021,3299858,"51,058.33",Revenue,1001217,Citizens Advice Shropshire
Shropshire,00GG,Health and Wellbeing - Sexual Health,Third Party Payments - Health Authorities,15/12/2021,3299108,522.00,Revenue,1001500,Station Drive Surgery
Shropshire,00GG,Health and Wellbeing - Sexual Health,Third Party Payments - Private Contractors,15/12/2021,3299108,130.00,Revenue,1001500,Station Drive Surgery
Shropshire,00GG,Place - Shire Catering,Supplies & Services - Catering,15/12/2021,11336265,791.06,Revenue,1001530,Bidfood
Shropshire,00GG,Place - Shire Catering,Supplies & Services - Catering,15/12/2021,11336277,757.53,Revenue,1001530,Bidfood
Shropshire,00GG,Place - Shire Catering,Supplies & Services - Catering,15/12/2021,11336279,534.48,Revenue,1001530,Bidfood
Shropshire,00GG,Place - Shire Catering,Supplies & Services - Catering,15/12/2021,11336289,513.07,Revenue,1001530,Bidfood
Shropshire,00GG,Place - Shire Catering,Supplies & Services - Catering,15/12/2021,11336290,625.99,Revenue,1001530,Bidfood
Shropshire,00GG,Place - Shire Catering,Supplies & Services - Catering,15/12/2021,11336302,"1,566.41",Revenue,1001530,Bidfood
Shropshire,00GG,Place - Shire Catering,Supplies & Services - Catering,15/12/2021,11336304,539.83,Revenue,1001530,Bidfood
Shropshire,00GG,Place - Shire Catering,Supplies & Services - Catering,15/12/2021,11336306,821.75,Revenue,1001530,Bidfood
Shropshire,00GG,Place - Shire Catering,Supplies & Services - Catering,15/12/2021,11336312,661.23,Revenue,1001530,Bidfood
Shropshire,00GG,Place - Shire Catering,Supplies & Services - Catering,15/12/2021,11336314,559.93,Revenue,1001530,Bidfood
Shropshire,00GG,Place - Shire Catering,Supplies & Services - Catering,15/12/2021,11336315,672.95,Revenue,1001530,Bidfood
Shropshire,00GG,Place - Shire Catering,Supplies & Services - Catering,15/12/2021,11336318,742.83,Revenue,1001530,Bidfood
Shropshire,00GG,Place - Shire Catering,Supplies & Services - Catering,15/12/2021,11336319,887.58,Revenue,1001530,Bidfood
Shropshire,00GG,Place - Shire Catering,Supplies & Services - Catering,15/12/2021,11336321,734.83,Revenue,1001530,Bidfood
Shropshire,00GG,Place - Shire Catering,Supplies & Services - Catering,15/12/2021,11336326,"1,009.94",Revenue,1001530,Bidfood
Shropshire,00GG,Place - Shire Catering,Supplies & Services - Catering,15/12/2021,11336327,536.10,Revenue,1001530,Bidfood
Shropshire,00GG,Place - Shire Catering,Supplies & Services - Catering,15/12/2021,11336329,555.24,Revenue,1001530,Bidfood
Shropshire,00GG,Place - Shire Catering,Supplies & Services - Catering,15/12/2021,11336331,541.01,Revenue,1001530,Bidfood
Shropshire,00GG,Place - Shire Catering,Supplies & Services - Catering,15/12/2021,11336338,501.44,Revenue,1001530,Bidfood
Shropshire,00GG,Place - Shire Catering,Supplies & Services - Catering,15/12/2021,11336342,"1,330.18",Revenue,1001530,Bidfood
Shropshire,00GG,Place - Shire Catering,Supplies & Services - Catering,15/12/2021,11336344,910.73,Revenue,1001530,Bidfood
Shropshire,00GG,Place - Shire Catering,Supplies & Services - Catering,15/12/2021,11336355,527.17,Revenue,1001530,Bidfood
Shropshire,00GG,Place - Shire Catering,Supplies & Services - Catering,15/12/2021,11336356,975.26,Revenue,1001530,Bidfood
Shropshire,00GG,Place - Shire Catering,Supplies & Services - Catering,15/12/2021,11336360,651.38,Revenue,1001530,Bidfood
Shropshire,00GG,Place - Shire Catering,Supplies & Services - Catering,15/12/2021,11336361,"1,038.53",Revenue,1001530,Bidfood
Shropshire,00GG,Place - Shire Catering,Supplies & Services - Catering,15/12/2021,11336374,971.42,Revenue,1001530,Bidfood
Shropshire,00GG,Place - Shire Catering,Supplies & Services - Catering,15/12/2021,11336375,765.55,Revenue,1001530,Bidfood
Shropshire,00GG,Place - Shire Catering,Supplies & Services - Catering,15/12/2021,11336377,"1,583.36",Revenue,1001530,Bidfood
Shropshire,00GG,Place - Shire Catering,Supplies & Services - Catering,15/12/2021,11336381,581.22,Revenue,1001530,Bidfood
Shropshire,00GG,Place - Shire Catering,Supplies & Services - Catering,15/12/2021,11336384,517.43,Revenue,1001530,Bidfood
Shropshire,00GG,Place - Shire Catering,Supplies & Services - Catering,15/12/2021,11336393,834.07,Revenue,1001530,Bidfood
Shropshire,00GG,Place - Shire Catering,Supplies & Services - Catering,15/12/2021,11336400,659.71,Revenue,1001530,Bidfood
Shropshire,00GG,Place - Shire Catering,Supplies & Services - Catering,15/12/2021,11336401,"1,041.28",Revenue,1001530,Bidfood
Shropshire,00GG,Place - Shire Catering,Supplies & Services - Catering,15/12/2021,11336404,675.01,Revenue,1001530,Bidfood
Shropshire,00GG,Place - Shire Catering,Supplies & Services - Catering,15/12/2021,11336405,854.74,Revenue,1001530,Bidfood
Shropshire,00GG,Place - Shire Catering,Supplies & Services - Catering,15/12/2021,11336408,499.67,Revenue,1001530,Bidfood
Shropshire,00GG,Place - Shire Catering,Supplies & Services - Catering,15/12/2021,11336414,938.03,Revenue,1001530,Bidfood
Shropshire,00GG,Place - Shire Catering,Supplies & Services - Catering,15/12/2021,11336416,"1,225.59",Revenue,1001530,Bidfood
Shropshire,00GG,Place - Shire Catering,Supplies & Services - Catering,15/12/2021,11336418,573.62,Revenue,1001530,Bidfood
Shropshire,00GG,Place - Shire Catering,Supplies & Services - Catering,15/12/2021,11336420,536.52,Revenue,1001530,Bidfood
Shropshire,00GG,Place - Shire Catering,Supplies & Services - Catering,15/12/2021,11336421,929.22,Revenue,1001530,Bidfood
Shropshire,00GG,Place - Shire Catering,Supplies & Services - Catering,15/12/2021,11336425,718.80,Revenue,1001530,Bidfood
Shropshire,00GG,Place - Shire Catering,Supplies & Services - Catering,15/12/2021,11336443,554.31,Revenue,1001530,Bidfood
Shropshire,00GG,Place - Shire Catering,Supplies & Services - Catering,15/12/2021,11336448,526.98,Revenue,1001530,Bidfood
Shropshire,00GG,Place - Shire Catering,Supplies & Services - Catering,15/12/2021,11336451,590.62,Revenue,1001530,Bidfood
Shropshire,00GG,Place - Shire Catering,Supplies & Services - Catering,15/12/2021,11336458,"1,107.69",Revenue,1001530,Bidfood
Shropshire,00GG,Place - Shire Catering,Supplies & Services - Catering,15/12/2021,11336460,"1,010.50",Revenue,1001530,Bidfood
Shropshire,00GG,Place - Shire Catering,Supplies & Services - Catering,15/12/2021,11336469,505.95,Revenue,1001530,Bidfood
Shropshire,00GG,Place - Shire Catering,Supplies & Services - Catering,15/12/2021,11336470,611.55,Revenue,1001530,Bidfood
Shropshire,00GG,Place - Shire Catering,Supplies & Services - Catering,15/12/2021,11336471,"1,603.07",Revenue,1001530,Bidfood
Shropshire,00GG,Place - Shire Catering,Supplies & Services - Catering,15/12/2021,11336473,836.62,Revenue,1001530,Bidfood
Shropshire,00GG,Place - Shire Catering,Supplies & Services - Catering,15/12/2021,11336484,659.29,Revenue,1001530,Bidfood
Shropshire,00GG,Place - Shire Catering,Supplies & Services - Catering,15/12/2021,11336491,583.41,Revenue,1001530,Bidfood
Shropshire,00GG,Place - Shire Catering,Supplies & Services - Catering,15/12/2021,11336494,522.29,Revenue,1001530,Bidfood
Shropshire,00GG,Place - Shire Catering,Supplies & Services - Catering,15/12/2021,11336497,756.65,Revenue,1001530,Bidfood
Shropshire,00GG,Place - Shire Catering,Supplies & Services - Catering,15/12/2021,11336498,745.15,Revenue,1001530,Bidfood
Shropshire,00GG,Place - Shire Catering,Supplies & Services - Catering,15/12/2021,11336499,511.79,Revenue,1001530,Bidfood
Shropshire,00GG,Place - Shire Catering,Supplies & Services - Catering,15/12/2021,11336501,860.59,Revenue,1001530,Bidfood
Shropshire,00GG,Place - Shire Catering,Supplies & Services - Catering,15/12/2021,11336508,659.72,Revenue,1001530,Bidfood
Shropshire,00GG,Place - Shire Catering,Supplies & Services - Catering,15/12/2021,11336509,754.34,Revenue,1001530,Bidfood
Shropshire,00GG,Health and Wellbeing - Sexual Health,Third Party Payments - Health Authorities,15/12/2021,3299076,967.00,Revenue,1001537,Albrighton Medical Practice
Shropshire,00GG,Health and Wellbeing - Sexual Health,Third Party Payments - Private Contractors,15/12/2021,3299076,823.44,Revenue,1001537,Albrighton Medical Practice
Shropshire,00GG,Health and Wellbeing - Sexual Health,Third Party Payments - Health Authorities,15/12/2021,3299096,302.00,Revenue,1001578,Much Wenlock & Cressage Medical Practice
Shropshire,00GG,Health and Wellbeing - Sexual Health,Third Party Payments - Private Contractors,15/12/2021,3299096,455.16,Revenue,1001578,Much Wenlock & Cressage Medical Practice
Shropshire,00GG,Place - Outdoor Partnerships,Supplies & Services - Services,15/12/2021,3298763,"1,850.00",Revenue,1001627,Redwood Tree Specialists
Shropshire,00GG,Place - Outdoor Partnerships,Supplies & Services - Services,15/12/2021,3298776,"1,100.00",Revenue,1001627,Redwood Tree Specialists
Shropshire,00GG,Place - Outdoor Partnerships,Supplies & Services - Services,15/12/2021,3298781,480.00,Revenue,1001627,Redwood Tree Specialists
Shropshire,00GG,Place - Outdoor Partnerships,Supplies & Services - Services,15/12/2021,3298794,650.00,Revenue,1001627,Redwood Tree Specialists
Shropshire,00GG,Place - Outdoor Partnerships,Supplies & Services - Services,15/12/2021,3298805,"1,950.00",Revenue,1001627,Redwood Tree Specialists
Shropshire,00GG,People - Care Management - Assistive Equipment & Technology,Premises-Related Expenditure - Repairs alterations and maintenance of buildings,15/12/2021,11334158,832.00,Revenue,1001663,Lift & Engineering Services Ltd
Shropshire,00GG,People - Care Management - Assistive Equipment & Technology,Premises-Related Expenditure - Repairs alterations and maintenance of buildings,15/12/2021,11334159,"1,334.05",Revenue,1001663,Lift & Engineering Services Ltd
Shropshire,00GG,People - Care Management - Assistive Equipment & Technology,Premises-Related Expenditure - Repairs alterations and maintenance of buildings,15/12/2021,11334160,"1,638.80",Revenue,1001663,Lift & Engineering Services Ltd
Shropshire,00GG,Place - Environment and Transport (Parking),Supplies & Services - Services,15/12/2021,3291476,"1,358.50",Revenue,1001678,Security Plus + Limited
Shropshire,00GG,Place - Environment and Transport (Parking),Supplies & Services - Services,15/12/2021,3291477,"1,149.50",Revenue,1001678,Security Plus + Limited
Shropshire,00GG,Place - Environment and Transport (Parking),Supplies & Services - Services,15/12/2021,3291478,"1,254.00",Revenue,1001678,Security Plus + Limited
Shropshire,00GG,Place - Environment and Transport (Parking),Supplies & Services - Services,15/12/2021,3291481,"1,452.62",Revenue,1001678,Security Plus + Limited
Shropshire,00GG,Place - Environment and Transport (Parking),Supplies & Services - Services,15/12/2021,3291482,"1,222.94",Revenue,1001678,Security Plus + Limited
Shropshire,00GG,Place - Environment and Transport (Parking),Supplies & Services - Services,15/12/2021,3291491,"1,542.26",Revenue,1001678,Security Plus + Limited
Shropshire,00GG,Place - Environment and Transport (Parking),Supplies & Services - Services,15/12/2021,3291492,"1,455.12",Revenue,1001678,Security Plus + Limited
Shropshire,00GG,Place - Environment and Transport (Parking),Supplies & Services - Services,15/12/2021,3291500,"1,045.00",Revenue,1001678,Security Plus + Limited
Shropshire,00GG,Place - Environment and Transport (Parking),Supplies & Services - Services,15/12/2021,3291503,"1,358.50",Revenue,1001678,Security Plus + Limited
Shropshire,00GG,Place - Environment and Transport (Parking),Supplies & Services - Services,15/12/2021,3291510,"1,358.50",Revenue,1001678,Security Plus + Limited
Shropshire,00GG,Place - Environment and Transport (Parking),Supplies & Services - Services,15/12/2021,3291517,"1,397.14",Revenue,1001678,Security Plus + Limited
Shropshire,00GG,Place - Environment and Transport (Parking),Supplies & Services - Services,15/12/2021,3291518,"1,463.00",Revenue,1001678,Security Plus + Limited
Shropshire,00GG,Place - Environment and Transport (Parking),Supplies & Services - Services,15/12/2021,3291539,"1,358.50",Revenue,1001678,Security Plus + Limited
Shropshire,00GG,Health and Wellbeing - Sexual Health,Third Party Payments - Health Authorities,15/12/2021,3299102,"2,808.00",Revenue,1001742,Radbrook Green Surgery
Shropshire,00GG,Health and Wellbeing - Sexual Health,Third Party Payments - Private Contractors,15/12/2021,3299102,910.32,Revenue,1001742,Radbrook Green Surgery
Shropshire,00GG,Place - Museums & Archives,Third Party Payments - Voluntary Associations,15/12/2021,3288977,"2,058.24",Revenue,1002034,Soldiers of Shropshire Museum
Shropshire,00GG,Resources - Print & Post Services,Supplies & Services - Printing Stationery and General Office Expenses,15/12/2021,3299693,637.89,Revenue,1002095,Ricoh Uk Ltd
Shropshire,00GG,Health and Wellbeing - Sexual Health,Third Party Payments - Health Authorities,15/12/2021,3299092,"3,051.00",Revenue,1002152,Drayton Medical Practices
Shropshire,00GG,Health and Wellbeing - Sexual Health,Third Party Payments - Private Contractors,15/12/2021,3299092,"2,015.80",Revenue,1002152,Drayton Medical Practices
Shropshire,00GG,Health and Wellbeing - Sexual Health,Third Party Payments - Health Authorities,15/12/2021,3299095,983.00,Revenue,1002155,Marysville Medical Practice
Shropshire,00GG,Health and Wellbeing - Sexual Health,Third Party Payments - Private Contractors,15/12/2021,3299095,390.00,Revenue,1002155,Marysville Medical Practice
Shropshire,00GG,Health and Wellbeing - Sexual Health,Third Party Payments - Health Authorities,15/12/2021,3299079,678.00,Revenue,1002261,Belvidere Medical Practice
Shropshire,00GG,Health and Wellbeing - Sexual Health,Third Party Payments - Private Contractors,15/12/2021,3299079,758.60,Revenue,1002261,Belvidere Medical Practice
Shropshire,00GG,Housing Revenue Account - Supervision & Management,Supplies & Services - Miscellaneous Expenses,15/12/2021,3297259,"1,382.90",Revenue,1002335,Allpay Limited
Shropshire,00GG,Resources - Revenues and Benefits Team,Supplies & Services - Miscellaneous Expenses,15/12/2021,3297264,610.35,Revenue,1002335,Allpay Limited
Shropshire,00GG,Resources - Revenues and Benefits Team,Supplies & Services - Miscellaneous Expenses,15/12/2021,3297270,"1,853.90",Revenue,1002335,Allpay Limited
Shropshire,00GG,Health and Wellbeing - Sexual Health,Third Party Payments - Health Authorities,15/12/2021,3299088,"1,272.00",Revenue,1002599,Claremont Bank Surgery
Shropshire,00GG,Health and Wellbeing - Sexual Health,Third Party Payments - Private Contractors,15/12/2021,3299088,433.44,Revenue,1002599,Claremont Bank Surgery
Shropshire,00GG,Resources - Print & Post Services,Supplies & Services - Equipment Furniture and Materials,15/12/2021,3293946,576.00,Revenue,1002635,Impact Mail & Print (Uk) Ltd
Shropshire,00GG,Resources - Print & Post Services,Supplies & Services - Equipment Furniture and Materials,15/12/2021,3293973,747.00,Revenue,1002635,Impact Mail & Print (Uk) Ltd
Shropshire,00GG,People - Social Care Community Purchasing,Third Party Payments - Private Contractors,15/12/2021,3298937,"2,700.00",Revenue,1002881,B Khan
Shropshire,00GG,Place - Theatre Services,Supplies & Services - Equipment Furniture and Materials,15/12/2021,3298698,950.00,Revenue,1002947,Assoc Of British Theatre Technicians
Shropshire,00GG,Health and Wellbeing - Sexual Health,Third Party Payments - Health Authorities,15/12/2021,3299106,"1,022.00",Revenue,1003076,Shifnal & Priorslee Medical Practice
Shropshire,00GG,Health and Wellbeing - Sexual Health,Third Party Payments - Private Contractors,15/12/2021,3299106,"1,517.36",Revenue,1003076,Shifnal & Priorslee Medical Practice
Shropshire,00GG,Health and Wellbeing - Sexual Health,Third Party Payments - Health Authorities,15/12/2021,3299087,737.00,Revenue,1003111,Church Stretton Medical Practice
Shropshire,00GG,Health and Wellbeing - Sexual Health,Third Party Payments - Private Contractors,15/12/2021,3299087,238.44,Revenue,1003111,Church Stretton Medical Practice
Shropshire,00GG,Health and Wellbeing - Sexual Health,Third Party Payments - Health Authorities,15/12/2021,3299100,"1,172.00",Revenue,1003356,Portcullis Surgery
Shropshire,00GG,Health and Wellbeing - Sexual Health,Third Party Payments - Private Contractors,15/12/2021,3299100,"1,430.48",Revenue,1003356,Portcullis Surgery
Shropshire,00GG,Health and Wellbeing - Sexual Health,Third Party Payments - Health Authorities,15/12/2021,3299091,582.00,Revenue,1003420,Craven Arms Medical Practice
Shropshire,00GG,Health and Wellbeing - Sexual Health,Third Party Payments - Private Contractors,15/12/2021,3299091,"1,235.48",Revenue,1003420,Craven Arms Medical Practice
Shropshire,00GG,Place - Theatre Services,Third Party Payments - Private Contractors,15/12/2021,3299701,"50,000.00",Revenue,1003482,Evolution Productions Ltd
Shropshire,00GG,People - Social Care Community Purchasing,Third Party Payments - Private Contractors,15/12/2021,11331298,"19,120.00",Revenue,1003623,Oldbury Grange - Morris Care
Shropshire,00GG,Health and Wellbeing - Sexual Health,Third Party Payments - Health Authorities,15/12/2021,3299101,828.00,Revenue,1003935,Dr Guildford & Partners
Shropshire,00GG,Health and Wellbeing - Sexual Health,Third Party Payments - Private Contractors,15/12/2021,3299101,86.72,Revenue,1003935,Dr Guildford & Partners
Shropshire,00GG,People - Social Care Community Purchasing,Third Party Payments - Private Contractors,15/12/2021,11332675,"10,074.96",Revenue,1003971,Care Of Excellence Ltd
Shropshire,00GG,Health and Wellbeing - Sexual Health,Third Party Payments - Health Authorities,15/12/2021,3299097,748.00,Revenue,1004019,Dr M Palaniappan
Shropshire,00GG,Health and Wellbeing - Sexual Health,Third Party Payments - Private Contractors,15/12/2021,3299097,953.76,Revenue,1004019,Dr M Palaniappan
Shropshire,00GG,Health and Wellbeing - Sexual Health,Third Party Payments - Health Authorities,15/12/2021,3299084,"1,567.00",Revenue,1004020,Cambrian Medical Centre
Shropshire,00GG,Health and Wellbeing - Sexual Health,Third Party Payments - Private Contractors,15/12/2021,3299084,"1,907.20",Revenue,1004020,Cambrian Medical Centre
Shropshire,00GG,Health and Wellbeing - Sexual Health,Third Party Payments - Health Authorities,15/12/2021,3299089,"2,107.00",Revenue,1004035,Cleobury Mortimer Medical Centre
Shropshire,00GG,Health and Wellbeing - Sexual Health,Third Party Payments - Private Contractors,15/12/2021,3299089,"1,365.48",Revenue,1004035,Cleobury Mortimer Medical Centre
Shropshire,00GG,Health and Wellbeing - Sexual Health,Third Party Payments - Health Authorities,15/12/2021,3299090,405.00,Revenue,1004082,Clive Medical Practice
Shropshire,00GG,Health and Wellbeing - Sexual Health,Third Party Payments - Private Contractors,15/12/2021,3299090,606.88,Revenue,1004082,Clive Medical Practice
Shropshire,00GG,Health and Wellbeing - Sexual Health,Third Party Payments - Health Authorities,15/12/2021,3299098,"3,742.00",Revenue,1004084,Dr Mcmurray & Partners
Shropshire,00GG,Health and Wellbeing - Sexual Health,Third Party Payments - Private Contractors,15/12/2021,3299098,411.72,Revenue,1004084,Dr Mcmurray & Partners
Shropshire,00GG,Resources - Commissioning Development & Procurement,Employees - Direct Employee Expenses,15/12/2021,3292273,"294,168.92",Revenue,1004129,Matrix Scm Ltd
Shropshire,00GG,Health and Wellbeing - Sexual Health,Third Party Payments - Health Authorities,15/12/2021,3299080,"1,221.00",Revenue,1004148,Bishops Castle Medical Practice
Shropshire,00GG,Health and Wellbeing - Sexual Health,Third Party Payments - Private Contractors,15/12/2021,3299080,260.00,Revenue,1004148,Bishops Castle Medical Practice
Shropshire,00GG,Place - Assistant Director Economy & Place,Non Revenue - Non Revenue,15/12/2021,3298928,"8,010.04",Revenue,1004594,Shrewsbury Business Improvement Dist Ltd
Shropshire,00GG,People - Home to School Transport,Transport-Related Expenditure - Contract Hire and Operating Leases,15/12/2021,3294358,"2,220.00",Revenue,1004705,Bendys Cab (Baschurch)
Shropshire,00GG,Place - Planning Services,Employees - Direct Employee Expenses,15/12/2021,3298771,"1,118.00",Revenue,1005215,The Oyster Partnership Ltd
Shropshire,00GG,Health and Wellbeing - Sexual Health,Third Party Payments - Health Authorities,15/12/2021,3299104,"2,420.00",Revenue,1005282,Severn Fields Medical Practice
Shropshire,00GG,Health and Wellbeing - Sexual Health,Third Party Payments - Private Contractors,15/12/2021,3299104,"4,768.32",Revenue,1005282,Severn Fields Medical Practice
Shropshire,00GG,Resources - Finance,Non Revenue - Non Revenue,15/12/2021,3289593,550.00,Revenue,1005310,Whitchurch CE Junior Academy
Shropshire,00GG,Place - Arts,Third Party Payments - Private Contractors,15/12/2021,3299309,"2,900.00",Revenue,1005759,Ignition
Shropshire,00GG,Resources - ICT Services,Supplies & Services - Communications and Computing,15/12/2021,3289603,"20,187.91",Revenue,1005963,Maintel Europe Limited
Shropshire,00GG,Resources - Organisational Development,Supplies & Services - Services,15/12/2021,3288306,"8,400.00",Revenue,1006467,Ascensio Limited
Shropshire,00GG,Capital - Unallocated School Capital,Non Revenue - Non Revenue,15/12/2021,11336218,"1,810.00",Capital,1008574,Taylors Mechanical Ltd
Shropshire,00GG,Place - Corporate Landlord -  Housing,Premises-Related Expenditure - Repairs alterations and maintenance of buildings,15/12/2021,3293578,"17,920.00",Revenue,1008582,Asset Surfacing & Construction Ltd
Shropshire,00GG,Capital - Housing Services Capital,Non Revenue - Non Revenue,15/12/2021,3299168,"4,390.00",Capital,1008669,Shire Stairlifts Ltd
Shropshire,00GG,Place - Economic Growth,Supplies & Services - Services,15/12/2021,3297983,"1,200.00",Revenue,1008891,Good 2 Great Ltd
Shropshire,00GG,People - Home to School Transport,Transport-Related Expenditure - Contract Hire and Operating Leases,15/12/2021,3298656,"1,020.80",Revenue,1008999,Personal redaction
Shropshire,00GG,Capital - Housing Services Capital,Non Revenue - Non Revenue,15/12/2021,3299696,"10,000.00",Capital,1009035,W S Building Services (Shropshire) Ltd
Shropshire,00GG,Capital - Housing Services Capital,Non Revenue - Non Revenue,15/12/2021,3299706,"7,594.74",Capital,1009035,W S Building Services (Shropshire) Ltd
Shropshire,00GG,People - Early Years,Third Party Payments - Other Establishments,15/12/2021,3289324,"1,950.00",Revenue,1009951,Commercial redaction
Shropshire,00GG,Resources - Legal Services � Child Care,Supplies & Services - Services,15/12/2021,3290021,750.00,Revenue,1010154,Naomi Dean
Shropshire,00GG,Health and Wellbeing - Sexual Health,Third Party Payments - Health Authorities,15/12/2021,3299086,"2,080.00",Revenue,1010425,Churchmere Medical Group
Shropshire,00GG,Health and Wellbeing - Sexual Health,Third Party Payments - Private Contractors,15/12/2021,3299086,"2,752.68",Revenue,1010425,Churchmere Medical Group
Shropshire,00GG,Health and Wellbeing - Regulatory Services,Supplies & Services - Services,15/12/2021,3292517,"1,976.00",Revenue,1011061,Eh Owen
Shropshire,00GG,People - Enable,Supplies & Services - Services,15/12/2021,3299686,"5,000.00",Revenue,1011330,Dbc Studio
Shropshire,00GG,People - Quality & Assurance: Learning & Development,Supplies & Services - Services,15/12/2021,3293925,"4,810.00",Revenue,1012115,Talking Life Limited
Shropshire,00GG,People - Special Educational Needs & Disability,Third Party Payments - Other Establishments,15/12/2021,3290547,"50,789.33",Revenue,1012596,Kedleston High Peak School Limited
Shropshire,00GG,Place - Theatre Services,Supplies & Services - Equipment Furniture and Materials,15/12/2021,3288994,648.75,Revenue,1013325,ESP Security Solutions Limited
Shropshire,00GG,People - Social Care Community Purchasing,Third Party Payments - Private Contractors,15/12/2021,11332676,661.19,Revenue,1017394,Radis Community Care
Shropshire,00GG,People - Social Care Community Purchasing,Third Party Payments - Private Contractors,15/12/2021,11332677,"2,660.55",Revenue,1017394,Radis Community Care
Shropshire,00GG,People - Social Care Community Purchasing,Third Party Payments - Private Contractors,15/12/2021,11332019,529.77,Revenue,1017410,Allied Health Services Limited
Shropshire,00GG,People - Social Care Community Purchasing,Third Party Payments - Private Contractors,15/12/2021,11332020,569.46,Revenue,1017410,Allied Health Services Limited
Shropshire,00GG,People - Social Care Community Purchasing,Third Party Payments - Private Contractors,15/12/2021,11332021,"2,534.40",Revenue,1017410,Allied Health Services Limited
Shropshire,00GG,People - Non-Delegated Primary DSG,Premises-Related Expenditure - Repairs alterations and maintenance of buildings,16/12/2021,3294499,"1,077.60",Revenue,1000101,Cooper & Williams Ltd
Shropshire,00GG,People - Social Care Community Purchasing,Third Party Payments - Private Contractors,16/12/2021,11336564,156.96,Revenue,1000163,Have A Care
Shropshire,00GG,People - Social Care Community Purchasing,Transfer Payments - Adult Social Services Clients,16/12/2021,11336564,"50,168.57",Revenue,1000163,Have A Care
Shropshire,00GG,People - Social Care Hospital Interface Purchasing,Transfer Payments - Adult Social Services Clients,16/12/2021,11336564,961.38,Revenue,1000163,Have A Care
Shropshire,00GG,People - Social Care Mental Health Purchasing,Transfer Payments - Adult Social Services Clients,16/12/2021,11336564,"4,923.66",Revenue,1000163,Have A Care
Shropshire,00GG,People - Projects,Supplies & Services - Grants and Subscriptions,16/12/2021,11336977,"11,435.89",Revenue,1000163,Have A Care
Shropshire,00GG,People - Special Educational Needs & Disability,Third Party Payments - Other Establishments,16/12/2021,3299006,"5,413.00",Revenue,1000195,Church Stretton School
Shropshire,00GG,Place - Environment and Transport (Public Transport),Third Party Payments - Transport Operators,16/12/2021,3300077,"8,254.12",Revenue,1000204,Lakeside Coaches Ltd
Shropshire,00GG,Place - Environment and Transport (Public Transport),Third Party Payments - Transport Operators,16/12/2021,3300122,"7,485.43",Revenue,1000204,Lakeside Coaches Ltd
Shropshire,00GG,Place - Environment and Transport (Public Transport),Third Party Payments - Transport Operators,16/12/2021,3300145,"1,295.87",Revenue,1000204,Lakeside Coaches Ltd
Shropshire,00GG,Place - Planning Services,Supplies & Services - Services,16/12/2021,3290433,554.40,Revenue,1000228,Midland News Association Ltd
Shropshire,00GG,Resources - Legal Services,Supplies & Services - Services,16/12/2021,3300104,145.00,Revenue,1000255,Legal & Democratic Servs Imp Ac
Shropshire,00GG,Resources - Legal Services � Child Care,Supplies & Services - Services,16/12/2021,3300104,"11,840.00",Revenue,1000255,Legal & Democratic Servs Imp Ac
Shropshire,00GG,Place - Environment and Transport (Public Transport),Third Party Payments - Transport Operators,16/12/2021,3300150,"11,231.52",Revenue,1000378,Tanat Valley Coaches
Shropshire,00GG,Place - Museums & Archives,Supplies & Services - Equipment Furniture and Materials,16/12/2021,3290408,825.00,Revenue,1000393,T Williamson
Shropshire,00GG,People - Social Care Community Purchasing,Transfer Payments - Adult Social Services Clients,16/12/2021,11336571,"50,234.88",Revenue,1000404,Care At Home
Shropshire,00GG,People - Projects,Supplies & Services - Grants and Subscriptions,16/12/2021,11336986,"5,952.92",Revenue,1000404,Care At Home
Shropshire,00GG,Place - Corporate Landlord - Libraries,Premises-Related Expenditure - Repairs alterations and maintenance of buildings,16/12/2021,11333517,559.45,Revenue,1000411,Cool Services Ltd
Shropshire,00GG,People - Special Educational Needs & Disability,Third Party Payments - Other Establishments,16/12/2021,3298976,"13,118.00",Revenue,1000470,Corbet School Technology & Language Coll
Shropshire,00GG,People - Social Care Community Purchasing,Third Party Payments - Private Contractors,16/12/2021,11336660,"1,277.20",Revenue,1000484,Radis Community Care
Shropshire,00GG,People - Social Care Community Purchasing,Transfer Payments - Adult Social Services Clients,16/12/2021,11336660,"24,649.69",Revenue,1000484,Radis Community Care
Shropshire,00GG,People - Social Care Hospital Interface Purchasing,Transfer Payments - Adult Social Services Clients,16/12/2021,11336660,-377.69,Revenue,1000484,Radis Community Care
Shropshire,00GG,People - Social Care Mental Health Purchasing,Transfer Payments - Adult Social Services Clients,16/12/2021,11336660,"1,432.94",Revenue,1000484,Radis Community Care
Shropshire,00GG,People - Projects,Supplies & Services - Grants and Subscriptions,16/12/2021,11337019,"6,892.87",Revenue,1000484,Radis Community Care
Shropshire,00GG,People - Social Care Community Purchasing,Transfer Payments - Adult Social Services Clients,16/12/2021,11336583,"-6,399.02",Revenue,1000537,Trident Reach The People Charity
Shropshire,00GG,People - Social Care Mental Health Purchasing,Transfer Payments - Adult Social Services Clients,16/12/2021,11336583,894.88,Revenue,1000537,Trident Reach The People Charity
Shropshire,00GG,People - Social Care Community Purchasing,Third Party Payments - Private Contractors,16/12/2021,11336771,"29,847.80",Revenue,1000537,Trident Reach The People Charity
Shropshire,00GG,People - Social Care Community Purchasing,Third Party Payments - Private Contractors,16/12/2021,11336791,"27,871.48",Revenue,1000537,Trident Reach The People Charity
